Service Area,Service Division,Expense Type,Expense Code,Detailed Expense Type,Payment Date,Transaction Number,Amount Exc Vat,Supplier Name
Adult and Health Services,Adult Care,Third Party Payments,478101,Purchase of Care,01-Mar-2017,306375-2360683,"1,395.40",REDACTED - PAYMENT TO INDIVIDUAL
Adult and Health Services,Adult Care,Supplies and Services,304999,Equipment and Materials,01-Mar-2017,3251646-086412,693.48,ROMPA LTD.
Resources,Centrally Administered costs,Supplies and Services,384899,Miscellaneous Expenses,01-Mar-2017,3251620-1013,"98,571.43",NORTH EAST COMBINED AUTHORITY (NECA).
Children and Young Peoples Services,Childrens Services,Supplies and Services,340001,Postages,01-Mar-2017,3251612-CAS-02-2017-041,"1,500.00",NEOPOST CREDIFON.
Children and Young Peoples Services,Childrens Services,Third Party Payments,440016,Other Third Party Payments,01-Mar-2017,3251689-CAS-02-2017-147,"2,000.00",WILKINSON WOODWARD SOLICITORS.
Children and Young Peoples Services,Childrens Services,Premises,108099,Service Repairs and Maintenance,01-Mar-2017,306393-AR056340,786.74,VOKES AIR LTD T/A MANN & HUMMEL.
Children and Young Peoples Services,Childrens Services,Premises,125009,Rents,01-Mar-2017,3251688-432747,612.00,WHITTLE JONES (GROUP) LTD.
Children and Young Peoples Services,Childrens Services,Supplies and Services,364352,Grants to Voluntary Organisations,01-Mar-2017,3251661-261,"1,039.00",STONHAM HOUSING ASSOCIATION LTD.
Adult and Health Services,Commissioning,Transport,230005,Contract Hire,01-Mar-2017,3251466-2017-001,840.00,ALANS TAXIS BARNARD CASTLE.
Adult and Health Services,Commissioning,Transport,230005,Contract Hire,01-Mar-2017,3251466-2017-002,736.00,ALANS TAXIS BARNARD CASTLE.
Resources,Corporate Finance,Income,740291,Other Income,01-Mar-2017,3251658-RES-02-2017-024,"1,682.79",ST JOHN`S SCHOOL & SIXTH FORM COLLEGE A CATHOLIC ACADEMY.
Regeneration and Local Services,Culture & Sport,Supplies and Services,304259,Equipment and Materials,01-Mar-2017,3251473-1065,"4,158.60",AQUA PHYSICAL LTD.
Regeneration and Local Services,Culture & Sport,Premises,145023,Cleaning and Domestic Supplies,01-Mar-2017,3251487-22SI2222927,875.00,BRENNTAG UK LTD.
Regeneration and Local Services,Culture & Sport,Supplies and Services,332029,Printing Stationery and Gen Off Exps,01-Mar-2017,3251523-HEX54000595321,"3,500.00",EXPERIAN LTD.
Regeneration and Local Services,Culture & Sport,Supplies and Services,332029,Printing Stationery and Gen Off Exps,01-Mar-2017,3251584-01484,660.00,LEE DOBSON PHOTOGRAPHY LTD.
Regeneration and Local Services,Culture & Sport,Supplies and Services,384199,Miscellaneous Expenses,01-Mar-2017,3251625-042505,596.52,NSL LTD.
Regeneration and Local Services,Culture & Sport,Supplies and Services,338047,Services,01-Mar-2017,3251632-PC6217,500.00,PAUL COOKSON.
Regeneration and Local Services,Culture & Sport,Supplies and Services,338047,Services,01-Mar-2017,3251636-INV06202,833.33,PICTUREHOUSE CINEMAS LTD.
Regeneration and Local Services,Culture & Sport,Supplies and Services,338047,Services,01-Mar-2017,3251636-INV06362,833.33,PICTUREHOUSE CINEMAS LTD.
Regeneration and Local Services,Culture & Sport,Supplies and Services,384199,Miscellaneous Expenses,01-Mar-2017,3251681-001/03/17,"2,500.00",URBAN RAJAH CREATE LTD.
Regeneration and Local Services,Direct Services,Transport,210057,Repair and Maintenance of Vehicles,01-Mar-2017,306385-29381,"1,675.00",PAGE POWDER COATINGS LTD.
Regeneration and Local Services,Direct Services,Transport,210057,Repair and Maintenance of Vehicles,01-Mar-2017,306386-92402,815.21,PETERLEE GLASS CO LTD.
Regeneration and Local Services,Direct Services,Third Party Payments,430100,Rendered by Private Contractors,01-Mar-2017,3251480-DCC/160051,750.90,BEACON BUILDING & ASSOCIATED SERVICES LTD.
Regeneration and Local Services,Direct Services,Third Party Payments,430100,Rendered by Private Contractors,01-Mar-2017,3251480-DCC/160052,792.90,BEACON BUILDING & ASSOCIATED SERVICES LTD.
Regeneration and Local Services,Direct Services,Third Party Payments,430100,Rendered by Private Contractors,01-Mar-2017,3251480-DCC/160053,"1,081.80",BEACON BUILDING & ASSOCIATED SERVICES LTD.
Regeneration and Local Services,Direct Services,Transport,210057,Repair and Maintenance of Vehicles,01-Mar-2017,3251494-475515,863.28,CARRS BILLINGTON AGRICULTURE.
Regeneration and Local Services,Direct Services,Third Party Payments,430100,Rendered by Private Contractors,01-Mar-2017,3251495-236,"1,406.03",CEILINGS DIRECT LTD.
Regeneration and Local Services,Direct Services,Third Party Payments,430100,Rendered by Private Contractors,01-Mar-2017,3251512-4255,"1,920.00",D STEWART SCAFFOLDING LTD.
Regeneration and Local Services,Direct Services,Stock,926004,Stock,01-Mar-2017,3251530-IN184527,"3,376.90",GB LUBRICANTS LTD.
Regeneration and Local Services,Direct Services,Third Party Payments,430100,Rendered by Private Contractors,01-Mar-2017,3251562-4603,873.92,JAMES INGLEFORD SCAFFOLDING LTD.
Regeneration and Local Services,Direct Services,Third Party Payments,430100,Rendered by Private Contractors,01-Mar-2017,3251562-4604,"4,266.80",JAMES INGLEFORD SCAFFOLDING LTD.
Regeneration and Local Services,Direct Services,Supplies and Services,304358,Equipment and Materials,01-Mar-2017,3251571-26301,"1,324.00",JOHN R BUTTERFIELD LTD.
Regeneration and Local Services,Direct Services,Third Party Payments,430100,Rendered by Private Contractors,01-Mar-2017,3251591-134076,796.95,LONDONDERRY GARAGE (S.E) LTD.
Regeneration and Local Services,Direct Services,Stock,926004,Stock,01-Mar-2017,3251603-7970006518,583.00,MITCHELL POWERSYSTEMS.
Regeneration and Local Services,Direct Services,Transport,215005,Running Costs of Vehicles,01-Mar-2017,3251627-226369,"1,932.64",OIL NRG LTD.
Regeneration and Local Services,Direct Services,Transport,215005,Running Costs of Vehicles,01-Mar-2017,3251627-226735,"17,078.03",OIL NRG LTD.
Regeneration and Local Services,Direct Services,Supplies and Services,304221,Equipment and Materials,01-Mar-2017,3251631-XL191701,769.60,PARK ELECTRICAL DISTRIBUTORS LTD.
Regeneration and Local Services,Direct Services,Supplies and Services,304221,Equipment and Materials,01-Mar-2017,3251634-2646781,904.13,PEW ELECTRICAL DISTRIBUTORS LTD.
Regeneration and Local Services,Direct Services,Supplies and Services,304221,Equipment and Materials,01-Mar-2017,3251678-109758,956.40,TOMMY WARDLE.
Regeneration and Local Services,Direct Services,Transport,210057,Repair and Maintenance of Vehicles,01-Mar-2017,3251692-108106,589.50,ZOELLER WASTE SYSTEMS LTD.
Regeneration and Local Services,Economic Development and Housing,Supplies and Services,384700,Miscellaneous Expenses,01-Mar-2017,3251537-RED-03-2017-002,"1,500.00",GOLDCREST DEVELOPMENTS LTD.
Regeneration and Local Services,Economic Development and Housing,Cap Exp on Grants & Other Financial Assistance (REFCUS),918401,Capital grants,01-Mar-2017,3251544-RED-03-2017-004,"3,087.00",HES GROUP UK LTD.
Regeneration and Local Services,Economic Development and Housing,Supplies and Services,384700,Miscellaneous Expenses,01-Mar-2017,3251569-RED-03-2017-001,"1,500.00",JOHN MORGAN BUILDING SERVICES.
Regeneration and Local Services,Economic Development and Housing,Cap Exp on Grants & Other Financial Assistance (REFCUS),918401,Capital grants,01-Mar-2017,3251595-RED-03-2017-006,"8,520.40",M & R DEVELOPMENTS & CONTRACTORS LTD..
Regeneration and Local Services,Economic Development and Housing,Cap Exp on Grants & Other Financial Assistance (REFCUS),918401,Capital grants,01-Mar-2017,3251608-RED-03-2017-003,"5,000.00",REDACTED - PAYMENT TO INDIVIDUAL
Regeneration and Local Services,Economic Development and Housing,Cap Exp on Grants & Other Financial Assistance (REFCUS),918401,Capital grants,01-Mar-2017,3251633-RED-03-2017-007,"1,059.00",PEART ACCESS RAMPS.
Regeneration and Local Services,Economic Development and Housing,Cap Exp on Grants & Other Financial Assistance (REFCUS),918401,Capital grants,01-Mar-2017,3251633-RED-03-2017-008,"1,923.00",PEART ACCESS RAMPS.
Regeneration and Local Services,Economic Development and Housing,Cap Exp on Grants & Other Financial Assistance (REFCUS),918401,Capital grants,01-Mar-2017,3251633-RED-03-2017-009,"3,862.00",PEART ACCESS RAMPS.
Children and Young Peoples Services,Education,Third Party Payments,440080,Other Third Party Payments,01-Mar-2017,3251619-0000032184,"5,002.81",NORTH EAST AUTISM SOCIETY.
Children and Young Peoples Services,Education,Supplies and Services,308011,Furniture,01-Mar-2017,3251478-9154,700.00,B & A DESIGN & MANUFACTURE LTD.
Children and Young Peoples Services,Education,Third Party Payments,440999,Other Third Party Payments,01-Mar-2017,3251560-JD/DCC/1650,"4,137.12",JACK DRUM ARTS LTD.
Children and Young Peoples Services,Education,Transport,230008,Contract Hire,01-Mar-2017,3251622-M0007353897,"1,444.00",NORTH TYNESIDE COUNCIL.
Children and Young Peoples Services,Education,Supplies and Services,304259,Equipment and Materials,01-Mar-2017,3251570-0000117019,"2,999.00",JOHN PACKER LTD.
Children and Young Peoples Services,Education,Transfer Payments,510026,School Children,01-Mar-2017,3251638-2-6FEB17HS,777.60,PLAYDAY NURSERY.
Children and Young Peoples Services,Education,Transport,230008,Contract Hire,01-Mar-2017,3251573-M03628,735.00,JOVIAL PRIVATE HIRE.
Children and Young Peoples Services,Education,Transport,230008,Contract Hire,01-Mar-2017,3251573-N03028,"1,245.00",JOVIAL PRIVATE HIRE.
Children and Young Peoples Services,Education,Transport,230006,Contract Hire,01-Mar-2017,3251459-68121,616.00,A & C TAXIS.
Children and Young Peoples Services,Education,Transport,230008,Contract Hire,01-Mar-2017,3251471-0024,"1,164.00",ANDREW SIMPSON T/A ANDY`S CABS.
Children and Young Peoples Services,Education,Supplies and Services,384540,Miscellaneous Expenses,01-Mar-2017,3251510-1037,"8,460.00",CURIOUS 12 LTD.
Children and Young Peoples Services,Education,Supplies and Services,384199,Miscellaneous Expenses,01-Mar-2017,3251554-3271,895.00,INGRAM AV LTD T/A INGRAMSOUNDS.
Children and Young Peoples Services,Education,Transport,230007,Contract Hire,01-Mar-2017,3251563-2608,"1,973.79",JEFF ANDERSON COACHES LTD.
Children and Young Peoples Services,Education,Transport,230006,Contract Hire,01-Mar-2017,3251589-3180,640.00,LOCAL TRANSPORT LTD.
Children and Young Peoples Services,Education,Transport,230006,Contract Hire,01-Mar-2017,3251643-1708,"1,696.60",RAPID MINIBUSES.
Children and Young Peoples Services,Education,Transfer Payments,510026,School Children,01-Mar-2017,3251638-4,669.60,PLAYDAY NURSERY.
Resources,I.C.T. Services,Supplies and Services,304303,Equipment and Materials,01-Mar-2017,3251555-3243931,"15,028.82",INSIGHT DIRECT (UK) LTD.
Resources,I.C.T. Services,Supplies and Services,344015,Telephones,01-Mar-2017,3251684-JW51504,590.00,VODAFONE CORPORATE LTD.
Resources,Legal & Democratic Services,Supplies and Services,338025,Services,01-Mar-2017,306346-CW/2622-31/1/17,540.00,COCHRANE`S FUNERAL DIRECTORS.
Resources,Legal & Democratic Services,Supplies and Services,332047,Printing Stationery and Gen Off Exps,01-Mar-2017,3251476-1653,936.00,AUTO ITEMS LTD.
Transformation and Partnerships,Partnerships & Community Engagement Div.,Supplies and Services,384199,Miscellaneous Expenses,01-Mar-2017,3251514-100,719.99,DENESIDE ACTION GROUP.
Transformation and Partnerships,Partnerships & Community Engagement Div.,Cap Exp on Grants & Other Financial Assistance (REFCUS),918004,Contributions to other bodies,01-Mar-2017,3251522-VOUCHER16NB-TEES030,"3,000.00",EVENWOOD CRICKET CLUB.
Transformation and Partnerships,Partnerships & Community Engagement Div.,Supplies and Services,384085,Miscellaneous Expenses,01-Mar-2017,3251657-THOK10-16,500.00,SPENNYMOOR TOWN YOUTH FC.
Transformation and Partnerships,Partnerships & Community Engagement Div.,Transfer Payments,525030,Other,01-Mar-2017,3251664-VOUCHER15AB-EDRC007,708.60,SUPPORTIVE SRC LTD.
Transformation and Partnerships,Partnerships & Community Engagement Div.,Supplies and Services,384086,Miscellaneous Expenses,01-Mar-2017,3251687-VOUCHER16NB-EDUR094,"2,500.00",WHEATLEY HILL COMMUNITY ASSOCIATION.
Regeneration and Local Services,Planning & Assets,Supplies and Services,384540,Miscellaneous Expenses,01-Mar-2017,3251489-10890,"2,750.00",BUSINESS & ENTERPRISE COMMERCIAL LTD T/A BE GROUP.
Regeneration and Local Services,Planning & Assets,Supplies and Services,384700,Miscellaneous Expenses,01-Mar-2017,3251565-RED-03-2017-011,780.00,JL DURKIN.
Adult and Health Services,Planning & Service Strategy,Supplies and Services,338089,Services,01-Mar-2017,3251465-2412,"2,083.95",AIM PROJECT.
Adult and Health Services,Planning & Service Strategy,Supplies and Services,338089,Services,01-Mar-2017,3251513-3035241,"1,750.00",DAC BEACHCROFT LLP.
Adult and Health Services,Planning & Service Strategy,Supplies and Services,338094,Services,01-Mar-2017,3251534-HO00015,568.50,GLEBE CENTRE ENTERPRISES LTD.
Adult and Health Services,Planning & Service Strategy,Supplies and Services,340001,Postages,01-Mar-2017,3251647-9053817894,"1,121.56",ROYAL MAIL GROUP PLC.
Transformation and Partnerships,Policy & Communications Division,Supplies and Services,352001,Conference Expenses,01-Mar-2017,3251520-EIN0031851,"1,200.00",EMAP PUBLISHING LTD.
Regeneration and Local Services,Projects and Business services,Supplies and Services,304358,Equipment and Materials,01-Mar-2017,3251594-5BB,500.00,M & E & MR WALTON.
Regeneration and Local Services,Projects and Business services,Supplies and Services,340001,Postages,01-Mar-2017,3251647-9053772584,"25,565.89",ROYAL MAIL GROUP PLC.
Regeneration and Local Services,Projects and Business services,Supplies and Services,340001,Postages,01-Mar-2017,3251647-9053812692,"1,714.80",ROYAL MAIL GROUP PLC.
Transformation and Partnerships,Strategy Programmes and Performance,Employees,040149,Recruitment Instruction and Training,01-Mar-2017,3251499-5211508,"4,610.53",CIPFA LTD.
Regeneration and Local Services,Technical Services,Employees,040149,Recruitment Instruction and Training,01-Mar-2017,306360-32658,"1,500.00",JTL TRAINING PEOPLE.
Regeneration and Local Services,Technical Services,Fees,901004,Capital - Detailed Design,01-Mar-2017,306369-NEI-EXP-03-2017-001,"2,148.60",REDACTED - PAYMENT TO INDIVIDUAL
Regeneration and Local Services,Technical Services,Third Party Payments,430128,Rendered by Private Contractors,01-Mar-2017,306387-1-2/2/17,665.00,RE SHANN.
Regeneration and Local Services,Technical Services,Fees,901004,Capital - Detailed Design,01-Mar-2017,3251461-NEI-EXP-03-2017-002,544.50,ADDISONS CHARTERED SURVEYORS.
Regeneration and Local Services,Technical Services,Supplies and Services,304221,Equipment and Materials,01-Mar-2017,3251464-24381130,"2,029.26",AGGREGATE INDUSTRIES UK LTD.
Regeneration and Local Services,Technical Services,Supplies and Services,304221,Equipment and Materials,01-Mar-2017,3251464-24381131,"1,189.72",AGGREGATE INDUSTRIES UK LTD.
Regeneration and Local Services,Technical Services,Supplies and Services,304221,Equipment and Materials,01-Mar-2017,3251464-24381132,605.08,AGGREGATE INDUSTRIES UK LTD.
Regeneration and Local Services,Technical Services,Supplies and Services,304221,Equipment and Materials,01-Mar-2017,3251464-24381133,"1,197.08",AGGREGATE INDUSTRIES UK LTD.
Regeneration and Local Services,Technical Services,Supplies and Services,304358,Equipment and Materials,01-Mar-2017,3251479-MG05288,600.00,BAILEY CONCRETE PUMPING LTD.
Regeneration and Local Services,Technical Services,Supplies and Services,304221,Equipment and Materials,01-Mar-2017,3251484-BMPR/055/LW,"1,760.00",BISHOP MIDDLEHAM PLANT & RECYCLING LTD.
Regeneration and Local Services,Technical Services,Stock,926900,Stock in hand-Inventory system,01-Mar-2017,3251492-851700293,572.68,CARLISLE CONSTRUCTION MATERIALS LTD.
Regeneration and Local Services,Technical Services,Supplies and Services,304357,Equipment and Materials,01-Mar-2017,3251528-DCC120217,"18,161.27",GAP GROUP LTD.
Regeneration and Local Services,Technical Services,Supplies and Services,384199,Miscellaneous Expenses,01-Mar-2017,3251529-107565651,"3,685.00",GATESHEAD COUNCIL.
Regeneration and Local Services,Technical Services,Third Party Payments,430127,Rendered by Private Contractors,01-Mar-2017,3251551-2353,679.00,IAN C LIDDLE.
Regeneration and Local Services,Technical Services,Stock,926900,Stock in hand-Inventory system,01-Mar-2017,3251556-568329,"2,424.80",INSTARMAC GROUP PLC.
Regeneration and Local Services,Technical Services,Stock,926900,Stock in hand-Inventory system,01-Mar-2017,3251556-568360,915.60,INSTARMAC GROUP PLC.
Regeneration and Local Services,Technical Services,Employees,040149,Recruitment Instruction and Training,01-Mar-2017,3251557-4417-0002,"10,400.00",INSTITUTE OF HIGHWAY ENGINEERS (IHE).
Regeneration and Local Services,Technical Services,Third Party Payments,430127,Rendered by Private Contractors,01-Mar-2017,3251559-1147,705.00,J & JG GILL & SONS LTD.
Regeneration and Local Services,Technical Services,Supplies and Services,304358,Equipment and Materials,01-Mar-2017,3251571-26298,"1,696.50",JOHN R BUTTERFIELD LTD.
Regeneration and Local Services,Technical Services,Supplies and Services,304358,Equipment and Materials,01-Mar-2017,3251571-26311,970.50,JOHN R BUTTERFIELD LTD.
Regeneration and Local Services,Technical Services,Supplies and Services,304358,Equipment and Materials,01-Mar-2017,3251571-26334,"1,696.50",JOHN R BUTTERFIELD LTD.
Regeneration and Local Services,Technical Services,Supplies and Services,304358,Equipment and Materials,01-Mar-2017,3251571-26335,"1,215.00",JOHN R BUTTERFIELD LTD.
Regeneration and Local Services,Technical Services,Supplies and Services,304358,Equipment and Materials,01-Mar-2017,3251571-26341,970.50,JOHN R BUTTERFIELD LTD.
Regeneration and Local Services,Technical Services,Supplies and Services,304358,Equipment and Materials,01-Mar-2017,3251594-58A,"5,138.00",M & E & MR WALTON.
Regeneration and Local Services,Technical Services,Supplies and Services,304221,Equipment and Materials,01-Mar-2017,3251599-ZDB0028056,773.47,MARSHALLS MONO LTD.
Regeneration and Local Services,Technical Services,Supplies and Services,304221,Equipment and Materials,01-Mar-2017,3251611-0000058053,"2,264.80",NAL LTD.
Regeneration and Local Services,Technical Services,Premises,120009,Energy Costs,01-Mar-2017,3251624-NNO7XHGP,"485,869.97",NPOWER.
Regeneration and Local Services,Technical Services,Stock,926900,Stock in hand-Inventory system,01-Mar-2017,3251631-XL191745,796.50,PARK ELECTRICAL DISTRIBUTORS LTD.
Regeneration and Local Services,Technical Services,Third Party Payments,430100,Rendered by Private Contractors,01-Mar-2017,3251641-96390,550.00,PROTECTOR SECURITY GROUP LTD.
Regeneration and Local Services,Technical Services,Supplies and Services,304221,Equipment and Materials,01-Mar-2017,3251651-72933,"2,396.31",SIMMONSIGNS LTD.
Regeneration and Local Services,Technical Services,Stock,926900,Stock in hand-Inventory system,01-Mar-2017,3251653-189941,"2,109.60",SNAPFAST.
Regeneration and Local Services,Technical Services,Stock,926900,Stock in hand-Inventory system,01-Mar-2017,3251653-189942,"1,259.90",SNAPFAST.
Regeneration and Local Services,Technical Services,Stock,926900,Stock in hand-Inventory system,01-Mar-2017,3251653-189943,"4,131.30",SNAPFAST.
Regeneration and Local Services,Technical Services,Stock,926900,Stock in hand-Inventory system,01-Mar-2017,3251653-189945,703.20,SNAPFAST.
Regeneration and Local Services,Technical Services,Stock,926900,Stock in hand-Inventory system,01-Mar-2017,3251676-N/IN190592,966.44,THOMAS OWEN & SONS (NEWCASTLE) LTD.
Regeneration and Local Services,Technical Services,Stock,926900,Stock in hand-Inventory system,01-Mar-2017,3251677-N/IN190588,"1,560.00",THOMAS OWEN & SONS (NEWCASTLE) LTD.
Regeneration and Local Services,Technical Services,Supplies and Services,304221,Equipment and Materials,01-Mar-2017,3251680-170119,849.23,TYNEDALE ROADSTONE LTD.
Regeneration and Local Services,Technical Services,Supplies and Services,304221,Equipment and Materials,01-Mar-2017,3251680-170120,846.60,TYNEDALE ROADSTONE LTD.
Regeneration and Local Services,Technical Services,Supplies and Services,304358,Equipment and Materials,01-Mar-2017,3251685-42956,"1,722.00",W MARLEY AGRICULTURAL CONTRACTORS LTD.
Regeneration and Local Services,Technical Services,Stock,926900,Stock in hand-Inventory system,01-Mar-2017,3251690-40223867,618.20,WOLSELEY UK LTD.
Regeneration and Local Services,Transport and Contracted Services,Premises,120009,Energy Costs,01-Mar-2017,3251624-NNO7XHG3,"4,158.08",NPOWER.
Regeneration and Local Services,Transport and Contracted Services,Supplies and Services,338078,Services,01-Mar-2017,3251650-131154,707.84,SHOWSEC INTERNATIONAL LTD.
Adult and Health Services,Adult Care,Supplies and Services,338366,Services,02-Mar-2017,3251745-38461,781.25,CARE ABILITY.
Children and Young Peoples Services,Childrens Services,Third Party Payments,440031,Other Third Party Payments,02-Mar-2017,3251772-CAS-03-2017-005,"1,180.21",REDACTED - PAYMENT TO INDIVIDUAL
Children and Young Peoples Services,Childrens Services,Supplies and Services,364340,Grants to Voluntary Organisations,02-Mar-2017,3251913-CAS-03-2017-004,"1,356.60",PARAMOUNT CARE & SAFETY LTD.
Children and Young Peoples Services,Childrens Services,Supplies and Services,384199,Miscellaneous Expenses,02-Mar-2017,3251846-L2C0042016,802.58,INVESTING IN CHILDREN CIC.
Children and Young Peoples Services,Childrens Services,Third Party Payments,425021,Rendered by Voluntary Organisations,02-Mar-2017,3251700-1702/03,"11,700.00",ACORN CARE (NE) LTD T/A ACORN FOSTERING SERVICES.
Children and Young Peoples Services,Childrens Services,Third Party Payments,425021,Rendered by Voluntary Organisations,02-Mar-2017,3251700-1703/03,"12,953.57",ACORN CARE (NE) LTD T/A ACORN FOSTERING SERVICES.
Children and Young Peoples Services,Childrens Services,Third Party Payments,425041,Rendered by Voluntary Organisations,02-Mar-2017,3251974-996184,"2,250.00",ST FRANCIS CHILDRENS SOCIETY.
Children and Young Peoples Services,Childrens Services,Third Party Payments,440999,Other Third Party Payments,02-Mar-2017,3251793-02309,750.00,EAST DURHAM PARTNERSHIP LTD.
Children and Young Peoples Services,Childrens Services,Supplies and Services,364352,Grants to Voluntary Organisations,02-Mar-2017,3251810-277,"11,440.00",FOREVER CARE.
Adult and Health Services,Commissioning,Third Party Payments,479111,Purchase of Care,02-Mar-2017,3251775-SLA-4THQUARTER,"3,294.00",DERWENTSIDE MIND.
Resources,Corporate Finance,Supplies and Services,338066,Services,02-Mar-2017,3251930-1354698037,"11,348.00",PRICEWATERHOUSECOOPERS.
Regeneration and Local Services,Culture & Sport,Supplies and Services,304221,Equipment and Materials,02-Mar-2017,3251708-9437,"1,400.60",ALISON BLACK LTD T/A SPORTMAX.
Regeneration and Local Services,Culture & Sport,Supplies and Services,324001,Provisions,02-Mar-2017,3251746-843492766,"1,086.93",CARLSBERG UK LTD.
Regeneration and Local Services,Culture & Sport,Premises,145023,Cleaning and Domestic Supplies,02-Mar-2017,3251824-08/522534,577.60,GREENHAM TRADING LTD.
Regeneration and Local Services,Culture & Sport,Supplies and Services,332029,Printing Stationery and Gen Off Exps,02-Mar-2017,3251957-3769,525.00,SAVILLS UK LTD.
Regeneration and Local Services,Direct Services,Third Party Payments,430100,Rendered by Private Contractors,02-Mar-2017,3251738-72500054,"31,771.00",BRUYNZEEL STORAGE SYSTEMS LTD.
Regeneration and Local Services,Direct Services,Supplies and Services,304358,Equipment and Materials,02-Mar-2017,3251852-26369,"1,309.00",JOHN R BUTTERFIELD LTD.
Regeneration and Local Services,Direct Services,Supplies and Services,304358,Equipment and Materials,02-Mar-2017,3251852-26395,"1,277.00",JOHN R BUTTERFIELD LTD.
Regeneration and Local Services,Direct Services,Supplies and Services,372009,Subscriptions,02-Mar-2017,3251860-112637,995.00,KEEP BRITAIN TIDY.
Regeneration and Local Services,Direct Services,Supplies and Services,304221,Equipment and Materials,02-Mar-2017,3251914-BR562653,826.43,PARK ELECTRICAL DISTRIBUTORS LTD.
Regeneration and Local Services,Direct Services,Supplies and Services,304221,Equipment and Materials,02-Mar-2017,3251914-XL191805,620.00,PARK ELECTRICAL DISTRIBUTORS LTD.
Regeneration and Local Services,Direct Services,Third Party Payments,430100,Rendered by Private Contractors,02-Mar-2017,3251927-18284,"1,985.09",POLAR (NE) LTD.
Regeneration and Local Services,Direct Services,Supplies and Services,338078,Services,02-Mar-2017,3251954-6466,"1,368.00",SAFEGUARD SECURITY (NE) LTD.
Regeneration and Local Services,Direct Services,Supplies and Services,304221,Equipment and Materials,02-Mar-2017,3252004-30916,"1,295.00",TOTAL PUMP SOLUTIONS LTD.
Regeneration and Local Services,Direct Services,Supplies and Services,304083,Equipment and Materials,02-Mar-2017,3252006-120116,570.78,TP ELECTRICAL SUPPLIES & FIXINGS LTD.
Regeneration and Local Services,Direct Services,Supplies and Services,304221,Equipment and Materials,02-Mar-2017,3252026-40270925,638.75,WOLSELEY UK LTD.
Regeneration and Local Services,Economic Development and Housing,Supplies and Services,336005,Advertising,02-Mar-2017,3251739-10893,"1,500.00",BUSINESS & ENTERPRISE COMMERCIAL LTD T/A BE GROUP.
Regeneration and Local Services,Economic Development and Housing,Supplies and Services,384899,Miscellaneous Expenses,02-Mar-2017,3251791-304032,"2,000.00",DURHAM UNIVERSITY.
Regeneration and Local Services,Economic Development and Housing,Supplies and Services,344033,Telephones,02-Mar-2017,3252000-003705411,"1,026.33",THE PHONE CO-OP.
Children and Young Peoples Services,Education,Third Party Payments,440080,Other Third Party Payments,02-Mar-2017,3251901-0000031182,"13,279.50",NORTH EAST AUTISM SOCIETY.
Children and Young Peoples Services,Education,Supplies and Services,338094,Services,02-Mar-2017,3251868-60020B4,"1,602.00",LEISUREWORKS.
Children and Young Peoples Services,Education,Supplies and Services,384199,Miscellaneous Expenses,02-Mar-2017,3251998-600479,"8,000.00",THE KING`S SINGERS.
Children and Young Peoples Services,Education,Construction Work,908105,Construction work,02-Mar-2017,3251953-3176,"1,178.88",SAFE STRIP UK LTD.
Children and Young Peoples Services,Education,Construction Work,908105,Construction work,02-Mar-2017,3251953-3193,"8,407.74",SAFE STRIP UK LTD.
Resources,I.C.T. Services,Supplies and Services,304245,Equipment and Materials,02-Mar-2017,3251929-8576384,506.48,PREMIER PAPER GROUP LTD.
Resources,I.C.T. Services,Supplies and Services,332029,Printing Stationery and Gen Off Exps,02-Mar-2017,3251937-14538,644.00,RADECAL SIGNS GRAPHICS & ADVERTISING.
Resources,Legal & Democratic Services,Supplies and Services,332029,Printing Stationery and Gen Off Exps,02-Mar-2017,3251702-PSI0008781,"2,897.60",ADARE INSPIRED COMMUNICATIONS.
Resources,Legal & Democratic Services,Supplies and Services,338025,Services,02-Mar-2017,3251774-00000404,700.00,DERWENTSIDE FUNERAL SERVICE.
Transformation and Partnerships,Partnerships & Community Engagement Div.,Transfer Payments,525030,Other,02-Mar-2017,3251799-VOUCHER15AB-DVLY017,"11,774.00",ENGINEERING DEVELOPMENT TRUST.
Transformation and Partnerships,Partnerships & Community Engagement Div.,Supplies and Services,384086,Miscellaneous Expenses,02-Mar-2017,3251827-VOUCHER16NB-EDUR049,"21,812.00",GROUNDWORK NORTH EAST.
Transformation and Partnerships,Partnerships & Community Engagement Div.,Cap Exp on Grants & Other Financial Assistance (REFCUS),918004,Contributions to other bodies,02-Mar-2017,3251975-VOUCHER16NB-WEAR015,"2,716.00",ST JOHNS CHAPEL RECREATION GROUND.
Transformation and Partnerships,Partnerships & Community Engagement Div.,Transfer Payments,525030,Other,02-Mar-2017,3252027-VOUCHER16AB,540.00,WOLSINGHAM PRIMARY SCHOOL FUND.
Regeneration and Local Services,Planning & Assets,Construction Work,908105,Construction work,02-Mar-2017,3251872-45263,840.00,LUCION ENVIRONMENTAL LLP LTD.
Regeneration and Local Services,Planning & Assets,Supplies and Services,384199,Miscellaneous Expenses,02-Mar-2017,3251994-726,"10,087.20",TERRA FIRMA ENVIRONMENTAL LTD.
Regeneration and Local Services,Projects and Business services,Supplies and Services,304358,Equipment and Materials,02-Mar-2017,3251852-26408,638.00,JOHN R BUTTERFIELD LTD.
Adult and Health Services,Public Health,Third Party Payments,460802,Contract Payments,02-Mar-2017,3251720-A83021Q2IUCD16/17,"4,314.34",AUCKLAND MEDICAL GROUP.
Adult and Health Services,Public Health,Third Party Payments,460802,Contract Payments,02-Mar-2017,3251720-A83021Q3IUCD16/17,"4,991.86",AUCKLAND MEDICAL GROUP.
Adult and Health Services,Public Health,Third Party Payments,460802,Contract Payments,02-Mar-2017,3251724-A83046Q3IUCD16/17,"2,946.46",BARNARD CASTLE SURGERY.
Adult and Health Services,Public Health,Third Party Payments,460802,Contract Payments,02-Mar-2017,3251727-A83037Q3IUCD16/17,"3,891.02",BEWICK CRESCENT SURGERY.
Adult and Health Services,Public Health,Third Party Payments,460802,Contract Payments,02-Mar-2017,3251731-A83025Q3IUCD16/17,"3,600.98",BISHOPGATE MEDICAL CENTRE.
Adult and Health Services,Public Health,Third Party Payments,460802,Contract Payments,02-Mar-2017,3251732-A83007Q3IUCD16/17,"4,443.57",BLACKHALL & PETERLEE PRACTICE.
Adult and Health Services,Public Health,Third Party Payments,460802,Contract Payments,02-Mar-2017,3251749-A83038Q3IUCD16/17,"1,383.68",CEDARS MEDICAL GROUP.
Adult and Health Services,Public Health,Third Party Payments,460802,Contract Payments,02-Mar-2017,3251752-A83050Q3IUCD16/17,"2,194.55",CESTRIA HEALTH CENTRE.
Adult and Health Services,Public Health,Third Party Payments,460802,Contract Payments,02-Mar-2017,3251755-A83036Q3IUCD16/17,"3,585.16",CHASTLETON MEDICAL GROUP.
Adult and Health Services,Public Health,Third Party Payments,460802,Contract Payments,02-Mar-2017,3251756-A83055Q3IUCD16/17,"1,287.06",CHEVELEY PARK MEDICAL CENTRE.
Adult and Health Services,Public Health,Third Party Payments,460802,Contract Payments,02-Mar-2017,3251758-A83011Q3IUCD16/17,"5,576.72",CLAYPATH & UNIVERSITY MEDICAL GROUP.
Adult and Health Services,Public Health,Third Party Payments,460802,Contract Payments,02-Mar-2017,3251778-A83076Q3IUCD16/17,"1,761.17",DIPTON SURGERY.
Adult and Health Services,Public Health,Third Party Payments,460802,Contract Payments,02-Mar-2017,3251782-A83073Q3IUCD16/17,"2,162.00","DR BRIAN LAMBERT, DR IAN BRUNT, & DR RACHEL NG."
Adult and Health Services,Public Health,Third Party Payments,460802,Contract Payments,02-Mar-2017,3251784-A83054Q3IUCD16/17,"5,383.11",DR PRM JONES & PARTNERS.
Adult and Health Services,Public Health,Third Party Payments,460802,Contract Payments,02-Mar-2017,3251785-A83052Q2IUCD16/17,"1,697.20",DR WOOD & PARTNERS.
Adult and Health Services,Public Health,Third Party Payments,460802,Contract Payments,02-Mar-2017,3251785-A83052Q3IUCD16/17,"1,657.44",DR WOOD & PARTNERS.
Adult and Health Services,Public Health,Third Party Payments,460802,Contract Payments,02-Mar-2017,3251786-A83018Q3IUCD16/17,"5,549.82",DR YOUNG & PARTNERS.
Adult and Health Services,Public Health,Third Party Payments,460802,Contract Payments,02-Mar-2017,3251787-A83030Q3IUCD16/17,760.63,DUNELM MEDICAL PRACTICE.
Adult and Health Services,Public Health,Third Party Payments,460802,Contract Payments,02-Mar-2017,3251801-A83626Q3IUCD16/17,536.42,EVENWOOD MEDICAL PRACTICE.
Adult and Health Services,Public Health,Third Party Payments,460802,Contract Payments,02-Mar-2017,3251814-A83061Q2IUCD16/17,994.57,GAINFORD SURGERY.
Adult and Health Services,Public Health,Third Party Payments,460802,Contract Payments,02-Mar-2017,3251814-A83061Q3IUCD16/17,914.34,GAINFORD SURGERY.
Adult and Health Services,Public Health,Third Party Payments,460802,Contract Payments,02-Mar-2017,3251838-A83044Q3IUCD16/17,"1,646.82",HORDEN GROUP PRACTICE.
Adult and Health Services,Public Health,Third Party Payments,460802,Contract Payments,02-Mar-2017,3251844-A83012Q3IUCD16/17,"7,377.82",INTRAHEALTH LTD.*
Adult and Health Services,Public Health,Third Party Payments,460802,Contract Payments,02-Mar-2017,3251858-A83066Q3IUCD16/17,"2,391.33",JUBILEE MEDICAL GROUP.
Adult and Health Services,Public Health,Third Party Payments,460802,Contract Payments,02-Mar-2017,3251866-A83636Q3IUCD16/17,"2,547.27",LEADGATE SURGERY.
Adult and Health Services,Public Health,Third Party Payments,460802,Contract Payments,02-Mar-2017,3251877-A83051Q3IUCD16/17,"2,146.36",MARLBOROUGH SURGERY.
Adult and Health Services,Public Health,Third Party Payments,460802,Contract Payments,02-Mar-2017,3251882-A83637Q3IUCD16/17,"1,414.37",MIDDLE CHARE MEDICAL GROUP.
Adult and Health Services,Public Health,Third Party Payments,460802,Contract Payments,02-Mar-2017,3251883-A83028Q3IUCD16/17,"1,536.76",MIDDLE CHARE MEDICAL GROUP.
Adult and Health Services,Public Health,Third Party Payments,460802,Contract Payments,02-Mar-2017,3251910-A83618Q3IUCD16/17,"2,463.88",OAKFIELDS HEALTH CENTRE.
Adult and Health Services,Public Health,Third Party Payments,460802,Contract Payments,02-Mar-2017,3251919-A83074Q3IUCD16/17,"4,766.68",PEASEWAY PARTNERSHIP.
Adult and Health Services,Public Health,Third Party Payments,460802,Contract Payments,02-Mar-2017,3251920-A83033Q3IUCD16/17,"2,936.23",PELTON & FELLROSE MEDICAL GROUP.
Adult and Health Services,Public Health,Third Party Payments,460802,Contract Payments,02-Mar-2017,3251936-A83049Q3IUCD16/17,"5,654.58",QUEENS ROAD SURGERY.
Adult and Health Services,Public Health,Third Party Payments,460802,Contract Payments,02-Mar-2017,3251952-A83026Q3IUCD16/17,"4,659.39",SACRISTON SURGERY.
Adult and Health Services,Public Health,Third Party Payments,460802,Contract Payments,02-Mar-2017,3251964-A83627Q3IUCD16/17,610.26,SILVERDALE FAMILY PRACTICE.
Adult and Health Services,Public Health,Third Party Payments,460802,Contract Payments,02-Mar-2017,3251968-A83619Q3IUCD16/17,"1,241.33",SOUTHDENE MEDICAL CENTRE.
Adult and Health Services,Public Health,Third Party Payments,460802,Contract Payments,02-Mar-2017,3251980-A83015Q3IUCD16/17,"3,561.47",STATION VIEW MEDICAL CENTRE.
Adult and Health Services,Public Health,Third Party Payments,460802,Contract Payments,02-Mar-2017,3251989-A83016Q3IUCD16/17,"1,198.25",TANFIELD VIEW SURGERY.
Adult and Health Services,Public Health,Third Party Payments,460802,Contract Payments,02-Mar-2017,3251999-A83022Q3IUCD16/17,"3,545.68",THE MEDICAL GROUP.
Adult and Health Services,Public Health,Third Party Payments,460802,Contract Payments,02-Mar-2017,3252023-A83024Q3IUCD16/17,"3,525.17",WEST RAINTON SURGERY.
Adult and Health Services,Public Health,Third Party Payments,460802,Contract Payments,02-Mar-2017,3252025-A83003Q3IUCD16/17,"1,908.70",WILLINGTON MEDICAL GROUP.
Regeneration and Local Services,Technical Services,Supplies and Services,304221,Equipment and Materials,02-Mar-2017,3251705-24386529,829.37,AGGREGATE INDUSTRIES UK LTD.
Regeneration and Local Services,Technical Services,Supplies and Services,304221,Equipment and Materials,02-Mar-2017,3251705-24386530,"1,188.50",AGGREGATE INDUSTRIES UK LTD.
Regeneration and Local Services,Technical Services,Supplies and Services,304221,Equipment and Materials,02-Mar-2017,3251705-24386531,"1,222.65",AGGREGATE INDUSTRIES UK LTD.
Regeneration and Local Services,Technical Services,Supplies and Services,304221,Equipment and Materials,02-Mar-2017,3251705-24386532,779.98,AGGREGATE INDUSTRIES UK LTD.
Regeneration and Local Services,Technical Services,Supplies and Services,304221,Equipment and Materials,02-Mar-2017,3251705-24386533,703.51,AGGREGATE INDUSTRIES UK LTD.
Regeneration and Local Services,Technical Services,Supplies and Services,304221,Equipment and Materials,02-Mar-2017,3251705-24386534,591.88,AGGREGATE INDUSTRIES UK LTD.
Regeneration and Local Services,Technical Services,Supplies and Services,304221,Equipment and Materials,02-Mar-2017,3251705-24386535,"3,289.88",AGGREGATE INDUSTRIES UK LTD.
Regeneration and Local Services,Technical Services,Stock,926900,Stock in hand-Inventory system,02-Mar-2017,3251734-14048,560.00,BOXCLEVER TOTAL WASTE MANAGEMENT LTD.
Regeneration and Local Services,Technical Services,Supplies and Services,304358,Equipment and Materials,02-Mar-2017,3251848-5305271,"1,053.00",JA GILSON (AGRICULTURAL CONTRACTORS) LTD.
Regeneration and Local Services,Technical Services,Supplies and Services,304358,Equipment and Materials,02-Mar-2017,3251848-5305272,"1,053.00",JA GILSON (AGRICULTURAL CONTRACTORS) LTD.
Regeneration and Local Services,Technical Services,Supplies and Services,304358,Equipment and Materials,02-Mar-2017,3251852-26339,610.20,JOHN R BUTTERFIELD LTD.
Regeneration and Local Services,Technical Services,Supplies and Services,304358,Equipment and Materials,02-Mar-2017,3251852-26367,"1,696.50",JOHN R BUTTERFIELD LTD.
Regeneration and Local Services,Technical Services,Supplies and Services,304358,Equipment and Materials,02-Mar-2017,3251852-26368,990.00,JOHN R BUTTERFIELD LTD.
Regeneration and Local Services,Technical Services,Supplies and Services,304358,Equipment and Materials,02-Mar-2017,3251852-26370,590.00,JOHN R BUTTERFIELD LTD.
Regeneration and Local Services,Technical Services,Supplies and Services,304358,Equipment and Materials,02-Mar-2017,3251852-26372,741.00,JOHN R BUTTERFIELD LTD.
Regeneration and Local Services,Technical Services,Supplies and Services,304358,Equipment and Materials,02-Mar-2017,3251852-26375,758.20,JOHN R BUTTERFIELD LTD.
Regeneration and Local Services,Technical Services,Supplies and Services,304358,Equipment and Materials,02-Mar-2017,3251852-26376,725.40,JOHN R BUTTERFIELD LTD.
Regeneration and Local Services,Technical Services,Supplies and Services,304358,Equipment and Materials,02-Mar-2017,3251852-26378,914.20,JOHN R BUTTERFIELD LTD.
Regeneration and Local Services,Technical Services,Supplies and Services,304358,Equipment and Materials,02-Mar-2017,3251852-26379,850.80,JOHN R BUTTERFIELD LTD.
Regeneration and Local Services,Technical Services,Supplies and Services,304358,Equipment and Materials,02-Mar-2017,3251852-26381,551.00,JOHN R BUTTERFIELD LTD.
Regeneration and Local Services,Technical Services,Supplies and Services,304358,Equipment and Materials,02-Mar-2017,3251852-26394,"1,696.50",JOHN R BUTTERFIELD LTD.
Regeneration and Local Services,Technical Services,Supplies and Services,304358,Equipment and Materials,02-Mar-2017,3251852-26397,592.50,JOHN R BUTTERFIELD LTD.
Regeneration and Local Services,Technical Services,Supplies and Services,304358,Equipment and Materials,02-Mar-2017,3251852-26400,642.00,JOHN R BUTTERFIELD LTD.
Regeneration and Local Services,Technical Services,Supplies and Services,304358,Equipment and Materials,02-Mar-2017,3251852-26401,725.40,JOHN R BUTTERFIELD LTD.
Regeneration and Local Services,Technical Services,Supplies and Services,304358,Equipment and Materials,02-Mar-2017,3251852-26402,725.40,JOHN R BUTTERFIELD LTD.
Regeneration and Local Services,Technical Services,Supplies and Services,304358,Equipment and Materials,02-Mar-2017,3251852-26403,783.60,JOHN R BUTTERFIELD LTD.
Regeneration and Local Services,Technical Services,Supplies and Services,304358,Equipment and Materials,02-Mar-2017,3251852-26404,906.50,JOHN R BUTTERFIELD LTD.
Regeneration and Local Services,Technical Services,Supplies and Services,304358,Equipment and Materials,02-Mar-2017,3251852-26422,"1,696.50",JOHN R BUTTERFIELD LTD.
Regeneration and Local Services,Technical Services,Supplies and Services,304358,Equipment and Materials,02-Mar-2017,3251852-26428,914.20,JOHN R BUTTERFIELD LTD.
Regeneration and Local Services,Technical Services,Supplies and Services,304358,Equipment and Materials,02-Mar-2017,3251852-26429,914.20,JOHN R BUTTERFIELD LTD.
Regeneration and Local Services,Technical Services,Supplies and Services,304358,Equipment and Materials,02-Mar-2017,3251852-26430,747.00,JOHN R BUTTERFIELD LTD.
Regeneration and Local Services,Technical Services,Stock,926900,Stock in hand-Inventory system,02-Mar-2017,3251856-STI452088,876.00,JT DOVE LTD.
Regeneration and Local Services,Technical Services,Third Party Payments,430100,Rendered by Private Contractors,02-Mar-2017,3251859-19615,"1,525.80",KAEFER LTD.
Regeneration and Local Services,Technical Services,Third Party Payments,430100,Rendered by Private Contractors,02-Mar-2017,3251905-DI20263509,"1,493.07",NORTHERN POWERGRID (NORTHEAST) LTD.
Regeneration and Local Services,Technical Services,Third Party Payments,430100,Rendered by Private Contractors,02-Mar-2017,3251905-DI20263511,995.38,NORTHERN POWERGRID (NORTHEAST) LTD.
Regeneration and Local Services,Technical Services,Third Party Payments,430100,Rendered by Private Contractors,02-Mar-2017,3251905-DI20263513,"4,531.92",NORTHERN POWERGRID (NORTHEAST) LTD.
Regeneration and Local Services,Technical Services,Third Party Payments,430100,Rendered by Private Contractors,02-Mar-2017,3251905-DI20263516,734.59,NORTHERN POWERGRID (NORTHEAST) LTD.
Regeneration and Local Services,Technical Services,Third Party Payments,430100,Rendered by Private Contractors,02-Mar-2017,3251923-4699,"4,192.50",PINKNEY BUILDING CONTRACTORS LTD.
Regeneration and Local Services,Technical Services,Third Party Payments,430100,Rendered by Private Contractors,02-Mar-2017,3251923-4701,"4,192.50",PINKNEY BUILDING CONTRACTORS LTD.
Regeneration and Local Services,Technical Services,Third Party Payments,430100,Rendered by Private Contractors,02-Mar-2017,3251923-4708,"4,192.50",PINKNEY BUILDING CONTRACTORS LTD.
Regeneration and Local Services,Technical Services,Third Party Payments,430100,Rendered by Private Contractors,02-Mar-2017,3251923-4718,"4,192.50",PINKNEY BUILDING CONTRACTORS LTD.
Regeneration and Local Services,Technical Services,Third Party Payments,430100,Rendered by Private Contractors,02-Mar-2017,3251923-4725,"4,192.50",PINKNEY BUILDING CONTRACTORS LTD.
Regeneration and Local Services,Technical Services,Third Party Payments,430100,Rendered by Private Contractors,02-Mar-2017,3251923-4737,"1,901.46",PINKNEY BUILDING CONTRACTORS LTD.
Regeneration and Local Services,Technical Services,Third Party Payments,430100,Rendered by Private Contractors,02-Mar-2017,3251932-96666,550.00,PROTECTOR SECURITY GROUP LTD.
Regeneration and Local Services,Technical Services,Third Party Payments,430100,Rendered by Private Contractors,02-Mar-2017,3251932-96668,550.00,PROTECTOR SECURITY GROUP LTD.
Regeneration and Local Services,Technical Services,Third Party Payments,430100,Rendered by Private Contractors,02-Mar-2017,3251932-96670,550.00,PROTECTOR SECURITY GROUP LTD.
Regeneration and Local Services,Technical Services,Supplies and Services,304358,Equipment and Materials,02-Mar-2017,3251950-1114,"1,757.00",S & R LANDSCAPES.
Regeneration and Local Services,Technical Services,Supplies and Services,304358,Equipment and Materials,02-Mar-2017,3251950-1115,"2,108.00",S & R LANDSCAPES.
Regeneration and Local Services,Technical Services,Supplies and Services,304358,Equipment and Materials,02-Mar-2017,3251950-1117,"2,003.00",S & R LANDSCAPES.
Regeneration and Local Services,Technical Services,Construction Work,908105,Construction work,02-Mar-2017,3251962-636,"7,200.00",SHERIFF TECHNOLOGIES LTD.
Regeneration and Local Services,Technical Services,Supplies and Services,304358,Equipment and Materials,02-Mar-2017,3251995-22457,770.00,TEWARD BROS LTD.
Regeneration and Local Services,Technical Services,Supplies and Services,304221,Equipment and Materials,02-Mar-2017,3252011-170155,614.80,TYNEDALE ROADSTONE LTD.
Regeneration and Local Services,Technical Services,Construction Work,908105,Construction work,02-Mar-2017,3252013-092626,"2,414.00",UNIPART DORMAN.
Regeneration and Local Services,Technical Services,Stock,926900,Stock in hand-Inventory system,02-Mar-2017,3252026-40270015,628.18,WOLSELEY UK LTD.
Adult and Health Services,Adult Care,Transport,230005,Contract Hire,03-Mar-2017,3252041-21711,576.00,24/7 TAXI SERVICES LTD.
Adult and Health Services,Adult Care,Supplies and Services,384504,Miscellaneous Expenses,03-Mar-2017,3252093-AHS01353,"1,501.97",AUCKLAND HOME SOLUTIONS CIC.
Adult and Health Services,Adult Care,Transport,230005,Contract Hire,03-Mar-2017,3252097-14,542.00,AXLE TAXIS.
Adult and Health Services,Adult Care,Supplies and Services,338366,Services,03-Mar-2017,3252126-38488,812.35,CARE ABILITY.
Adult and Health Services,Adult Care,Supplies and Services,338366,Services,03-Mar-2017,3252126-38502,"2,468.20",CARE ABILITY.
Adult and Health Services,Adult Care,Supplies and Services,338366,Services,03-Mar-2017,3252126-38503,"16,126.70",CARE ABILITY.
Adult and Health Services,Adult Care,Transport,230005,Contract Hire,03-Mar-2017,3252213-10062,"1,600.00",G & P JOHNSON LTD T/A NIGHTINGALE COACHES.
Adult and Health Services,Adult Care,Transport,230005,Contract Hire,03-Mar-2017,3252213-10063,"1,200.00",G & P JOHNSON LTD T/A NIGHTINGALE COACHES.
Adult and Health Services,Adult Care,Transport,230005,Contract Hire,03-Mar-2017,3252213-10064,"1,078.00",G & P JOHNSON LTD T/A NIGHTINGALE COACHES.
Adult and Health Services,Adult Care,Transport,230005,Contract Hire,03-Mar-2017,3252213-10065,"1,180.00",G & P JOHNSON LTD T/A NIGHTINGALE COACHES.
Adult and Health Services,Adult Care,Transport,230005,Contract Hire,03-Mar-2017,3252233-DW108,"1,200.00",HIPPY`S TAXI.
Adult and Health Services,Adult Care,Transport,230005,Contract Hire,03-Mar-2017,3252291-590217,975.00,MARK MUSGROVE T/A MARKS TAXIS.
Adult and Health Services,Adult Care,Transport,230005,Contract Hire,03-Mar-2017,3252361-0513,880.00,PETER`S PRIVATE HIRE/PETER BEST.
Adult and Health Services,Adult Care,Third Party Payments,478151,Purchase of Care,03-Mar-2017,3252375-00002227,"1,704.08",POTENSIAL LTD T/A POTENS
Adult and Health Services,Adult Care,Third Party Payments,478151,Purchase of Care,03-Mar-2017,3252390-SI/00013385,"4,660.50",RICHMOND FELLOWSHIP.
Resources,Centrally Administered costs,Supplies and Services,338013,Services,03-Mar-2017,3252295-I256637,"25,068.00",MAZARS LLP.
Children and Young Peoples Services,Childrens Services,Supplies and Services,384199,Miscellaneous Expenses,03-Mar-2017,3252063-CAS-03-2017-013,"2,711.25",ADOPTION MATTERS NORTHWEST.
Children and Young Peoples Services,Childrens Services,Supplies and Services,384199,Miscellaneous Expenses,03-Mar-2017,3252128-CAS-03-2017-012,"2,720.00",REDACTED - PAYMENT TO INDIVIDUAL
Children and Young Peoples Services,Childrens Services,Supplies and Services,364358,Grants to Voluntary Organisations,03-Mar-2017,3252135-CAS-03-2017-009,565.98,CESTRIA HOUSING.
Children and Young Peoples Services,Childrens Services,Supplies and Services,384199,Miscellaneous Expenses,03-Mar-2017,3252440-CAS-03-2017-014,600.00,SYNCHRONY PSYCHOLOGY.
Children and Young Peoples Services,Childrens Services,Third Party Payments,410037,Rendered by Other Local Authorities,03-Mar-2017,3252460-SII703771,"5,487.00",THE YOUTH JUSTICE BOARD.
Children and Young Peoples Services,Childrens Services,Supplies and Services,384362,Miscellaneous Expenses,03-Mar-2017,3252497-499204247,514.00,YORKSHIRE PURCHASING ORGANISATION.
Children and Young Peoples Services,Childrens Services,Employees,080025,Agency Staff,03-Mar-2017,3252125-03920677,897.50,CAPITA RESOURCING LTD T/A CAPITA EDUCATION RESOURCING.
Children and Young Peoples Services,Childrens Services,Supplies and Services,384540,Miscellaneous Expenses,03-Mar-2017,3252335-OCC6267,500.00,OCCUCOM LTD.
Children and Young Peoples Services,Childrens Services,Employees,080025,Agency Staff,03-Mar-2017,3252438-479434,679.43,SUPPLY DESK LTD.
Children and Young Peoples Services,Childrens Services,Supplies and Services,384491,Miscellaneous Expenses,03-Mar-2017,3252492-201718,848.00,WHEATLEY HILL COMMUNITY NURSERY LTD.
Children and Young Peoples Services,Childrens Services,Premises,106082,Centrally Controlled Rep and Maint,03-Mar-2017,3252073-06654,"1,503.60",ALL EVENTS SECURITY LTD (AES).
Children and Young Peoples Services,Childrens Services,Premises,106082,Centrally Controlled Rep and Maint,03-Mar-2017,3252073-06660,"1,503.60",ALL EVENTS SECURITY LTD (AES).
Children and Young Peoples Services,Childrens Services,Premises,106082,Centrally Controlled Rep and Maint,03-Mar-2017,3252073-06678,"1,503.60",ALL EVENTS SECURITY LTD (AES).
Children and Young Peoples Services,Childrens Services,Third Party Payments,486029,Service Level Agreements,03-Mar-2017,3252198-21117,"18,940.08",FAMILY ACTION.
Children and Young Peoples Services,Childrens Services,Employees,080025,Agency Staff,03-Mar-2017,3252369-30562,660.00,PK EDUCATION.
Children and Young Peoples Services,Childrens Services,Third Party Payments,425020,Rendered by Voluntary Organisations,03-Mar-2017,3252057-TS10,"12,000.00",A SIGNIFICANT OTHER LTD T/A GREEN TOWERS CHILDRENS HOME.
Children and Young Peoples Services,Childrens Services,Supplies and Services,384199,Miscellaneous Expenses,03-Mar-2017,3252201-0123,900.00,FEEL GOOD FACTORY CIC.
Children and Young Peoples Services,Childrens Services,Supplies and Services,384540,Miscellaneous Expenses,03-Mar-2017,3252288-2617,"1,950.00",MADE TELEVISION LTD.
Children and Young Peoples Services,Childrens Services,Supplies and Services,364352,Grants to Voluntary Organisations,03-Mar-2017,3252207-276,"18,000.00",FOREVER CARE.
Children and Young Peoples Services,Childrens Services,Supplies and Services,384302,Miscellaneous Expenses,03-Mar-2017,3252304-228,975.00,MOUNTAIN ACTIVITY CO.
Adult and Health Services,Commissioning,Third Party Payments,479111,Purchase of Care,03-Mar-2017,3252424-2371,"15,664.63",SKILLS FOR PEOPLE.
Regeneration and Local Services,Culture & Sport,Supplies and Services,338047,Services,03-Mar-2017,3252429,"3,444.87",ST CUTHBERTS HOSPICE.
Regeneration and Local Services,Culture & Sport,Premises,106080,Centrally Controlled Rep and Maint,03-Mar-2017,3252091-11625,"7,306.74",ASTRAL CONTROL SERVICES LTD.
Regeneration and Local Services,Culture & Sport,Premises,106082,Centrally Controlled Rep and Maint,03-Mar-2017,3252212-9659,"1,367.00",FT LEISURE LTD.
Regeneration and Local Services,Culture & Sport,Premises,145023,Cleaning and Domestic Supplies,03-Mar-2017,3252224-06/632637,705.29,GREENHAM TRADING LTD.
Regeneration and Local Services,Culture & Sport,Premises,145023,Cleaning and Domestic Supplies,03-Mar-2017,3252224-08/522888,680.99,GREENHAM TRADING LTD.
Regeneration and Local Services,Culture & Sport,Premises,106082,Centrally Controlled Rep and Maint,03-Mar-2017,3252240-125642,912.00,HUTCHINSON ENVIRONMENTAL SOLUTIONS LTD.
Regeneration and Local Services,Culture & Sport,Premises,106080,Centrally Controlled Rep and Maint,03-Mar-2017,3252241-3752-7-01,600.00,HVAC COMMISSIONING SERVICES LTD.
Regeneration and Local Services,Culture & Sport,Premises,106080,Centrally Controlled Rep and Maint,03-Mar-2017,3252241-3752-8-01,600.00,HVAC COMMISSIONING SERVICES LTD.
Regeneration and Local Services,Culture & Sport,Supplies and Services,332029,Printing Stationery and Gen Off Exps,03-Mar-2017,3252276-01487,540.00,LEE DOBSON PHOTOGRAPHY LTD.
Regeneration and Local Services,Culture & Sport,Supplies and Services,304259,Equipment and Materials,03-Mar-2017,3252326-14170323,"1,095.99",NISBETS PLC.
Regeneration and Local Services,Culture & Sport,Supplies and Services,312013,Newspapers Books and Periodicals,03-Mar-2017,3252334-107301,"5,691.60",OAKHILL PUBLISHING LTD.
Regeneration and Local Services,Culture & Sport,Premises,106082,Centrally Controlled Rep and Maint,03-Mar-2017,3252344-0000655856,"1,592.50",OPENVIEW SECURITY SOLUTIONS LTD.
Regeneration and Local Services,Culture & Sport,Supplies and Services,384167,Miscellaneous Expenses,03-Mar-2017,3252384-6571,"1,450.00",QUEST & NBS.
Regeneration and Local Services,Culture & Sport,Supplies and Services,338047,Services,03-Mar-2017,3252484-22455802,"3,043.90",WARNER BROS ENTERTAINMENT UK LTD.
Regeneration and Local Services,Direct Services,Third Party Payments,430100,Rendered by Private Contractors,03-Mar-2017,3252059-590,"4,750.00",AA GARDENING & LANDSCAPING SERVICES.
Regeneration and Local Services,Direct Services,Premises,106080,Centrally Controlled Rep and Maint,03-Mar-2017,3252062-IN2839,"34,097.37",ACROL AIR CONDITIONING CO LTD.
Regeneration and Local Services,Direct Services,Premises,106082,Centrally Controlled Rep and Maint,03-Mar-2017,3252088-6502,"6,950.00",ASPECT FIRE SOLUTIONS LTD.
Regeneration and Local Services,Direct Services,Premises,106082,Centrally Controlled Rep and Maint,03-Mar-2017,3252091-11626,"6,687.00",ASTRAL CONTROL SERVICES LTD.
Regeneration and Local Services,Direct Services,Supplies and Services,304221,Equipment and Materials,03-Mar-2017,3252127-851700310,"1,976.10",CARLISLE CONSTRUCTION MATERIALS LTD.
Regeneration and Local Services,Direct Services,Third Party Payments,430101,Rendered by Private Contractors,03-Mar-2017,3252173-IV859538,895.70,DIRECT TYRE MANAGEMENT (DTM).
Regeneration and Local Services,Direct Services,Premises,106082,Centrally Controlled Rep and Maint,03-Mar-2017,3252197-3344,"1,196.70",F WARREN (ELECTRICAL) LTD.
Regeneration and Local Services,Direct Services,Supplies and Services,304221,Equipment and Materials,03-Mar-2017,3252228-SI3955,757.95,HARELAW SAWMILL LTD.
Regeneration and Local Services,Direct Services,Premises,108099,Service Repairs and Maintenance,03-Mar-2017,3252242-R16/365,"3,185.00",HYGIENIC CLEANING COMPANY (UK) LTD.
Regeneration and Local Services,Direct Services,Premises,106082,Centrally Controlled Rep and Maint,03-Mar-2017,3252242-R16/561,"11,292.00",HYGIENIC CLEANING COMPANY (UK) LTD.
Regeneration and Local Services,Direct Services,Supplies and Services,304259,Equipment and Materials,03-Mar-2017,3252296-3061,"1,647.50",MCPC SYSTEMS (UK) LTD.
Regeneration and Local Services,Direct Services,Third Party Payments,430100,Rendered by Private Contractors,03-Mar-2017,3252316-629809,686.00,NATIONWIDE CHIMNEY COMPONENTS LTD.
Regeneration and Local Services,Direct Services,Transport,215005,Running Costs of Vehicles,03-Mar-2017,3252339-227760,"17,144.36",OIL NRG LTD.
Regeneration and Local Services,Direct Services,Supplies and Services,304221,Equipment and Materials,03-Mar-2017,3252474-INV-0167,"1,224.00",UK VENTILATION LTD.
Regeneration and Local Services,Economic Development and Housing,Cap Exp on Grants & Other Financial Assistance (REFCUS),918401,Capital grants,03-Mar-2017,3252085-RED-03-2017-029,"9,700.00",AR BUILDING CONTRACTORS.
Regeneration and Local Services,Economic Development and Housing,Premises,106080,Centrally Controlled Rep and Maint,03-Mar-2017,3252241-3752-4-01,600.00,HVAC COMMISSIONING SERVICES LTD.
Regeneration and Local Services,Economic Development and Housing,Premises,106080,Centrally Controlled Rep and Maint,03-Mar-2017,3252241-3752-5-01,600.00,HVAC COMMISSIONING SERVICES LTD.
Regeneration and Local Services,Economic Development and Housing,Supplies and Services,384199,Miscellaneous Expenses,03-Mar-2017,3252468-HS/5862,"1,200.00",TRAVMEDIA (UK) LTD.
Children and Young Peoples Services,Education,Third Party Payments,440080,Other Third Party Payments,03-Mar-2017,3252328-0000032089,"13,279.50",NORTH EAST AUTISM SOCIETY.
Children and Young Peoples Services,Education,Transport,230010,Contract Hire,03-Mar-2017,3252403-B008-FEB,"1,455.00",S DUNCAN PRIVATE HIRE.
Children and Young Peoples Services,Education,Transport,230009,Contract Hire,03-Mar-2017,3252354-DCC135,720.00,PAUL`S TAXIS..
Children and Young Peoples Services,Education,Third Party Payments,440080,Other Third Party Payments,03-Mar-2017,3252457-6251,"3,104.45",THE ROYAL NATIONAL COLLEGE FOR THE BLIND.
Children and Young Peoples Services,Education,Third Party Payments,440080,Other Third Party Payments,03-Mar-2017,3252457-6252,"2,834.00",THE ROYAL NATIONAL COLLEGE FOR THE BLIND.
Children and Young Peoples Services,Education,Premises,120009,Energy Costs,03-Mar-2017,3252333-79747416350JAN17,"5,273.17",NPOWER.
Children and Young Peoples Services,Education,Transport,230006,Contract Hire,03-Mar-2017,3252266-F702-28/2/17,"1,316.00",K & R TAXIS.
Children and Young Peoples Services,Education,Transport,230008,Contract Hire,03-Mar-2017,3252272-5A-28/2/17,"1,020.00",L & R PRIVATE HIRE.
Children and Young Peoples Services,Education,Supplies and Services,338094,Services,03-Mar-2017,3252038-18002854,928.00,1LIFE MANAGEMENT SOLUTIONS LTD.
Children and Young Peoples Services,Education,Fees,901002,Professional fees,03-Mar-2017,3252092-16012135,"7,802.30",ATKINS GLOBAL.
Children and Young Peoples Services,Education,Transport,230008,Contract Hire,03-Mar-2017,3252056-A220784,"1,340.25",A MURRAY TRAVEL.
Children and Young Peoples Services,Education,Transport,230008,Contract Hire,03-Mar-2017,3252144-INV-002,"1,064.00",CLARE LYNSEY STEWART T/A K&C TAXIS.
Children and Young Peoples Services,Education,Transport,230008,Contract Hire,03-Mar-2017,3252065-03/17A,"1,736.00",ADVANCE TRAVEL.
Children and Young Peoples Services,Education,Transport,230008,Contract Hire,03-Mar-2017,3252070-153906,"1,042.50",ALAN SOUTHERN T/A ALANS TAXIS PELTON FELL.
Children and Young Peoples Services,Education,Transport,230008,Contract Hire,03-Mar-2017,3252070-388906,"1,039.50",ALAN SOUTHERN T/A ALANS TAXIS PELTON FELL.
Children and Young Peoples Services,Education,Transport,230006,Contract Hire,03-Mar-2017,3252079-DC2/17,"1,065.00",ANDY`S TAXIS.
Children and Young Peoples Services,Education,Transport,230008,Contract Hire,03-Mar-2017,3252096-280217,"1,624.20",AVALON TAXIS.
Children and Young Peoples Services,Education,Transport,230008,Contract Hire,03-Mar-2017,3252291-380217,"1,185.00",MARK MUSGROVE T/A MARKS TAXIS.
Children and Young Peoples Services,Education,Transport,230012,Contract Hire,03-Mar-2017,3252291-480217,765.00,MARK MUSGROVE T/A MARKS TAXIS.
Children and Young Peoples Services,Education,Transport,230008,Contract Hire,03-Mar-2017,3252354-DCC136,"2,100.00",PAUL`S TAXIS..
Children and Young Peoples Services,Education,Transport,230008,Contract Hire,03-Mar-2017,3252041-21705,"1,470.00",24/7 TAXI SERVICES LTD.
Children and Young Peoples Services,Education,Transport,230009,Contract Hire,03-Mar-2017,3252041-21707,"1,130.55",24/7 TAXI SERVICES LTD.
Children and Young Peoples Services,Education,Transport,230006,Contract Hire,03-Mar-2017,3252041-21708,678.45,24/7 TAXI SERVICES LTD.
Children and Young Peoples Services,Education,Transport,230008,Contract Hire,03-Mar-2017,3252041-21709,"1,900.00",24/7 TAXI SERVICES LTD.
Children and Young Peoples Services,Education,Transport,230008,Contract Hire,03-Mar-2017,3252041-21710,970.00,24/7 TAXI SERVICES LTD.
Children and Young Peoples Services,Education,Transport,230006,Contract Hire,03-Mar-2017,3252041-21712,"1,200.00",24/7 TAXI SERVICES LTD.
Children and Young Peoples Services,Education,Transport,230006,Contract Hire,03-Mar-2017,3252310-00223,570.00,MR P GARBUTT.
Children and Young Peoples Services,Education,Supplies and Services,384199,Miscellaneous Expenses,03-Mar-2017,3252315-17017,500.00,NATIONAL YOUTH CHOIRS OF GREAT BRITAIN.
Children and Young Peoples Services,Education,Supplies and Services,384159,Miscellaneous Expenses,03-Mar-2017,3252432-10687,"7,219.20",STEADFAST SECURITY SYSTEMS LTD.
Children and Young Peoples Services,Education,Supplies and Services,384159,Miscellaneous Expenses,03-Mar-2017,3252432-10688,"7,219.20",STEADFAST SECURITY SYSTEMS LTD.
Children and Young Peoples Services,Education,Supplies and Services,384159,Miscellaneous Expenses,03-Mar-2017,3252432-10814,"6,316.80",STEADFAST SECURITY SYSTEMS LTD.
Children and Young Peoples Services,Education,Supplies and Services,384159,Miscellaneous Expenses,03-Mar-2017,3252432-10815,"6,316.80",STEADFAST SECURITY SYSTEMS LTD.
Children and Young Peoples Services,Education,Transport,230012,Contract Hire,03-Mar-2017,3252260-N078,825.00,JMR TAXIS.
Children and Young Peoples Services,Education,Transport,230008,Contract Hire,03-Mar-2017,3252361-0511,"1,620.00",PETER`S PRIVATE HIRE/PETER BEST.
Children and Young Peoples Services,Education,Transport,230008,Contract Hire,03-Mar-2017,3252361-0512,"1,570.00",PETER`S PRIVATE HIRE/PETER BEST.
Children and Young Peoples Services,Education,Transport,230008,Contract Hire,03-Mar-2017,3252361-0514,654.00,PETER`S PRIVATE HIRE/PETER BEST.
Children and Young Peoples Services,Education,Transport,230008,Contract Hire,03-Mar-2017,3252361-0515,"1,485.00",PETER`S PRIVATE HIRE/PETER BEST.
Children and Young Peoples Services,Education,Transport,230006,Contract Hire,03-Mar-2017,3252227-007,543.00,HARDIP SINGH MAHIL T/A AMBER CARS.
Children and Young Peoples Services,Education,Transport,230006,Contract Hire,03-Mar-2017,3252313-006,742.50,MT`S CABS.
Children and Young Peoples Services,Education,Transport,230008,Contract Hire,03-Mar-2017,3252319-207,"1,632.00",NEVILLE FORBES T/A FORBES TAXIS.
Children and Young Peoples Services,Education,Transport,230007,Contract Hire,03-Mar-2017,3252262-57,750.00,JOHN WARE T/A J & K TAXIS.
Children and Young Peoples Services,Education,Transport,230012,Contract Hire,03-Mar-2017,3252286-52,690.00,LUMLEY TAXIS.
Children and Young Peoples Services,Education,Transport,230006,Contract Hire,03-Mar-2017,3252286-53,804.00,LUMLEY TAXIS.
Children and Young Peoples Services,Education,Transport,230006,Contract Hire,03-Mar-2017,3252289-27,980.00,MALCOLM CARR T/A CARLY CABS.
Children and Young Peoples Services,Education,Transport,230008,Contract Hire,03-Mar-2017,3252298-5C,975.00,MICHAEL A BODDY T/A MBS TAXIS.
Children and Young Peoples Services,Education,Transport,230007,Contract Hire,03-Mar-2017,3252306-59,765.00,MR JOHN ALLINSON T/A AALPHA TAXIS.
Children and Young Peoples Services,Education,Transport,230008,Contract Hire,03-Mar-2017,3252469-90,"1,330.00",TRIDENT TAXIS.
Resources,Financial Services,Supplies and Services,352001,Conference Expenses,03-Mar-2017,3252143-C/RB150472,675.00,CIVICA UK LTD.
Resources,Financial Services,Supplies and Services,342051,Computers and Communications,03-Mar-2017,3252143-C/RB150473,"2,475.00",CIVICA UK LTD.
Resources,Financial Services,Supplies and Services,338050,Services,03-Mar-2017,3252223-432228,"4,084.50",GREENHALGH KERR.
Resources,I.C.T. Services,Premises,120009,Energy Costs,03-Mar-2017,3252142-2821013204,"8,214.84",SUNDERLAND CITY COUNCIL.
Resources,I.C.T. Services,Stock,926900,Stock in hand-Inventory system,03-Mar-2017,3252167-7402343582,807.20,DELL COMPUTER CORPORATION LTD.
Resources,Legal & Democratic Services,Premises,125009,Rents,03-Mar-2017,3252391-8917,543.60,RIVERGREEN DEVELOPMENTS PLC.
Transformation and Partnerships,Partnerships & Community Engagement Div.,Transfer Payments,525030,Other,03-Mar-2017,3252147-VOUCHER15AB,700.00,COCKFIELD COMMUNITY XMAS DECORATION FUND.
Transformation and Partnerships,Partnerships & Community Engagement Div.,Cap Exp on Grants & Other Financial Assistance (REFCUS),918004,Contributions to other bodies,03-Mar-2017,3252404-VOUCHER16AB,"16,000.00",SACRISTON COMMUNITY & SPORTS TRUST.
Regeneration and Local Services,Planning & Assets,Supplies and Services,338027,Services,03-Mar-2017,3252182-16166,"3,500.00",DURHAM WILDLIFE TRUST LTD.
Transformation and Partnerships,Planning & Performance Division,Supplies and Services,342051,Computers and Communications,03-Mar-2017,3252243-105394678,"2,405.00",IBM UNITED KINGDOM FINANCIAL SERVICES LTD.
Adult and Health Services,Planning & Service Strategy,Supplies and Services,308011,Furniture,03-Mar-2017,3252071-158048,615.00,ALBANY CONTRACT FURNITURE.
Adult and Health Services,Planning & Service Strategy,Supplies and Services,338089,Services,03-Mar-2017,3252423-3664,800.00,SIGNIS LTD.
Adult and Health Services,Public Health,Third Party Payments,460803,Contract Payments,03-Mar-2017,3252230-2510007187,"937,500.00",HARROGATE & DISTRICT NHS FOUNDATION TRUST.
Adult and Health Services,Public Health,Third Party Payments,460803,Contract Payments,03-Mar-2017,3252230-2510007188,"937,500.00",HARROGATE & DISTRICT NHS FOUNDATION TRUST.
Regeneration and Local Services,Technical Services,Supplies and Services,304221,Equipment and Materials,03-Mar-2017,3252068-24392202,"2,485.21",AGGREGATE INDUSTRIES UK LTD.
Regeneration and Local Services,Technical Services,Supplies and Services,304221,Equipment and Materials,03-Mar-2017,3252068-24392203,"1,216.43",AGGREGATE INDUSTRIES UK LTD.
Regeneration and Local Services,Technical Services,Supplies and Services,304221,Equipment and Materials,03-Mar-2017,3252068-24392204,"1,221.33",AGGREGATE INDUSTRIES UK LTD.
Regeneration and Local Services,Technical Services,Supplies and Services,304221,Equipment and Materials,03-Mar-2017,3252068-24392205,894.59,AGGREGATE INDUSTRIES UK LTD.
Regeneration and Local Services,Technical Services,Supplies and Services,304221,Equipment and Materials,03-Mar-2017,3252068-24392206,"1,851.90",AGGREGATE INDUSTRIES UK LTD.
Regeneration and Local Services,Technical Services,Supplies and Services,304221,Equipment and Materials,03-Mar-2017,3252068-24392207,683.45,AGGREGATE INDUSTRIES UK LTD.
Regeneration and Local Services,Technical Services,Stock,926900,Stock in hand-Inventory system,03-Mar-2017,3252184-059-199686,634.92,EDMUNDSON ELECTRICAL LTD.
Regeneration and Local Services,Technical Services,Stock,926900,Stock in hand-Inventory system,03-Mar-2017,3252251-568829,"3,136.00",INSTARMAC GROUP PLC.
Regeneration and Local Services,Technical Services,Third Party Payments,430100,Rendered by Private Contractors,03-Mar-2017,3252253-SLINV/78011896,"4,015.64",ISS FACILITY SERVICES RESTORATION.
Regeneration and Local Services,Technical Services,Construction Work,908105,Construction work,03-Mar-2017,3252255-20152,"2,541.45",JACK COUPE & SONS LTD T/A COUPE LINE.
Regeneration and Local Services,Technical Services,Construction Work,908105,Construction work,03-Mar-2017,3252255-20155,"1,513.19",JACK COUPE & SONS LTD T/A COUPE LINE.
Regeneration and Local Services,Technical Services,Construction Work,908105,Construction work,03-Mar-2017,3252255-20161,"2,587.59",JACK COUPE & SONS LTD T/A COUPE LINE.
Regeneration and Local Services,Technical Services,Construction Work,908105,Construction work,03-Mar-2017,3252255-20169,"3,437.85",JACK COUPE & SONS LTD T/A COUPE LINE.
Regeneration and Local Services,Technical Services,Construction Work,908105,Construction work,03-Mar-2017,3252255-20170,"2,521.09",JACK COUPE & SONS LTD T/A COUPE LINE.
Regeneration and Local Services,Technical Services,Third Party Payments,430100,Rendered by Private Contractors,03-Mar-2017,3252331-DI20263562,680.28,NORTHERN POWERGRID (NORTHEAST) LTD.
Regeneration and Local Services,Technical Services,Third Party Payments,460502,Contract Payments,03-Mar-2017,3252332-139078,718.02,NORTHUMBERLAND COUNTY COUNCIL.
Regeneration and Local Services,Technical Services,Stock,926900,Stock in hand-Inventory system,03-Mar-2017,3252351-344962858,"1,414.20",PARKER MERCHANTING LTD.
Regeneration and Local Services,Technical Services,Third Party Payments,430100,Rendered by Private Contractors,03-Mar-2017,3252376-143375,"14,201.11",PREMIER TRAFFIC MANAGEMENT LTD.
Regeneration and Local Services,Technical Services,Supplies and Services,304221,Equipment and Materials,03-Mar-2017,3252387-9704,886.50,RD KEARTON & SONS LTD.
Regeneration and Local Services,Technical Services,Stock,926900,Stock in hand-Inventory system,03-Mar-2017,3252425-189950,"4,737.60",SNAPFAST.
Regeneration and Local Services,Technical Services,Supplies and Services,304221,Equipment and Materials,03-Mar-2017,3252436-090391,"2,452.16",STONEGRAVE AGGREGATES LTD.
Regeneration and Local Services,Technical Services,Stock,926900,Stock in hand-Inventory system,03-Mar-2017,3252461-N/IN190805,"1,252.80",THOMAS OWEN & SONS (NEWCASTLE) LTD.
Regeneration and Local Services,Technical Services,Stock,926900,Stock in hand-Inventory system,03-Mar-2017,3252461-N/IN190810,"1,673.54",THOMAS OWEN & SONS (NEWCASTLE) LTD.
Regeneration and Local Services,Technical Services,Supplies and Services,304221,Equipment and Materials,03-Mar-2017,3252473-170193,529.64,TYNEDALE ROADSTONE LTD.
Regeneration and Local Services,Technical Services,Supplies and Services,304221,Equipment and Materials,03-Mar-2017,3252473-170532,"1,034.49",TYNEDALE ROADSTONE LTD.
Regeneration and Local Services,Technical Services,Premises,150015,Apportioned Exps of Operational Blds,03-Mar-2017,3252489-578295,770.00,WERNICK HIRE LTD.
Regeneration and Local Services,Technical Services,Premises,150015,Apportioned Exps of Operational Blds,03-Mar-2017,3252490-588593,735.00,WERNICK HIRE LTD.
Regeneration and Local Services,Technical Services,Premises,150015,Apportioned Exps of Operational Blds,03-Mar-2017,3252490-598883,770.00,WERNICK HIRE LTD.
Regeneration and Local Services,Technical Services,Stock,926900,Stock in hand-Inventory system,03-Mar-2017,3252495-40309209,"1,167.71",WOLSELEY UK LTD.
Regeneration and Local Services,Technical Services,Stock,926900,Stock in hand-Inventory system,03-Mar-2017,3252495-40310354,"1,094.16",WOLSELEY UK LTD.
Regeneration and Local Services,Transport and Contracted Services,Premises,125009,Rents,03-Mar-2017,3252273-765794,"1,000.00",LAMBERT SMITH HAMPTON.
Resources,Welfare Assistance Fund,Supplies and Services,342051,Computers and Communications,03-Mar-2017,3252143-C/RB150471,"25,190.00",CIVICA UK LTD.
Adult and Health Services,Adult Care,Supplies and Services,338066,Services,06-Mar-2017,3252503-170117-190217,758.67,ABA LOCUMS LTD.
Adult and Health Services,Adult Care,Supplies and Services,338066,Services,06-Mar-2017,3252600-170117-190217,745.79,DANTANDA.
Adult and Health Services,Adult Care,Supplies and Services,338066,Services,06-Mar-2017,3252601-170117-190217,544.08,DCO
Adult and Health Services,Adult Care,Supplies and Services,338066,Services,06-Mar-2017,3252602-170117-190217,718.13,DR DAVID NEILL T/A NOBAS LTD.
Adult and Health Services,Adult Care,Supplies and Services,338066,Services,06-Mar-2017,3252603-170117-190217,"1,607.91",DHN
Adult and Health Services,Adult Care,Supplies and Services,338066,Services,06-Mar-2017,3252604-170117-190217,"3,472.87",DIMP
Adult and Health Services,Adult Care,Supplies and Services,338066,Services,06-Mar-2017,3252605-170117-190217,"1,638.44",DJEH
Adult and Health Services,Adult Care,Supplies and Services,338066,Services,06-Mar-2017,3252606-170117-190217,"2,358.00",DMSA
Adult and Health Services,Adult Care,Supplies and Services,338066,Services,06-Mar-2017,3252607-170117-190217,"3,734.15",DSW
Adult and Health Services,Adult Care,Supplies and Services,308011,Furniture,06-Mar-2017,3252650-117324,941.40,GODFREY SYRETT LTD.
Adult and Health Services,Adult Care,Third Party Payments,472101,Purchase of Care,06-Mar-2017,3252686-1561,680.35,JIGSAW THERAPY SERVICES.
Adult and Health Services,Adult Care,Supplies and Services,308011,Furniture,06-Mar-2017,3252803-CLG2005,976.00,RENDLES HOUSE FURNISHER.
Adult and Health Services,Adult Care,Supplies and Services,338066,Services,06-Mar-2017,3252831-170117-190217,"2,636.45",SHAN MEDICAL SERVICES LTD.
Adult and Health Services,Adult Care,Third Party Payments,473101,Purchase of Care,06-Mar-2017,3252891-0009,550.00,TURNAROUND HOMES (3 TO 13).
Adult and Health Services,Adult Care,Supplies and Services,304259,Equipment and Materials,06-Mar-2017,3252897-SIN043921,"1,217.96",UNIVERSAL SERVICES (SPORTS EQUIPMENT) LTD.
Adult and Health Services,Adult Care,Supplies and Services,338066,Services,06-Mar-2017,3252923-170117-190217,900.28,ZM MEDICAL CONSULTANTS LIMITED.
Adult and Health Services,AWH Redundant Cost Centres,Supplies and Services,384199,Miscellaneous Expenses,06-Mar-2017,3252516-3499839,527.07,ANGEL SPRINGS LTD.*
Children and Young Peoples Services,Central Charges (CYPS),Debtors,930062,Debtor-school meals suspense,06-Mar-2017,3252864-SI-TSD-1001061,"186,160.00",TAYLOR SHAW LTD.
Adult and Health Services,Central/Other,Employees,080025,Agency Staff,06-Mar-2017,3252587-1000019,"151,315.57",DE POEL MANAGED SERVICES LTD.
Children and Young Peoples Services,Childrens Services,Supplies and Services,344033,Telephones,06-Mar-2017,3252895-203364,572.74,UNIFY BUSINESS SOLUTIONS LTD.
Children and Young Peoples Services,Childrens Services,Supplies and Services,338365,Services,06-Mar-2017,3252545-38515,"3,238.75",CARE ABILITY.
Adult and Health Services,Commissioning,Third Party Payments,470111,Purchase of Care,06-Mar-2017,3252705-RINVTP/00432553,"3,728.64",LEONARD CHESHIRE DISABILITY.
Adult and Health Services,Commissioning,Third Party Payments,470111,Purchase of Care,06-Mar-2017,3252705-RINVTP/00432563,"3,728.64",LEONARD CHESHIRE DISABILITY.
Adult and Health Services,Commissioning,Third Party Payments,479102,Purchase of Care,06-Mar-2017,3252870-32587,"3,911.25",THE APPROPRIATE ADULT SERVICE LTD.
Regeneration and Local Services,Culture & Sport,Supplies and Services,304337,Equipment and Materials,06-Mar-2017,3252510-9542,933.60,ALISON BLACK LTD T/A SPORTMAX.
Regeneration and Local Services,Culture & Sport,Supplies and Services,324001,Provisions,06-Mar-2017,3252548-84351989,"1,927.01",CARLSBERG UK LTD.
Regeneration and Local Services,Culture & Sport,Supplies and Services,384199,Miscellaneous Expenses,06-Mar-2017,3252617-180,"1,973.10",DURHAM SCENIC WORKSHOPS LTD.
Regeneration and Local Services,Culture & Sport,Other Expenses,914002,Capital - Advertisments,06-Mar-2017,3252750-18846848,792.23,NEWSQUEST (YORKSHIRE & NORTH EAST) LTD.
Regeneration and Local Services,Culture & Sport,Fees,901002,Professional fees,06-Mar-2017,3252841-732/PJ1471/24,"17,030.50",SOUTHERN GREEN LTD.
Regeneration and Local Services,Culture & Sport,Supplies and Services,304259,Equipment and Materials,06-Mar-2017,3252879-05/17,"1,028.35",THRILLS & SKILLS FOR LIFE.
Regeneration and Local Services,Direct Services,Supplies and Services,304221,Equipment and Materials,06-Mar-2017,3252508-158069,"1,170.00",ALBANY CONTRACT FURNITURE.
Regeneration and Local Services,Direct Services,Supplies and Services,304221,Equipment and Materials,06-Mar-2017,3252537-INV205148,"1,671.60",BROXAP LTD.
Regeneration and Local Services,Direct Services,Supplies and Services,304221,Equipment and Materials,06-Mar-2017,3252547-851700318,"2,520.00",CARLISLE CONSTRUCTION MATERIALS LTD.
Regeneration and Local Services,Direct Services,Supplies and Services,304259,Equipment and Materials,06-Mar-2017,3252550-475323,530.00,CARRS BILLINGTON AGRICULTURE.
Regeneration and Local Services,Direct Services,Third Party Payments,430100,Rendered by Private Contractors,06-Mar-2017,3252566-127A,"1,890.00",CN WHITAKER.
Regeneration and Local Services,Direct Services,Third Party Payments,430100,Rendered by Private Contractors,06-Mar-2017,3252566-80,"3,968.87",CN WHITAKER.
Regeneration and Local Services,Direct Services,Supplies and Services,304221,Equipment and Materials,06-Mar-2017,3252621-059-199853,"2,598.56",EDMUNDSON ELECTRICAL LTD.
Regeneration and Local Services,Direct Services,Supplies and Services,304221,Equipment and Materials,06-Mar-2017,3252628-6791340,"13,310.00",ESE WORLD LTD.
Regeneration and Local Services,Direct Services,Third Party Payments,430105,Rendered by Private Contractors,06-Mar-2017,3252685-32,510.00,JH ORGANICS T/A P HUTCHINSON & SONS
Regeneration and Local Services,Direct Services,Premises,108099,Service Repairs and Maintenance,06-Mar-2017,3252689-00406,"1,960.00",JN KEARTON.
Regeneration and Local Services,Direct Services,Premises,108099,Service Repairs and Maintenance,06-Mar-2017,3252689-00409,"3,780.00",JN KEARTON.
Regeneration and Local Services,Direct Services,Premises,108099,Service Repairs and Maintenance,06-Mar-2017,3252689-00410,580.00,JN KEARTON.
Regeneration and Local Services,Direct Services,Premises,108099,Service Repairs and Maintenance,06-Mar-2017,3252689-00411,569.00,JN KEARTON.
Regeneration and Local Services,Direct Services,Supplies and Services,304221,Equipment and Materials,06-Mar-2017,3252742-630033,"1,042.00",NATIONWIDE CHIMNEY COMPONENTS LTD.
Regeneration and Local Services,Direct Services,Third Party Payments,430100,Rendered by Private Contractors,06-Mar-2017,3252742-630035,778.00,NATIONWIDE CHIMNEY COMPONENTS LTD.
Regeneration and Local Services,Direct Services,Supplies and Services,304221,Equipment and Materials,06-Mar-2017,3252761-2255072,"1,941.00",NORTHERN TOOLS & ACCESSORIES.
Regeneration and Local Services,Direct Services,Supplies and Services,304259,Equipment and Materials,06-Mar-2017,3252761-2258521,525.00,NORTHERN TOOLS & ACCESSORIES.
Regeneration and Local Services,Direct Services,Transport,215005,Running Costs of Vehicles,06-Mar-2017,3252764-227829,"14,284.50",OIL NRG LTD.
Regeneration and Local Services,Direct Services,Transport,215022,Running Costs of Vehicles,06-Mar-2017,3252764-227833,"1,488.10",OIL NRG LTD.
Regeneration and Local Services,Direct Services,Transport,215005,Running Costs of Vehicles,06-Mar-2017,3252764-227837,"4,786.50",OIL NRG LTD.
Regeneration and Local Services,Direct Services,Transport,215022,Running Costs of Vehicles,06-Mar-2017,3252764-227839,"1,097.64",OIL NRG LTD.
Regeneration and Local Services,Direct Services,Supplies and Services,304221,Equipment and Materials,06-Mar-2017,3252800-RL91796,"1,158.00",REELEY LTD.
Regeneration and Local Services,Direct Services,Debtors,930046,Debtor-leasing,06-Mar-2017,3252833-74237,"17,793.43",SIMON BAILES LTD.
Regeneration and Local Services,Direct Services,Supplies and Services,304221,Equipment and Materials,06-Mar-2017,3252861-1159827,555.12,T CROSSLING & CO LTD.
Regeneration and Local Services,Direct Services,Supplies and Services,304221,Equipment and Materials,06-Mar-2017,3252861-2255258,687.96,T CROSSLING & CO LTD.
Regeneration and Local Services,Direct Services,Supplies and Services,304221,Equipment and Materials,06-Mar-2017,3252861-2257003,630.17,T CROSSLING & CO LTD.
Regeneration and Local Services,Direct Services,Supplies and Services,304221,Equipment and Materials,06-Mar-2017,3252882-109828,787.97,TOMMY WARDLE.
Regeneration and Local Services,Economic Development and Housing,Cap Exp on Grants & Other Financial Assistance (REFCUS),918401,Capital grants,06-Mar-2017,3252597-RED-03-2017-041,"6,994.80",DOH CONSTRUCTION.
Regeneration and Local Services,Economic Development and Housing,Cap Exp on Grants & Other Financial Assistance (REFCUS),918401,Capital grants,06-Mar-2017,3252662-RED-03-2017-045,"2,737.00",HES GROUP UK LTD.
Regeneration and Local Services,Economic Development and Housing,Supplies and Services,338099,Services,06-Mar-2017,3252675-6861,"1,450.00",INTEGRATED ELECTRONIC SECURITY LTD.
Regeneration and Local Services,Economic Development and Housing,Cap Exp on Grants & Other Financial Assistance (REFCUS),918401,Capital grants,06-Mar-2017,3252679-RED-03-2017-035,"1,500.00",J JACKSON PROPERTIES LTD.
Regeneration and Local Services,Economic Development and Housing,Cap Exp on Grants & Other Financial Assistance (REFCUS),918401,Capital grants,06-Mar-2017,3252679-RED-03-2017-036,"3,500.00",J JACKSON PROPERTIES LTD.
Regeneration and Local Services,Economic Development and Housing,Cap Exp on Grants & Other Financial Assistance (REFCUS),918401,Capital grants,06-Mar-2017,3252679-RED-03-2017-037,"2,500.00",J JACKSON PROPERTIES LTD.
Regeneration and Local Services,Economic Development and Housing,Cap Exp on Grants & Other Financial Assistance (REFCUS),918401,Capital grants,06-Mar-2017,3252679-RED-03-2017-038,"3,500.00",J JACKSON PROPERTIES LTD.
Regeneration and Local Services,Economic Development and Housing,Cap Exp on Grants & Other Financial Assistance (REFCUS),918401,Capital grants,06-Mar-2017,3252720-RED-03-2017-042,"3,540.00",M & R DEVELOPMENTS & CONTRACTORS LTD..
Regeneration and Local Services,Economic Development and Housing,Supplies and Services,338066,Services,06-Mar-2017,3252725-MRCL/025C,"1,313.00",MARK REYNOLDS CONSULTING LTD.
Regeneration and Local Services,Economic Development and Housing,Cap Exp on Grants & Other Financial Assistance (REFCUS),918401,Capital grants,06-Mar-2017,3252726-RED-03-2017-040,"1,009.00",MARK UNWIN PLUMBING SERVICES.
Regeneration and Local Services,Economic Development and Housing,Cap Exp on Grants & Other Financial Assistance (REFCUS),918401,Capital grants,06-Mar-2017,3252778-RED-03-2017-044,"2,348.00",PEART ACCESS RAMPS.
Regeneration and Local Services,Economic Development and Housing,Cap Exp on Grants & Other Financial Assistance (REFCUS),918401,Capital grants,06-Mar-2017,3252856-RED-03-2017-043,"3,188.97",SUNTER LTD.
Regeneration and Local Services,Economic Development and Housing,Cap Exp on Grants & Other Financial Assistance (REFCUS),918401,Capital grants,06-Mar-2017,3252856-RED-03-2017-046,"1,816.96",SUNTER LTD.
Regeneration and Local Services,Economic Development and Housing,Cap Exp on Grants & Other Financial Assistance (REFCUS),918401,Capital grants,06-Mar-2017,3252856-RED-03-2017-047,"4,450.34",SUNTER LTD.
Regeneration and Local Services,Economic Development and Housing,Cap Exp on Grants & Other Financial Assistance (REFCUS),918401,Capital grants,06-Mar-2017,3252856-RED-03-2017-048,"3,282.32",SUNTER LTD.
Children and Young Peoples Services,Education,Third Party Payments,440080,Other Third Party Payments,06-Mar-2017,3252580-SLINV/00001284,"1,634.21",DARLINGTON COLLEGE.
Children and Young Peoples Services,Education,Transfer Payments,510026,School Children,06-Mar-2017,3252873-SPRINGTERM2017,"1,512.00",THE LAURELS CHILD CARE.
Children and Young Peoples Services,Education,Supplies and Services,304259,Equipment and Materials,06-Mar-2017,3252690-0000117186,950.00,JOHN PACKER LTD.
Children and Young Peoples Services,Education,Supplies and Services,384302,Miscellaneous Expenses,06-Mar-2017,3252846-0000000467,680.00,ST BEDES CATHOLIC ACADEMY (LANCHESTER).
Children and Young Peoples Services,Education,Employees,040001,Recruitment Instruction and Training,06-Mar-2017,3252868-10/02/2017,710.10,TES GLOBAL LTD.
Children and Young Peoples Services,Education,Transfer Payments,510026,School Children,06-Mar-2017,3252873-SPRING2017,"1,209.60",THE LAURELS CHILD CARE.
Children and Young Peoples Services,Education,Supplies and Services,384199,Miscellaneous Expenses,06-Mar-2017,3252913-17CNX-026,"1,725.00",WELFARE CALL (CLIENT FOLLOW UP) LTD.
Children and Young Peoples Services,Education,Supplies and Services,384199,Miscellaneous Expenses,06-Mar-2017,3252741-17015,500.00,NATIONAL YOUTH CHOIRS OF GREAT BRITAIN.
Children and Young Peoples Services,Education,Supplies and Services,384199,Miscellaneous Expenses,06-Mar-2017,3252741-17016,500.00,NATIONAL YOUTH CHOIRS OF GREAT BRITAIN.
Children and Young Peoples Services,Education,Supplies and Services,342007,Computers and Communications,06-Mar-2017,3252830-5257,"1,877.00",SGA SYSTEMS LTD.
Children and Young Peoples Services,Education,Third Party Payments,440999,Other Third Party Payments,06-Mar-2017,3252544-154,"2,078.56",CAPITAL 4 TRAINING LTD
Children and Young Peoples Services,Education,Third Party Payments,440999,Other Third Party Payments,06-Mar-2017,3252544-155,882.72,CAPITAL 4 TRAINING LTD
Adult and Health Services,EnvironmentHealth & Consumer Protection,Supplies and Services,338099,Services,06-Mar-2017,3252558-239619,"2,100.00",(DO NOT USE) CHARLES HOLLAND.
Resources,Financial Services,Supplies and Services,384999,Miscellaneous Expenses,06-Mar-2017,3252682-CAS-03-2017-023,900.00,REDACTED - PAYMENT TO INDIVIDUAL
Resources,I.C.T. Services,Stock,926900,Stock in hand-Inventory system,06-Mar-2017,3252588-7402343563,"1,063.00",DELL COMPUTER CORPORATION LTD.
Resources,I.C.T. Services,Supplies and Services,332029,Printing Stationery and Gen Off Exps,06-Mar-2017,3252625-103220,933.00,ELANDERS UK.
Resources,I.C.T. Services,Supplies and Services,304639,Equipment and Materials,06-Mar-2017,3252672-3248918,700.96,INSIGHT DIRECT (UK) LTD.
Resources,I.C.T. Services,Stock,926900,Stock in hand-Inventory system,06-Mar-2017,3252672-3251082,"1,200.00",INSIGHT DIRECT (UK) LTD.
Resources,I.C.T. Services,Vehicles Equipment Furniture and Fittings,912701,Computer equipment,06-Mar-2017,3252672-3252661,522.69,INSIGHT DIRECT (UK) LTD.
Resources,I.C.T. Services,Supplies and Services,342053,Computers and Communications,06-Mar-2017,3252773-38261,"2,112.00",PANDA SECURITY UK LTD.
Resources,I.C.T. Services,Supplies and Services,332029,Printing Stationery and Gen Off Exps,06-Mar-2017,3252798-14548,895.00,RADECAL SIGNS GRAPHICS & ADVERTISING.
Resources,I.C.T. Services,Supplies and Services,340001,Postages,06-Mar-2017,3252816-9053813287,"15,046.98",ROYAL MAIL GROUP PLC.
Resources,I.C.T. Services,Stock,926900,Stock in hand-Inventory system,06-Mar-2017,3252920-BG26342,"2,270.00",XMA LTD.
Resources,Legal & Democratic Services,Supplies and Services,338057,Services,06-Mar-2017,3252509-0000026170,"3,045.00",ALERE FORENSICS.
Resources,Legal & Democratic Services,Creditors,952027,Creditor-lab grp-deds frm memb all,06-Mar-2017,3252613-RES-03-2017-006,"1,255.95",DURHAM COUNTY COUNCIL LABOUR GROUP.*
Resources,Legal & Democratic Services,Employees,040149,Recruitment Instruction and Training,06-Mar-2017,3252739-2017/U2,"3,500.00",NATIONAL ASSOCIATION OF COUNCILLORS.*
Resources,Legal & Democratic Services,Supplies and Services,384199,Miscellaneous Expenses,06-Mar-2017,3252815-13016,"1,872.00",ROYAL IMAGES.
Transformation and Partnerships,Partnerships & Community Engagement Div.,Supplies and Services,384085,Miscellaneous Expenses,06-Mar-2017,3252511-HOPA12-16SIMM11-16,"1,000.00",ALL SAINTS CHURCH (NEWTON HALL).
Transformation and Partnerships,Partnerships & Community Engagement Div.,Supplies and Services,308011,Furniture,06-Mar-2017,3252612-45,"2,960.00",DURHAM CHRISTIAN PARTNERSHIP.
Transformation and Partnerships,Partnerships & Community Engagement Div.,Transfer Payments,525030,Other,06-Mar-2017,3252616-VOUCHER16AB-GAMP005,"5,505.00",DURHAM POLICE & CRIME COMMISSIONER.
Transformation and Partnerships,Partnerships & Community Engagement Div.,Supplies and Services,384085,Miscellaneous Expenses,06-Mar-2017,3252759-ALLJ10-16,600.00,NORTH WEST DURHAM METHODIST CIRCUIT.
Transformation and Partnerships,Partnerships & Community Engagement Div.,Supplies and Services,384085,Miscellaneous Expenses,06-Mar-2017,3252842-LAWP14-16,707.50,SPENNYMOOR YOUTH COUNCIL.
Transformation and Partnerships,Partnerships & Community Engagement Div.,Supplies and Services,384085,Miscellaneous Expenses,06-Mar-2017,3252850-DEAK09-16,"1,900.00",STANLEY EVENTS LTD.
Regeneration and Local Services,Planning & Assets,Supplies and Services,338066,Services,06-Mar-2017,3252502-10075,"1,460.00",2B GRAPHIC PARTNERSHIP LTD.
Regeneration and Local Services,Planning & Assets,Supplies and Services,336005,Advertising,06-Mar-2017,3252750-18846861,721.59,NEWSQUEST (YORKSHIRE & NORTH EAST) LTD.
Adult and Health Services,Planning & Service Strategy,Supplies and Services,308011,Furniture,06-Mar-2017,3252508-158071,870.00,ALBANY CONTRACT FURNITURE.
Adult and Health Services,Planning & Service Strategy,Supplies and Services,338089,Services,06-Mar-2017,3252513-IN0009,"1,500.00",ALYSON CORKISH T/A BODY SHAPE MATTERS.
Adult and Health Services,Planning & Service Strategy,Supplies and Services,338089,Services,06-Mar-2017,3252513-IN0010,"1,080.00",ALYSON CORKISH T/A BODY SHAPE MATTERS.
Adult and Health Services,Planning & Service Strategy,Supplies and Services,338089,Services,06-Mar-2017,3252677-11273,"1,350.00",IQ MANAGEMENT SYSTEMS (IQMS).
Adult and Health Services,Planning & Service Strategy,Supplies and Services,384956,Miscellaneous Expenses,06-Mar-2017,3252703-540,"1,000.00",LEARNING NEXUS LTD.
Adult and Health Services,Planning & Service Strategy,Supplies and Services,338089,Services,06-Mar-2017,3252735-DPSW10,"2,557.23",REDACTED - PAYMENT TO INDIVIDUAL
Regeneration and Local Services,Projects and Business services,Third Party Payments,430121,Rendered by Private Contractors,06-Mar-2017,3252892-2146,687.56,TXM ELECTRICAL MAINTENANCE LTD.
Regeneration and Local Services,Technical Services,Supplies and Services,304221,Equipment and Materials,06-Mar-2017,3252507-24398099,804.66,AGGREGATE INDUSTRIES UK LTD.
Regeneration and Local Services,Technical Services,Supplies and Services,304221,Equipment and Materials,06-Mar-2017,3252507-24398100,"1,237.70",AGGREGATE INDUSTRIES UK LTD.
Regeneration and Local Services,Technical Services,Supplies and Services,304221,Equipment and Materials,06-Mar-2017,3252507-24398101,"1,167.57",AGGREGATE INDUSTRIES UK LTD.
Regeneration and Local Services,Technical Services,Supplies and Services,304221,Equipment and Materials,06-Mar-2017,3252507-24398104,577.33,AGGREGATE INDUSTRIES UK LTD.
Regeneration and Local Services,Technical Services,Supplies and Services,304221,Equipment and Materials,06-Mar-2017,3252507-24404297,"1,467.55",AGGREGATE INDUSTRIES UK LTD.
Regeneration and Local Services,Technical Services,Supplies and Services,304221,Equipment and Materials,06-Mar-2017,3252507-24404298,"1,223.90",AGGREGATE INDUSTRIES UK LTD.
Regeneration and Local Services,Technical Services,Supplies and Services,304221,Equipment and Materials,06-Mar-2017,3252507-24404300,705.73,AGGREGATE INDUSTRIES UK LTD.
Regeneration and Local Services,Technical Services,Supplies and Services,304221,Equipment and Materials,06-Mar-2017,3252557-3009375575,"2,840.40",CEMEX UK MATERIALS LTD.
Regeneration and Local Services,Technical Services,Stock,926900,Stock in hand-Inventory system,06-Mar-2017,3252653-06/632400,547.20,GREENHAM TRADING LTD.
Regeneration and Local Services,Technical Services,Stock,926900,Stock in hand-Inventory system,06-Mar-2017,3252653-06/633287,"3,512.51",GREENHAM TRADING LTD.
Regeneration and Local Services,Technical Services,Employees,040149,Recruitment Instruction and Training,06-Mar-2017,3252667-4057,600.00,HSF TRAINING LTD.
Regeneration and Local Services,Technical Services,Employees,040149,Recruitment Instruction and Training,06-Mar-2017,3252667-4058,600.00,HSF TRAINING LTD.
Regeneration and Local Services,Technical Services,Supplies and Services,304221,Equipment and Materials,06-Mar-2017,3252673-569052,"4,200.00",INSTARMAC GROUP PLC.
Regeneration and Local Services,Technical Services,Employees,040149,Recruitment Instruction and Training,06-Mar-2017,3252674-IOSINV011611,612.00,INSTITUTE OF SWIMMING.
Regeneration and Local Services,Technical Services,Construction Work,908105,Construction work,06-Mar-2017,3252681-20156,995.12,JACK COUPE & SONS LTD T/A COUPE LINE.
Regeneration and Local Services,Technical Services,Construction Work,908105,Construction work,06-Mar-2017,3252681-20171,944.49,JACK COUPE & SONS LTD T/A COUPE LINE.
Regeneration and Local Services,Technical Services,Stock,926900,Stock in hand-Inventory system,06-Mar-2017,3252693-00000574,"1,100.00",JP MATERIALS & PLANT HIRE LTD.
Regeneration and Local Services,Technical Services,Supplies and Services,304221,Equipment and Materials,06-Mar-2017,3252696-BII215088,989.50,JT DOVE LTD.
Regeneration and Local Services,Technical Services,Supplies and Services,304221,Equipment and Materials,06-Mar-2017,3252696-CN127077/D,817.50,JT DOVE LTD.
Regeneration and Local Services,Technical Services,Stock,926900,Stock in hand-Inventory system,06-Mar-2017,3252696-STI452298,528.00,JT DOVE LTD.
Regeneration and Local Services,Technical Services,Supplies and Services,304221,Equipment and Materials,06-Mar-2017,3252717-166326,"2,406.50",LUCY ZODION LTD.
Regeneration and Local Services,Technical Services,Construction Work,908105,Construction work,06-Mar-2017,3252745-1205293,"5,352.84",NETWORK RAIL.
Regeneration and Local Services,Technical Services,Employees,040149,Recruitment Instruction and Training,06-Mar-2017,3252757-BADGECONSULTANCY,650.00,NORTH EAST ENGLAND BLUE BADGE GUIDE.
Regeneration and Local Services,Technical Services,Supplies and Services,304221,Equipment and Materials,06-Mar-2017,3252790-95457,550.00,PROTECTOR SECURITY GROUP LTD.
Regeneration and Local Services,Technical Services,Third Party Payments,430100,Rendered by Private Contractors,06-Mar-2017,3252790-95992,550.00,PROTECTOR SECURITY GROUP LTD.
Regeneration and Local Services,Technical Services,Third Party Payments,430100,Rendered by Private Contractors,06-Mar-2017,3252790-96165,550.00,PROTECTOR SECURITY GROUP LTD.
Regeneration and Local Services,Technical Services,Third Party Payments,430100,Rendered by Private Contractors,06-Mar-2017,3252790-96387,550.00,PROTECTOR SECURITY GROUP LTD.
Regeneration and Local Services,Technical Services,Third Party Payments,430100,Rendered by Private Contractors,06-Mar-2017,3252790-96391,550.00,PROTECTOR SECURITY GROUP LTD.
Regeneration and Local Services,Technical Services,Third Party Payments,430100,Rendered by Private Contractors,06-Mar-2017,3252790-96665,550.00,PROTECTOR SECURITY GROUP LTD.
Regeneration and Local Services,Technical Services,Third Party Payments,430100,Rendered by Private Contractors,06-Mar-2017,3252790-96669,550.00,PROTECTOR SECURITY GROUP LTD.
Regeneration and Local Services,Technical Services,Stock,926900,Stock in hand-Inventory system,06-Mar-2017,3252837-189956,"3,516.00",SNAPFAST.
Regeneration and Local Services,Technical Services,Stock,926900,Stock in hand-Inventory system,06-Mar-2017,3252837-189957,"2,733.12",SNAPFAST.
Regeneration and Local Services,Technical Services,Stock,926900,Stock in hand-Inventory system,06-Mar-2017,3252837-189958,"5,466.24",SNAPFAST.
Regeneration and Local Services,Technical Services,Stock,926900,Stock in hand-Inventory system,06-Mar-2017,3252837-189966,"1,492.92",SNAPFAST.
Regeneration and Local Services,Technical Services,Supplies and Services,304221,Equipment and Materials,06-Mar-2017,3252863-9035714702,662.63,TARMAC TRADING LTD.
Regeneration and Local Services,Technical Services,Supplies and Services,304221,Equipment and Materials,06-Mar-2017,3252863-9035728893,603.12,TARMAC TRADING LTD.
Regeneration and Local Services,Technical Services,Supplies and Services,304221,Equipment and Materials,06-Mar-2017,3252893-170280,"1,049.42",TYNEDALE ROADSTONE LTD.
Regeneration and Local Services,Technical Services,Supplies and Services,304221,Equipment and Materials,06-Mar-2017,3252893-170281,839.57,TYNEDALE ROADSTONE LTD.
Regeneration and Local Services,Technical Services,Supplies and Services,304221,Equipment and Materials,06-Mar-2017,3252909-42677,"3,489.00",W MARLEY AGRICULTURAL CONTRACTORS LTD.
Regeneration and Local Services,Technical Services,Third Party Payments,430100,Rendered by Private Contractors,06-Mar-2017,3252909-42888,880.00,W MARLEY AGRICULTURAL CONTRACTORS LTD.
Regeneration and Local Services,Technical Services,Stock,926900,Stock in hand-Inventory system,06-Mar-2017,3252918-40356766,"1,001.96",WOLSELEY UK LTD.
Regeneration and Local Services,Technical Services,Stock,926900,Stock in hand-Inventory system,06-Mar-2017,3252918-40369682,563.25,WOLSELEY UK LTD.
Regeneration and Local Services,Transport and Contracted Services,Fees,901002,Professional fees,06-Mar-2017,3252506-28295571,"1,110.51",AECOM LTD.
Regeneration and Local Services,Transport and Contracted Services,Employees,040149,Recruitment Instruction and Training,06-Mar-2017,3252555-0266,"2,940.00",CCTV TRAINING ACADEMY.
Regeneration and Local Services,Transport and Contracted Services,Supplies and Services,304245,Equipment and Materials,06-Mar-2017,3252890-3IN/10293658,"26,425.00",TUNSTALL HEALTHCARE (UK) LTD.
Regeneration and Local Services,Transport and Contracted Services,Supplies and Services,304245,Equipment and Materials,06-Mar-2017,3252890-3IN/10293709,"1,127.89",TUNSTALL HEALTHCARE (UK) LTD.
Adult and Health Services,Adult Care,Transport,230005,Contract Hire,07-Mar-2017,3253703-9186,614.40,G & P JOHNSON LTD T/A NIGHTINGALE COACHES.
Adult and Health Services,Adult Care,Supplies and Services,338045,Services,07-Mar-2017,3253726-223,"2,324.10",INDEPENDENT PSYCHIATRIC REPORTS LTD.
Adult and Health Services,Adult Care,Transport,230005,Contract Hire,07-Mar-2017,3253808-18,825.00,ROUTE 1.
Adult and Health Services,Adult Care,Transport,230005,Contract Hire,07-Mar-2017,3253813-72444,"1,190.00",SHOTTON PRIVATE HIRE.
Adult and Health Services,Adult Care,Transport,230005,Contract Hire,07-Mar-2017,3253838-012-1/3/17,500.00,TRUDY`S.
Children and Young Peoples Services,Childrens Services,Supplies and Services,364999,Grants to Voluntary Organisations,07-Mar-2017,3253686-CAS-03-2017-036,"1,398.00",DALES AREA EIC.
Children and Young Peoples Services,Childrens Services,Supplies and Services,364310,Grants to Voluntary Organisations,07-Mar-2017,3253821-CAS-03-2017-031,636.16,REDACTED - PAYMENT TO INDIVIDUAL
Children and Young Peoples Services,Childrens Services,Supplies and Services,338043,Services,07-Mar-2017,3253850-RES-03-2017-010,"1,702.50",WILKINSON WOODWARD SOLICITORS.
Children and Young Peoples Services,Childrens Services,Supplies and Services,338365,Services,07-Mar-2017,3253678-3980022502,"7,396.50",CO DURHAM & DARLINGTON NHS FOUNDATION TRUST.
Children and Young Peoples Services,Childrens Services,Third Party Payments,425023,Rendered by Voluntary Organisations,07-Mar-2017,3253816-SIWA005534,"52,454.34",SPARK OF GENIUS (TRAINING) LTD.
Children and Young Peoples Services,Childrens Services,Transport,230005,Contract Hire,07-Mar-2017,3253677-CLUB1706J,570.00,CLUBMAN CABS.
Children and Young Peoples Services,Childrens Services,Transport,230005,Contract Hire,07-Mar-2017,3253677-CLUB1706P,510.00,CLUBMAN CABS.
Children and Young Peoples Services,Childrens Services,Transport,230005,Contract Hire,07-Mar-2017,3253772-KDC020217,700.00,MJ TIMNEY T/A KDC & C&M TAXIS.
Children and Young Peoples Services,Childrens Services,Third Party Payments,440016,Other Third Party Payments,07-Mar-2017,3252948-1171550,527.30,REDACTED - PAYMENT TO INDIVIDUAL
Children and Young Peoples Services,Childrens Services,Third Party Payments,440015,Other Third Party Payments,07-Mar-2017,3252974-1171436,"1,037.06",REDACTED - PAYMENT TO INDIVIDUAL
Children and Young Peoples Services,Childrens Services,Third Party Payments,440016,Other Third Party Payments,07-Mar-2017,3252989-1171591,510.34,REDACTED - PAYMENT TO INDIVIDUAL
Children and Young Peoples Services,Childrens Services,Third Party Payments,440016,Other Third Party Payments,07-Mar-2017,3253006-1171286,773.28,REDACTED - PAYMENT TO INDIVIDUAL
Children and Young Peoples Services,Childrens Services,Third Party Payments,440016,Other Third Party Payments,07-Mar-2017,3253039-1171272,887.34,REDACTED - PAYMENT TO INDIVIDUAL
Children and Young Peoples Services,Childrens Services,Third Party Payments,440016,Other Third Party Payments,07-Mar-2017,3253052-1171293,598.80,REDACTED - PAYMENT TO INDIVIDUAL
Children and Young Peoples Services,Childrens Services,Third Party Payments,440016,Other Third Party Payments,07-Mar-2017,3253078-1171340,991.04,REDACTED - PAYMENT TO INDIVIDUAL
Children and Young Peoples Services,Childrens Services,Third Party Payments,440016,Other Third Party Payments,07-Mar-2017,3253081-1171444,923.30,REDACTED - PAYMENT TO INDIVIDUAL
Children and Young Peoples Services,Childrens Services,Third Party Payments,440016,Other Third Party Payments,07-Mar-2017,3253135-1171405,"1,401.89",REDACTED - PAYMENT TO INDIVIDUAL
Children and Young Peoples Services,Childrens Services,Third Party Payments,440016,Other Third Party Payments,07-Mar-2017,3253252-1171407,741.51,REDACTED - PAYMENT TO INDIVIDUAL
Children and Young Peoples Services,Childrens Services,Third Party Payments,440016,Other Third Party Payments,07-Mar-2017,3253256-1171580,605.64,REDACTED - PAYMENT TO INDIVIDUAL
Children and Young Peoples Services,Childrens Services,Third Party Payments,440016,Other Third Party Payments,07-Mar-2017,3253297-1171431,985.66,REDACTED - PAYMENT TO INDIVIDUAL
Children and Young Peoples Services,Childrens Services,Third Party Payments,440016,Other Third Party Payments,07-Mar-2017,3253303-1171565,691.20,REDACTED - PAYMENT TO INDIVIDUAL
Children and Young Peoples Services,Childrens Services,Third Party Payments,440016,Other Third Party Payments,07-Mar-2017,3253317-1171314,"1,194.96",REDACTED - PAYMENT TO INDIVIDUAL
Children and Young Peoples Services,Childrens Services,Third Party Payments,440015,Other Third Party Payments,07-Mar-2017,3253365-1171509,568.80,REDACTED - PAYMENT TO INDIVIDUAL
Children and Young Peoples Services,Childrens Services,Third Party Payments,440016,Other Third Party Payments,07-Mar-2017,3253396-1171576,668.44,REDACTED - PAYMENT TO INDIVIDUAL
Children and Young Peoples Services,Childrens Services,Third Party Payments,440016,Other Third Party Payments,07-Mar-2017,3253413-1171541,654.00,REDACTED - PAYMENT TO INDIVIDUAL
Children and Young Peoples Services,Childrens Services,Third Party Payments,440016,Other Third Party Payments,07-Mar-2017,3253425-1172146,"1,092.07",REDACTED - PAYMENT TO INDIVIDUAL
Children and Young Peoples Services,Childrens Services,Third Party Payments,440016,Other Third Party Payments,07-Mar-2017,3253425-1172147,"1,205.53",REDACTED - PAYMENT TO INDIVIDUAL
Children and Young Peoples Services,Childrens Services,Third Party Payments,440016,Other Third Party Payments,07-Mar-2017,3253440-1171342,"1,114.07",REDACTED - PAYMENT TO INDIVIDUAL
Children and Young Peoples Services,Childrens Services,Third Party Payments,440016,Other Third Party Payments,07-Mar-2017,3253443-1171536,649.84,REDACTED - PAYMENT TO INDIVIDUAL
Children and Young Peoples Services,Childrens Services,Third Party Payments,440016,Other Third Party Payments,07-Mar-2017,3253519-1171588,515.92,REDACTED - PAYMENT TO INDIVIDUAL
Children and Young Peoples Services,Childrens Services,Third Party Payments,440016,Other Third Party Payments,07-Mar-2017,3253534-1171505,796.78,REDACTED - PAYMENT TO INDIVIDUAL
Children and Young Peoples Services,Childrens Services,Third Party Payments,440028,Other Third Party Payments,07-Mar-2017,3253539-1172130,941.64,REDACTED - PAYMENT TO INDIVIDUAL
Children and Young Peoples Services,Childrens Services,Third Party Payments,440016,Other Third Party Payments,07-Mar-2017,3253557-1171295,854.37,REDACTED - PAYMENT TO INDIVIDUAL
Children and Young Peoples Services,Childrens Services,Third Party Payments,440016,Other Third Party Payments,07-Mar-2017,3253583-1171484,558.76,REDACTED - PAYMENT TO INDIVIDUAL
Children and Young Peoples Services,Childrens Services,Third Party Payments,440016,Other Third Party Payments,07-Mar-2017,3253586-1171277,590.22,REDACTED - PAYMENT TO INDIVIDUAL
Children and Young Peoples Services,Childrens Services,Third Party Payments,440016,Other Third Party Payments,07-Mar-2017,3253612-1171294,713.76,REDACTED - PAYMENT TO INDIVIDUAL
Children and Young Peoples Services,Childrens Services,Third Party Payments,440016,Other Third Party Payments,07-Mar-2017,3253613-1171279,560.04,REDACTED - PAYMENT TO INDIVIDUAL
Children and Young Peoples Services,Childrens Services,Third Party Payments,440016,Other Third Party Payments,07-Mar-2017,3253616-1171592,"1,190.42",REDACTED - PAYMENT TO INDIVIDUAL
Children and Young Peoples Services,Childrens Services,Transport,230005,Contract Hire,07-Mar-2017,3253626-B45/ZL,"2,090.00",AABAT TAXIS.
Children and Young Peoples Services,Childrens Services,Transport,230005,Contract Hire,07-Mar-2017,3253626-L6/ZA,"1,536.00",AABAT TAXIS.
Children and Young Peoples Services,Childrens Services,Transport,230005,Contract Hire,07-Mar-2017,3253682-6993,743.20,CROFT BUSINESS SERVICES (UK) LTD T/A CROFT TAXIS.
Children and Young Peoples Services,Childrens Services,Transport,230005,Contract Hire,07-Mar-2017,3253752-3134,525.00,LOCAL TRANSPORT LTD.
Children and Young Peoples Services,Childrens Services,Transport,230005,Contract Hire,07-Mar-2017,3253752-3140,840.00,LOCAL TRANSPORT LTD.
Children and Young Peoples Services,Childrens Services,Transport,230005,Contract Hire,07-Mar-2017,3253752-3142,510.00,LOCAL TRANSPORT LTD.
Children and Young Peoples Services,Childrens Services,Transport,230005,Contract Hire,07-Mar-2017,3253752-3155,"2,100.00",LOCAL TRANSPORT LTD.
Children and Young Peoples Services,Childrens Services,Third Party Payments,440056,Other Third Party Payments,07-Mar-2017,3253725-550,"5,656.10",IMPACT FAMILY SERVICES.
Regeneration and Local Services,Direct Services,Third Party Payments,430100,Rendered by Private Contractors,07-Mar-2017,3253699-570,"1,490.00",EQUINE SUPPORT LTD.
Regeneration and Local Services,Direct Services,Construction Work,908105,Construction work,07-Mar-2017,3253714-ROSEB,"60,004.40",HALL CONSTRUCTION SERVICES LTD.
Regeneration and Local Services,Direct Services,Third Party Payments,430100,Rendered by Private Contractors,07-Mar-2017,3253720-R15/216,"1,480.00",HYGIENIC CLEANING COMPANY (UK) LTD.
Regeneration and Local Services,Direct Services,Supplies and Services,304221,Equipment and Materials,07-Mar-2017,3253724-2097,"1,081.00",IKONIC LIFTS LTD.
Regeneration and Local Services,Direct Services,Debtors,930046,Debtor-leasing,07-Mar-2017,3253731-6211,"19,391.00",ISUZU TRUCK (UK) LTD.
Regeneration and Local Services,Direct Services,Supplies and Services,328041,Clothing Uniforms and Laundry,07-Mar-2017,3253736-8140,"8,654.26",JG UNIFORMS.
Regeneration and Local Services,Direct Services,Third Party Payments,430100,Rendered by Private Contractors,07-Mar-2017,3253740-3988,"1,075.00",KTD NE LTD.
Regeneration and Local Services,Direct Services,Third Party Payments,430100,Rendered by Private Contractors,07-Mar-2017,3253740-3992,"1,075.00",KTD NE LTD.
Regeneration and Local Services,Direct Services,Third Party Payments,430100,Rendered by Private Contractors,07-Mar-2017,3253740-4007,"1,075.00",KTD NE LTD.
Regeneration and Local Services,Direct Services,Supplies and Services,304259,Equipment and Materials,07-Mar-2017,3253787-2279887,927.00,NORTHERN TOOLS & ACCESSORIES.
Regeneration and Local Services,Direct Services,Third Party Payments,430100,Rendered by Private Contractors,07-Mar-2017,3253800-60234,584.00,QW SECURITY LTD.
Regeneration and Local Services,Direct Services,Premises,108099,Service Repairs and Maintenance,07-Mar-2017,3253810-3215,660.96,SAFE STRIP UK LTD.
Regeneration and Local Services,Direct Services,Stock,926004,Stock,07-Mar-2017,3253855-SI85499,911.50,ZOELLER WASTE SYSTEMS LTD.
Regeneration and Local Services,Economic Development and Housing,Cap Exp on Grants & Other Financial Assistance (REFCUS),918401,Capital grants,07-Mar-2017,3253717-RED-03-2017-051,"3,345.00",HES GROUP UK LTD.
Regeneration and Local Services,Economic Development and Housing,Construction Work,908105,Construction work,07-Mar-2017,3253728-SEDGEFIELDNETPARK,"328,553.67",INTERSERVE CONSTRUCTION LTD.
Regeneration and Local Services,Economic Development and Housing,Supplies and Services,384999,Miscellaneous Expenses,07-Mar-2017,3253746-RED-03-2017-058,500.00,LIVIN HOUSING LTD.
Regeneration and Local Services,Economic Development and Housing,Supplies and Services,342033,Computers and Communications,07-Mar-2017,3253784-RED-03-2017-065,968.55,NORTH DURHAM SAFETY LTD.
Regeneration and Local Services,Economic Development and Housing,Cap Exp on Grants & Other Financial Assistance (REFCUS),918401,Capital grants,07-Mar-2017,3253793-RED-03-2017-050,"2,842.00",PEART ACCESS RAMPS.
Regeneration and Local Services,Economic Development and Housing,Cap Exp on Grants & Other Financial Assistance (REFCUS),918401,Capital grants,07-Mar-2017,3253824-RED-03-2017-049,"3,328.82",SUNTER LTD.
Regeneration and Local Services,Economic Development and Housing,Supplies and Services,384700,Miscellaneous Expenses,07-Mar-2017,3253829-RED-03-2017-063,"1,000.00",TEAMS ROOFING LTD.
Children and Young Peoples Services,Education,Transport,230011,Contract Hire,07-Mar-2017,3253624-21704,700.00,24/7 TAXI SERVICES LTD.
Children and Young Peoples Services,Education,Transport,230009,Contract Hire,07-Mar-2017,3253795-544,750.00,PETERLEE EXECUTIVE CARS.
Children and Young Peoples Services,Education,Transport,235005,Public Transport,07-Mar-2017,3253843-DCC/STJOHNS101,"5,616.00",WEARDALE MOTOR SERVICES LTD.
Children and Young Peoples Services,Education,Transport,230012,Contract Hire,07-Mar-2017,3253631-22MO-28/2/17,660.00,AJ ADAMSON (TONY`S TAXIS).
Children and Young Peoples Services,Education,Transport,230007,Contract Hire,07-Mar-2017,3253627-20-28/2/17,885.00,ABLE NOVAK TAXIS.
Children and Young Peoples Services,Education,Transport,230008,Contract Hire,07-Mar-2017,3253627-21-28/2/17,750.00,ABLE NOVAK TAXIS.
Children and Young Peoples Services,Education,Transport,230008,Contract Hire,07-Mar-2017,3253766-06-28/2/16,"1,050.00",MARK SUMMERS T/A MARK`S TAXI.
Children and Young Peoples Services,Education,Transport,230008,Contract Hire,07-Mar-2017,3253776-SFB/02/17,"1,243.20",MR J AGAR T/A PARK TAXIS.
Children and Young Peoples Services,Education,Third Party Payments,440999,Other Third Party Payments,07-Mar-2017,3253782-2PROJECT1,"4,963.50",NIGEL BROUGH T/A BESPOKE TRAINING SOLUTIONS LTD.
Children and Young Peoples Services,Education,Transport,230008,Contract Hire,07-Mar-2017,3253837-TS-15/6,720.00,TOP STAR TRAVEL.
Children and Young Peoples Services,Education,Transport,230012,Contract Hire,07-Mar-2017,3253837-TS-18/6,840.00,TOP STAR TRAVEL.
Children and Young Peoples Services,Education,Transport,235005,Public Transport,07-Mar-2017,3253641-111962,"3,789.00",ARRIVA NORTH EAST LTD.
Children and Young Peoples Services,Education,Transport,230008,Contract Hire,07-Mar-2017,3253791-DCC137,"1,218.15",PAUL`S TAXIS..
Children and Young Peoples Services,Education,Transport,230008,Contract Hire,07-Mar-2017,3253837-TS21/6,720.00,TOP STAR TRAVEL.
Children and Young Peoples Services,Education,Transport,230013,Contract Hire,07-Mar-2017,3253845-488006,817.50,WENDYS` TAXIS.
Children and Young Peoples Services,Education,Transport,230008,Contract Hire,07-Mar-2017,3253803-16114,"1,020.00",RAPID MINIBUSES.
Children and Young Peoples Services,Education,Transport,230012,Contract Hire,07-Mar-2017,3253813-72443,"1,200.00",SHOTTON PRIVATE HIRE.
Children and Young Peoples Services,Education,Transport,230008,Contract Hire,07-Mar-2017,3253653-1427,"1,340.25",BOBBY DOVE.
Children and Young Peoples Services,Education,Transport,230008,Contract Hire,07-Mar-2017,3253689-0032,"2,250.00",DAVID WALKER TAXIS.
Children and Young Peoples Services,Education,Transport,230012,Contract Hire,07-Mar-2017,3253798-1231,930.00,PODA LTD.
Children and Young Peoples Services,Education,Transport,230008,Contract Hire,07-Mar-2017,3253798-1232,675.00,PODA LTD.
Children and Young Peoples Services,Education,Transport,230008,Contract Hire,07-Mar-2017,3253798-1233,"1,374.00",PODA LTD.
Children and Young Peoples Services,Education,Transport,230006,Contract Hire,07-Mar-2017,3253807-0038,"1,275.00",RONS TAXI (CHESTER LE ST).
Children and Young Peoples Services,Education,Transport,235005,Public Transport,07-Mar-2017,3253843-1706,"1,498.00",WEARDALE MOTOR SERVICES LTD.
Children and Young Peoples Services,Education,Transport,230012,Contract Hire,07-Mar-2017,3253847-0217,910.00,WEST AUCKLAND TOWN TRAVEL (WATT).
Children and Young Peoples Services,Education,Transport,230007,Contract Hire,07-Mar-2017,3253628-606,750.00,AC TAXIS.
Children and Young Peoples Services,Education,Transport,230004,Contract Hire,07-Mar-2017,3253628-607,690.00,AC TAXIS.
Children and Young Peoples Services,Education,Transport,230008,Contract Hire,07-Mar-2017,3253795-541,960.00,PETERLEE EXECUTIVE CARS.
Children and Young Peoples Services,Education,Transport,230008,Contract Hire,07-Mar-2017,3253795-542,"1,050.00",PETERLEE EXECUTIVE CARS.
Children and Young Peoples Services,Education,Transport,230007,Contract Hire,07-Mar-2017,3253795-543,660.00,PETERLEE EXECUTIVE CARS.
Children and Young Peoples Services,Education,Transport,230008,Contract Hire,07-Mar-2017,3253796-765,"2,675.25",PG TRIPS.
Children and Young Peoples Services,Education,Transport,230012,Contract Hire,07-Mar-2017,3253814-600,"1,567.50",SIMONS TAXIS.
Children and Young Peoples Services,Education,Transport,230008,Contract Hire,07-Mar-2017,3253814-601,"1,170.00",SIMONS TAXIS.
Children and Young Peoples Services,Education,Transport,230012,Contract Hire,07-Mar-2017,3253723-39,975.00,IAN SHEPLEY T/A SHEPPA`S TAXIS.
Transformation and Partnerships,Partnerships & Community Engagement Div.,Supplies and Services,384086,Miscellaneous Expenses,07-Mar-2017,3253818-VOUCHER16NB-STAN033,"5,390.00",STARS YOUTH & COMMUNITY CIC.
Regeneration and Local Services,Planning & Assets,Supplies and Services,384199,Miscellaneous Expenses,07-Mar-2017,3253681-INV-0010,"3,000.00",CP VIABILITY LTD.
Adult and Health Services,Planning & Service Strategy,Supplies and Services,338091,Services,07-Mar-2017,3253708-103022621,800.00,GATESHEAD COUNCIL.
Adult and Health Services,Public Health,Third Party Payments,460802,Contract Payments,07-Mar-2017,3253654-FKP88/DEC2016/EOHC,950.80,BOOTS THE CHEMISTS LTD.*
Adult and Health Services,Public Health,Third Party Payments,460802,Contract Payments,07-Mar-2017,3253656-FYR53/DEC2016/EOHC,"2,353.23",BOOTS THE CHEMISTS LTD.*
Adult and Health Services,Public Health,Third Party Payments,460802,Contract Payments,07-Mar-2017,3253665-FMG71/DEC2016/EOHC,546.71,BOOTS THE CHEMISTS LTD.*
Adult and Health Services,Public Health,Third Party Payments,460802,Contract Payments,07-Mar-2017,3253666-FHD21/DEC2016/EOHC,665.56,BOOTS THE CHEMISTS LTD.*
Adult and Health Services,Public Health,Third Party Payments,460802,Contract Payments,07-Mar-2017,3253678-3980022288,"277,500.00",CO DURHAM & DARLINGTON NHS FOUNDATION TRUST.
Adult and Health Services,Public Health,Third Party Payments,460803,Contract Payments,07-Mar-2017,3253678-3980022290,"177,500.00",CO DURHAM & DARLINGTON NHS FOUNDATION TRUST.
Adult and Health Services,Public Health,Third Party Payments,460802,Contract Payments,07-Mar-2017,3253819-FRK79/DEC2016/EOHC,594.25,STATION ROAD SURGERY.
Regeneration and Local Services,Technical Services,Supplies and Services,304221,Equipment and Materials,07-Mar-2017,3253630-24410362,522.34,AGGREGATE INDUSTRIES UK LTD.
Regeneration and Local Services,Technical Services,Supplies and Services,304221,Equipment and Materials,07-Mar-2017,3253630-24410363,508.40,AGGREGATE INDUSTRIES UK LTD.
Regeneration and Local Services,Technical Services,Supplies and Services,304357,Equipment and Materials,07-Mar-2017,3253706-DCC190217,"17,159.00",GAP GROUP LTD.
Regeneration and Local Services,Technical Services,Stock,926900,Stock in hand-Inventory system,07-Mar-2017,3253738-NI032534,"8,039.00",JOHN MACLEAN & SONS ELECTRICAL (DINGWALL) LTD.
Regeneration and Local Services,Technical Services,Stock,926900,Stock in hand-Inventory system,07-Mar-2017,3253738-NI032535,"10,481.16",JOHN MACLEAN & SONS ELECTRICAL (DINGWALL) LTD.
Regeneration and Local Services,Technical Services,Third Party Payments,430127,Rendered by Private Contractors,07-Mar-2017,3253765-5382,920.00,MAKEPEACE MOTORS.
Regeneration and Local Services,Technical Services,Third Party Payments,430127,Rendered by Private Contractors,07-Mar-2017,3253765-5383,920.00,MAKEPEACE MOTORS.
Regeneration and Local Services,Technical Services,Third Party Payments,430127,Rendered by Private Contractors,07-Mar-2017,3253765-5385,"3,699.50",MAKEPEACE MOTORS.
Regeneration and Local Services,Technical Services,Third Party Payments,430127,Rendered by Private Contractors,07-Mar-2017,3253765-5386,"3,616.50",MAKEPEACE MOTORS.
Regeneration and Local Services,Technical Services,Supplies and Services,384194,Miscellaneous Expenses,07-Mar-2017,3253783-78017,"1,945.00",NIRAMAX GROUP LTD.
Regeneration and Local Services,Transport and Contracted Services,Construction Work,908105,Construction work,07-Mar-2017,3253633-RED-03-2017-062,520.00,ALL SEASONS ARBORISTS.
Regeneration and Local Services,Transport and Contracted Services,Third Party Payments,430106,Rendered by Private Contractors,07-Mar-2017,3253707-19060,"1,631.14",GARNETTS LTD (COACHES).
Regeneration and Local Services,Transport and Contracted Services,Third Party Payments,430106,Rendered by Private Contractors,07-Mar-2017,3253785-LINK2-0026,"17,631.52",NORTH EAST ACCESSIBLE TRANSPORT LTD (NEAT).
Regeneration and Local Services,Transport and Contracted Services,Third Party Payments,430100,Rendered by Private Contractors,07-Mar-2017,3253788-042828,"24,169.90",NSL LTD.
Regeneration and Local Services,Transport and Contracted Services,Third Party Payments,430100,Rendered by Private Contractors,07-Mar-2017,3253788-042832,"1,156.98",NSL LTD.
Regeneration and Local Services,Transport and Contracted Services,Third Party Payments,430100,Rendered by Private Contractors,07-Mar-2017,3253788-042833,"42,102.92",NSL LTD.
Regeneration and Local Services,Transport and Contracted Services,Third Party Payments,430100,Rendered by Private Contractors,07-Mar-2017,3253788-042835,"2,899.76",NSL LTD.
Regeneration and Local Services,Transport and Contracted Services,Third Party Payments,430100,Rendered by Private Contractors,07-Mar-2017,3253788-042836,"4,523.48",NSL LTD.
Regeneration and Local Services,Transport and Contracted Services,Third Party Payments,430100,Rendered by Private Contractors,07-Mar-2017,3253788-042841,"15,575.88",NSL LTD.
Regeneration and Local Services,Transport and Contracted Services,Third Party Payments,430100,Rendered by Private Contractors,07-Mar-2017,3253788-042912,"18,414.99",NSL LTD.
Regeneration and Local Services,Transport and Contracted Services,Third Party Payments,430106,Rendered by Private Contractors,07-Mar-2017,3253801-2047,"5,506.60",R COOPER T/A DC TAXIS.
Regeneration and Local Services,Transport and Contracted Services,Third Party Payments,430106,Rendered by Private Contractors,07-Mar-2017,3253817-23626,"13,828.71",STANLEY TRAVEL (NORTH EAST) LTD.
Adult and Health Services,Adult Care,Transport,230005,Contract Hire,08-Mar-2017,3253871-NCL0217,765.00,AIRPORT CARS DURHAM
Adult and Health Services,Adult Care,Transport,230005,Contract Hire,08-Mar-2017,3253892-1461,"1,000.00",BOBBY DOVE.
Adult and Health Services,Adult Care,Transport,230005,Contract Hire,08-Mar-2017,3253932-6965,502.96,CROFT BUSINESS SERVICES (UK) LTD T/A CROFT TAXIS.
Adult and Health Services,Adult Care,Transport,230005,Contract Hire,08-Mar-2017,3253932-6969,"1,897.40",CROFT BUSINESS SERVICES (UK) LTD T/A CROFT TAXIS.
Adult and Health Services,Adult Care,Transport,230005,Contract Hire,08-Mar-2017,3253967-52,726.00,EXTREME TAXI`S.
Adult and Health Services,Adult Care,Transport,230005,Contract Hire,08-Mar-2017,3253971-10069,710.20,G & P JOHNSON LTD T/A NIGHTINGALE COACHES.
Adult and Health Services,Adult Care,Transport,230005,Contract Hire,08-Mar-2017,3254031-108-28/2/17,"1,275.00",KEN CHAMBERS T/A SHILDON TRANSPORT LTD.
Adult and Health Services,Adult Care,Transport,230005,Contract Hire,08-Mar-2017,3254061-EDB02-17,786.60,MR CT WALKER T/A CW TAXIS.
Adult and Health Services,Adult Care,Transport,230005,Contract Hire,08-Mar-2017,3254064-201707,600.00,MR JR FORT.
Adult and Health Services,Adult Care,Transfer Payments,515209,Social Services Clients,08-Mar-2017,3254104-1692835D.,992.00,REDACTED - PAYMENT TO INDIVIDUAL
Adult and Health Services,Adult Care,Supplies and Services,304259,Equipment and Materials,08-Mar-2017,3254115-086914,617.95,ROMPA LTD.
Adult and Health Services,Adult Care,Supplies and Services,304259,Equipment and Materials,08-Mar-2017,3254115-086917,617.95,ROMPA LTD.
Adult and Health Services,Adult Care,Supplies and Services,304259,Equipment and Materials,08-Mar-2017,3254115-086925,617.95,ROMPA LTD.
Adult and Health Services,Adult Care,Transport,230005,Contract Hire,08-Mar-2017,3254175-2616,520.00,TRANSPORT.ADVENTURE.XI.
Adult and Health Services,Adult Care,Transport,230005,Contract Hire,08-Mar-2017,3254188-5828,"1,390.00",WEARDALE PRIVATE HIRE.
Children and Young Peoples Services,Childrens Services,Third Party Payments,440999,Other Third Party Payments,08-Mar-2017,3254190-2016113,545.00,WHEATLEY HILL COMMUNITY NURSERY LTD.
Children and Young Peoples Services,Childrens Services,Employees,080025,Agency Staff,08-Mar-2017,3254183-246187,749.85,VISION FOR EDUCATION LTD.
Children and Young Peoples Services,Childrens Services,Employees,080025,Agency Staff,08-Mar-2017,3254183-246188,540.00,VISION FOR EDUCATION LTD.
Children and Young Peoples Services,Childrens Services,Supplies and Services,384871,Miscellaneous Expenses,08-Mar-2017,3254082-026,"4,133.60",NICOLA JONES EDUCATION CONSULTANCY & TRAINING.
Adult and Health Services,Commissioning,Third Party Payments,440051,Other Third Party Payments,08-Mar-2017,3253944-A4,"3,841.67",DERIC YOUTH BUS PROJECT.
Adult and Health Services,Commissioning,Third Party Payments,470111,Purchase of Care,08-Mar-2017,3254078-INV133522,"27,447.11",NEWCROSS HEALTHCARE SOLUTIONS LTD.
Regeneration and Local Services,Culture & Sport,Supplies and Services,384237,Miscellaneous Expenses,08-Mar-2017,3253993-416601,"4,587.10",HARROD UK LTD.
Regeneration and Local Services,Culture & Sport,Supplies and Services,312013,Newspapers Books and Periodicals,08-Mar-2017,3254092-201761850,"2,359.16",OCLC (UK) LTD.
Regeneration and Local Services,Culture & Sport,Supplies and Services,332029,Printing Stationery and Gen Off Exps,08-Mar-2017,3254147-393772,"1,750.00",STAR RADIO.
Regeneration and Local Services,Culture & Sport,Supplies and Services,338047,Services,08-Mar-2017,3254169-641,"2,470.28",THEATRE ROYAL WAKEFIELD.
Regeneration and Local Services,Direct Services,Third Party Payments,430100,Rendered by Private Contractors,08-Mar-2017,3253866-IN2864,"9,391.00",ACROL AIR CONDITIONING CO LTD.
Regeneration and Local Services,Direct Services,Third Party Payments,430100,Rendered by Private Contractors,08-Mar-2017,3253908-2280,"4,759.67",CATHEDRAL LOCK & SAFE SERVICES LTD.
Regeneration and Local Services,Direct Services,Supplies and Services,304221,Equipment and Materials,08-Mar-2017,3253960-059-199906,928.00,EDMUNDSON ELECTRICAL LTD.
Regeneration and Local Services,Direct Services,Supplies and Services,304259,Equipment and Materials,08-Mar-2017,3253978-I138483,"2,316.37",GEMCO SERVICE LTD.
Regeneration and Local Services,Direct Services,Supplies and Services,304259,Equipment and Materials,08-Mar-2017,3254127-CD970447361,"2,959.00",SHERRIFF AMENITY.
Regeneration and Local Services,Direct Services,Supplies and Services,304259,Equipment and Materials,08-Mar-2017,3254127-CD970447362,846.80,SHERRIFF AMENITY.
Regeneration and Local Services,Direct Services,Supplies and Services,304259,Equipment and Materials,08-Mar-2017,3254127-CD970447366,"2,190.40",SHERRIFF AMENITY.
Children and Young Peoples Services,Education,Transfer Payments,510034,School Children,08-Mar-2017,3253914-2174SB000AUTUMN1617,500.00,SUNDERLAND CITY COUNCIL.
Children and Young Peoples Services,Education,Transfer Payments,510034,School Children,08-Mar-2017,3253918-LACPP1617AUTUM-ROSA,"2,950.00",CLEVES CROSS LEARNING TRUST T/A ROSA STREET PRIMARY SCHOOL.
Children and Young Peoples Services,Education,Transfer Payments,510034,School Children,08-Mar-2017,3253864-LACPP1617AUTUMN,500.00,ACORN CARE & EDUCATION.
Children and Young Peoples Services,Education,Transfer Payments,510034,School Children,08-Mar-2017,3253873-LACPP1617AUTUMN,500.00,ALVERTON COMMUNITY PRIMARY SCHOOL
Children and Young Peoples Services,Education,Transfer Payments,510034,School Children,08-Mar-2017,3253886-LACPP1617AUTUMN,500.00,BIDDICK ACADEMY.
Children and Young Peoples Services,Education,Transfer Payments,510034,School Children,08-Mar-2017,3253913-LACPP1617AUTUMN,875.00,SUNDERLAND CITY COUNCIL.
Children and Young Peoples Services,Education,Transfer Payments,510034,School Children,08-Mar-2017,3253955-LACPP1617AUTUMN,"1,000.00",EASINGTON LANE PRIMARY SCHOOL.
Children and Young Peoples Services,Education,Transfer Payments,510034,School Children,08-Mar-2017,3253989-LACPP1617AUTUMN,"1,000.00",GRINDON HALL CHRISTIAN SCHOOL.
Children and Young Peoples Services,Education,Transfer Payments,510034,School Children,08-Mar-2017,3253999-LACPP1617AUTUMN,500.00,HILL VIEW JUNIOR SCHOOL.
Children and Young Peoples Services,Education,Transfer Payments,510034,School Children,08-Mar-2017,3254004-LACPP1617AUTUMN,500.00,HOUGHTON KEPIER SPORTS COLLEGE ACADEMY TRUST LTD.
Children and Young Peoples Services,Education,Transfer Payments,510034,School Children,08-Mar-2017,3254047-LACPP1617AUTUMN,"1,000.00",LONGFIELD ACADEMY OF SPORT.
Children and Young Peoples Services,Education,Transfer Payments,510034,School Children,08-Mar-2017,3254056-LACPP1617AUTUMN,500.00,MIDDLESBROUGH BOROUGH COUNCIL.
Children and Young Peoples Services,Education,Transfer Payments,510034,School Children,08-Mar-2017,3254090-LACPP1617AUTUMN,500.00,NOTTINGHAM ACADEMY.
Children and Young Peoples Services,Education,Transfer Payments,510034,School Children,08-Mar-2017,3254091-LACPP1617AUTUMN,555.00,NUNTHORPE ACADEMY LTD.
Children and Young Peoples Services,Education,Transfer Payments,510034,School Children,08-Mar-2017,3254094-LACPP1617AUTUMN,500.00,OUR LADY & ST BEDE CATHOLIC ACADEMY.
Children and Young Peoples Services,Education,Transfer Payments,510034,School Children,08-Mar-2017,3254139-LACPP1617AUTUMN,"1,500.00",ST AIDAN`S CATHOLIC ACADEMY.
Children and Young Peoples Services,Education,Transfer Payments,510034,School Children,08-Mar-2017,3254140-LACPP1617AUTUMN,815.00,ST ANTHONY`S GIRLS SCHOOL.
Children and Young Peoples Services,Education,Transfer Payments,510034,School Children,08-Mar-2017,3254152-LACPP1617AUTUMN,"2,000.00",STOCKTON ON TEES BOROUGH COUNCIL.
Children and Young Peoples Services,Education,Transfer Payments,510034,School Children,08-Mar-2017,3254164-LACPP1617AUTUMN,826.00,THE FEDERATION OF ABBEY SCHOOLS ACADEMY TRUST.
Children and Young Peoples Services,Education,Transfer Payments,510034,School Children,08-Mar-2017,3254165-LACPP1617AUTUMN,"1,000.00",THE KING EDWARD VI SCHOOL.
Children and Young Peoples Services,Education,Transfer Payments,510034,School Children,08-Mar-2017,3254177-LACPP1617AUTUMN,800.00,TRINITY ACADEMY NEWCASTLE.
Children and Young Peoples Services,Education,Transfer Payments,510034,School Children,08-Mar-2017,3254181-LACPP1617AUTUMN,"1,500.00",VENERABLE BEDE CHURCH OF ENGLAND ACADEMY.
Children and Young Peoples Services,Education,Transfer Payments,510034,School Children,08-Mar-2017,3254186-LACPP1617AUTUMN,500.00,WATH COMPREHENSIVE SCHOOL.
Children and Young Peoples Services,Education,Transfer Payments,510034,School Children,08-Mar-2017,3254189-LACPP1617AUTUMN,"1,000.00",WEST PARK ACADEMY.
Children and Young Peoples Services,Education,Transfer Payments,510034,School Children,08-Mar-2017,3254191-LACPP1617AUTUMN,585.00,WHITBURN CHURCH OF ENGLAND ACADEMY.
Children and Young Peoples Services,Education,Transfer Payments,510034,School Children,08-Mar-2017,3254192-LACPP1617AUTUMN,"1,000.00",WHITLEY BAY HIGH SCHOOL.
Children and Young Peoples Services,Education,Transfer Payments,510034,School Children,08-Mar-2017,306405-LACPP1617AUTUMN,"2,600.00",HETTON COMPREHENSIVE SCHOOL.
Children and Young Peoples Services,Education,Transfer Payments,510034,School Children,08-Mar-2017,306410-LACPP1617AUTUMN,500.00,KEYS CHILDCARE.
Children and Young Peoples Services,Education,Transfer Payments,510034,School Children,08-Mar-2017,306411-LACPP1617AUTUMN,500.00,KINGSMEADOW COMPREHENSIVE SCHOOL.
Children and Young Peoples Services,Education,Transfer Payments,510034,School Children,08-Mar-2017,3253865-LACPP1617AUTUM,500.00,ACRE RIGG ACADEMY.
Children and Young Peoples Services,Education,Transfer Payments,510034,School Children,08-Mar-2017,3253918-LACPP1617AUTUM,500.00,CLEVES CROSS LEARNING TRUST T/A ROSA STREET PRIMARY SCHOOL.
Children and Young Peoples Services,Education,Transfer Payments,510034,School Children,08-Mar-2017,3253943-LACPP1617AUTUM,890.96,DENE HOUSE PRIMARY SCHOOL (ACADEMY).
Children and Young Peoples Services,Education,Transfer Payments,510034,School Children,08-Mar-2017,3253952-LACPP1617AUTUM,500.00,DURHAM MARTYS MULTI ACADEMY TRUST T/A ST LEONARD`S CATHOLIC SCHOOL.
Children and Young Peoples Services,Education,Transfer Payments,510034,School Children,08-Mar-2017,3253954-LACPP1617AUTUM,"1,498.00",EASINGTON ACADEMY.
Children and Young Peoples Services,Education,Transfer Payments,510034,School Children,08-Mar-2017,3253998-LACPP1617AUTUM,"2,000.00",HERMITAGE ACADEMY.
Children and Young Peoples Services,Education,Transfer Payments,510034,School Children,08-Mar-2017,3254002-LACPP1617AUTUM,"3,930.00",HOPE WOOD ACADEMY.
Children and Young Peoples Services,Education,Transfer Payments,510034,School Children,08-Mar-2017,3254036-LACPP1617AUTUM,"3,740.00",KING JAMES I ACADEMY.
Children and Young Peoples Services,Education,Transfer Payments,510034,School Children,08-Mar-2017,3254075-LACPP1617AUTUM,"3,202.00",NEW COLLEGE ACADEMIES TRUST - CONSETT ACADEMY.
Children and Young Peoples Services,Education,Transfer Payments,510034,School Children,08-Mar-2017,3254085-LACPP1617AUTUM,"1,300.00",NORTH DURHAM ACADEMY.
Children and Young Peoples Services,Education,Transfer Payments,510034,School Children,08-Mar-2017,3254089-QUEENELIZABETH,500.00,NORTHUMBERLAND COUNTY COUNCIL.
Children and Young Peoples Services,Education,Transfer Payments,510034,School Children,08-Mar-2017,3254097-LACPP1617AUTUM,"4,850.00",PARK VIEW ACADEMY.
Children and Young Peoples Services,Education,Transfer Payments,510034,School Children,08-Mar-2017,3254098-LACPP1617AUTUM,"2,000.00",PARKSIDE SPORTS COLLEGE ACADEMY.
Children and Young Peoples Services,Education,Transfer Payments,510034,School Children,08-Mar-2017,3254110-LACPP1617AUTUM,"1,500.00",RIBBON ACADEMY TRUST.
Children and Young Peoples Services,Education,Transport,230010,Contract Hire,08-Mar-2017,3254123-DCCPL004-FEB17,"1,395.00",SAVILLES TAXIS.
Children and Young Peoples Services,Education,Transfer Payments,510034,School Children,08-Mar-2017,3254128-LACPP1617AUTUM,"1,000.00",SHIELD ROW ACADEMY.
Children and Young Peoples Services,Education,Transfer Payments,510034,School Children,08-Mar-2017,3254141-LACPP1617AUTUM,"1,638.75",ST BEDES CATHOLIC ACADEMY (LANCHESTER).
Children and Young Peoples Services,Education,Transfer Payments,510034,School Children,08-Mar-2017,3254143-LACPP1617AUTUM,800.00,ST JOHN`S SCHOOL & SIXTH FORM COLLEGE A CATHOLIC ACADEMY.
Children and Young Peoples Services,Education,Transfer Payments,510034,School Children,08-Mar-2017,3254144-LACPP1617AUTUM,"1,180.00",STAINDROP SCHOOL.
Children and Young Peoples Services,Education,Transfer Payments,510034,School Children,08-Mar-2017,3254145-LACPP1617AUTUM,"1,870.00",STANLEY LEARNING PARTNERSHIP.
Children and Young Peoples Services,Education,Transfer Payments,510034,School Children,08-Mar-2017,3254163-LACPP1617AUTUM,"2,680.26",THE ACADEMY AT SHOTTON HALL.
Children and Young Peoples Services,Education,Transfer Payments,510034,School Children,08-Mar-2017,3254194-LACPP1617AUTUM,"2,228.00",WOODHAM ACADEMY.
Children and Young Peoples Services,Education,Transport,230010,Contract Hire,08-Mar-2017,3254008-BRIDGE001,"1,068.00",IAN SOULSBY.
Children and Young Peoples Services,Education,Transfer Payments,510034,School Children,08-Mar-2017,3254089-CORBRIDGE,"1,000.00",NORTHUMBERLAND COUNTY COUNCIL.
Children and Young Peoples Services,Education,Supplies and Services,338091,Services,08-Mar-2017,306447-Y0188672,945.00,UNIVERSITY OF EDINBURGH.
Children and Young Peoples Services,Education,Transport,230010,Contract Hire,08-Mar-2017,3254176-26007,684.00,TRAVEL 6.
Children and Young Peoples Services,Education,Transport,230010,Contract Hire,08-Mar-2017,3254176-27007,830.00,TRAVEL 6.
Children and Young Peoples Services,Education,Transport,230010,Contract Hire,08-Mar-2017,3253887-B009,"1,492.00",BIG MAMA`S TAXI.
Children and Young Peoples Services,Education,Transport,230010,Contract Hire,08-Mar-2017,3254150-0006,"1,080.00",STEPHEN REED T/A STEVE`S TAXIS.
Children and Young Peoples Services,Education,Transport,230010,Contract Hire,08-Mar-2017,3253868-545,825.00,ADAMSONS TAXIS.
Children and Young Peoples Services,Education,Transport,230012,Contract Hire,08-Mar-2017,3253883-SMITH/10FEBRUARY17,"1,281.15",BEELINE PRIVATE HIRE.
Children and Young Peoples Services,Education,Transfer Payments,510026,School Children,08-Mar-2017,3254166-DCATCH-SPRINGTERM,907.20,THE LAURELS CHILD CARE.
Children and Young Peoples Services,Education,Transport,230008,Contract Hire,08-Mar-2017,3253883-SMITH/FEBRUARY17,"1,054.95",BEELINE PRIVATE HIRE.
Children and Young Peoples Services,Education,Transport,230008,Contract Hire,08-Mar-2017,3254137-EVERGREEN194381,769.60,SPENNYMOOR TAXIS.
Children and Young Peoples Services,Education,Transport,230007,Contract Hire,08-Mar-2017,3253930-DCC/4118/FEB17,"3,540.00",COUNTY COACHES.
Children and Young Peoples Services,Education,Transport,230003,Contract Hire,08-Mar-2017,3253884-STJOHNSRC0217,"5,640.00",BELL BROTHERS TRAVEL.
Children and Young Peoples Services,Education,Transport,230007,Contract Hire,08-Mar-2017,3253867-Z060-28/2/17,619.99,AD TRAVEL LTD.
Children and Young Peoples Services,Education,Transport,230007,Contract Hire,08-Mar-2017,3254188-5803-28/2/17,"3,064.35",WEARDALE PRIVATE HIRE.
Children and Young Peoples Services,Education,Transport,230008,Contract Hire,08-Mar-2017,3254160-02/2017/001,742.50,TARNS TAXIS LTD.
Children and Young Peoples Services,Education,Transport,230008,Contract Hire,08-Mar-2017,3254160-02/2017/002,984.00,TARNS TAXIS LTD.
Children and Young Peoples Services,Education,Transport,230009,Contract Hire,08-Mar-2017,3253889-01-28/2/17,560.00,BILL`S TAXIS.
Children and Young Peoples Services,Education,Transport,230007,Contract Hire,08-Mar-2017,3253963-5182/0217,628.50,ELLIOTTS OF TRIMDON.
Children and Young Peoples Services,Education,Transport,230008,Contract Hire,08-Mar-2017,3253963-E014/0217,"1,198.50",ELLIOTTS OF TRIMDON.
Children and Young Peoples Services,Education,Transport,230006,Contract Hire,08-Mar-2017,3253963-E122/0217,920.00,ELLIOTTS OF TRIMDON.
Children and Young Peoples Services,Education,Supplies and Services,384491,Miscellaneous Expenses,08-Mar-2017,3253964-16C/DCC17,"2,390.80",EMERALD NURSERY.
Children and Young Peoples Services,Education,Transport,230008,Contract Hire,08-Mar-2017,3253997-6-28/2/17,675.00,HENRY FOREMAN T/A HENRY`S TAXIS.
Children and Young Peoples Services,Education,Transport,230008,Contract Hire,08-Mar-2017,3254061-WAL202-17,"1,095.00",MR CT WALKER T/A CW TAXIS.
Children and Young Peoples Services,Education,Transport,230008,Contract Hire,08-Mar-2017,3254137-AAK014219,"1,248.90",SPENNYMOOR TAXIS.
Children and Young Peoples Services,Education,Transport,230008,Contract Hire,08-Mar-2017,3254137-TJS094197,960.00,SPENNYMOOR TAXIS.
Children and Young Peoples Services,Education,Transport,230008,Contract Hire,08-Mar-2017,3254179-6-28/2/17,889.20,TW TINKLER T/A TT TAXIS.
Children and Young Peoples Services,Education,Supplies and Services,324117,Provisions,08-Mar-2017,3253896-71001815,524.40,BRAKE BROS FOODSERVICE LTD.
Children and Young Peoples Services,Education,Transport,230008,Contract Hire,08-Mar-2017,3254024-2016/33A,860.16,JM HUMBLE COACH HIRE.
Children and Young Peoples Services,Education,Transport,230012,Contract Hire,08-Mar-2017,3254061-BCR02-17,747.00,MR CT WALKER T/A CW TAXIS.
Children and Young Peoples Services,Education,Transport,230007,Contract Hire,08-Mar-2017,3254061-HLA02-17,957.00,MR CT WALKER T/A CW TAXIS.
Children and Young Peoples Services,Education,Transport,230008,Contract Hire,08-Mar-2017,3254061-TDW02-17,732.00,MR CT WALKER T/A CW TAXIS.
Children and Young Peoples Services,Education,Transport,230008,Contract Hire,08-Mar-2017,3254069-4-1/3/17,"1,050.00",REDACTED - PAYMENT TO INDIVIDUAL
Children and Young Peoples Services,Education,Transport,230008,Contract Hire,08-Mar-2017,3254069-7-1/3/17,"1,124.80",REDACTED - PAYMENT TO INDIVIDUAL
Children and Young Peoples Services,Education,Transport,230008,Contract Hire,08-Mar-2017,3253860-1-FEB17,"1,237.50",A & P TAXIS.
Children and Young Peoples Services,Education,Transport,230007,Contract Hire,08-Mar-2017,3253860-2-FEB17,"1,050.00",A & P TAXIS.
Children and Young Peoples Services,Education,Transport,230008,Contract Hire,08-Mar-2017,3253897-BZ00215,"1,215.00",BREZ`S TAXIS.
Children and Young Peoples Services,Education,Transport,230008,Contract Hire,08-Mar-2017,3253903-BIL0096,"1,340.25",CA MUSGROVE.
Children and Young Peoples Services,Education,Transport,230003,Contract Hire,08-Mar-2017,3254024-2016/33,"1,248.00",JM HUMBLE COACH HIRE.
Children and Young Peoples Services,Education,Transport,230003,Contract Hire,08-Mar-2017,3254024-2016/34,765.00,JM HUMBLE COACH HIRE.
Children and Young Peoples Services,Education,Supplies and Services,338094,Services,08-Mar-2017,3254039-2014027,823.50,LEISUREWORKS.
Children and Young Peoples Services,Education,Transport,230008,Contract Hire,08-Mar-2017,3254061-EL02-17,"1,202.80",MR CT WALKER T/A CW TAXIS.
Children and Young Peoples Services,Education,Transport,230008,Contract Hire,08-Mar-2017,3254063-0304833,"1,729.05",MR GN ROBBINS T/A GNR MINIBUS HIRE.
Children and Young Peoples Services,Education,Transport,230008,Contract Hire,08-Mar-2017,3254063-0304834,"1,368.00",MR GN ROBBINS T/A GNR MINIBUS HIRE.
Children and Young Peoples Services,Education,Transport,230003,Contract Hire,08-Mar-2017,3254120-3208/06,"1,335.00",S & S TRAVEL LTD.
Children and Young Peoples Services,Education,Transport,230008,Contract Hire,08-Mar-2017,3254172-0001820,"1,275.00",TONY RIDLEY T/A COLORS TAXIS LTD.
Children and Young Peoples Services,Education,Transport,230008,Contract Hire,08-Mar-2017,306398-M047/39,840.00,C STEWART.
Children and Young Peoples Services,Education,Transport,230008,Contract Hire,08-Mar-2017,3253901-PS0155,948.00,BURNDALE PRIVATE HIRE.
Children and Young Peoples Services,Education,Transport,230006,Contract Hire,08-Mar-2017,3253902-F67706,735.00,C & R TAXIS.
Children and Young Peoples Services,Education,Transport,230008,Contract Hire,08-Mar-2017,3253902-M10806,"1,350.00",C & R TAXIS.
Children and Young Peoples Services,Education,Transport,230008,Contract Hire,08-Mar-2017,3253902-W15306,795.00,C & R TAXIS.
Children and Young Peoples Services,Education,Transport,230003,Contract Hire,08-Mar-2017,3253923-C/9653,"1,927.50",COCHRANES T/A KELVIN TRAVEL.
Children and Young Peoples Services,Education,Transport,230003,Contract Hire,08-Mar-2017,3253923-C/9654,"2,077.50",COCHRANES T/A KELVIN TRAVEL.
Children and Young Peoples Services,Education,Transport,230008,Contract Hire,08-Mar-2017,3253935-TOW006,750.00,D IRVING T/A BJ TAXIS.
Children and Young Peoples Services,Education,Transport,230008,Contract Hire,08-Mar-2017,3253984-000029,"1,170.00",GP TAXIS.
Children and Young Peoples Services,Education,Transport,230008,Contract Hire,08-Mar-2017,3254003-INV146,975.00,HORNDALE TAXIS LTD.
Children and Young Peoples Services,Education,Transport,230008,Contract Hire,08-Mar-2017,3254034-010217,"1,662.50",KEVIN EDMUNDSON.
Children and Young Peoples Services,Education,Transport,230007,Contract Hire,08-Mar-2017,3254067-201/17,900.00,MR REES WILKINSON T/A B & L MINIBUS HIRE.
Children and Young Peoples Services,Education,Transport,230003,Contract Hire,08-Mar-2017,3254067-211/17,630.00,MR REES WILKINSON T/A B & L MINIBUS HIRE.
Children and Young Peoples Services,Education,Transport,230008,Contract Hire,08-Mar-2017,3254099-SC-111,"1,425.00",PAUL BURRELL T/A PAUL BURRELL TAXIS.
Children and Young Peoples Services,Education,Transport,230014,Contract Hire,08-Mar-2017,3254099-SC-112,"1,200.00",PAUL BURRELL T/A PAUL BURRELL TAXIS.
Children and Young Peoples Services,Education,Transport,230008,Contract Hire,08-Mar-2017,3254137-DR5319,"1,008.00",SPENNYMOOR TAXIS.
Children and Young Peoples Services,Education,Transport,230008,Contract Hire,08-Mar-2017,3254173-TS40/6,754.80,TOP STAR TRAVEL.
Children and Young Peoples Services,Education,Transport,230008,Contract Hire,08-Mar-2017,3253858-21706,"1,356.15",24/7 TAXI SERVICES LTD.
Children and Young Peoples Services,Education,Transport,230008,Contract Hire,08-Mar-2017,3253858-21714,"1,505.25",24/7 TAXI SERVICES LTD.
Children and Young Peoples Services,Education,Transport,230007,Contract Hire,08-Mar-2017,3253915-45737,"1,050.00",CJ GRIERSON T/A GRIERSONS COACHES.
Children and Young Peoples Services,Education,Transport,230006,Contract Hire,08-Mar-2017,3253947-17/23,816.00,DMG PRIVATE HIRE.
Children and Young Peoples Services,Education,Transport,230012,Contract Hire,08-Mar-2017,3253947-17/24,"1,043.10",DMG PRIVATE HIRE.
Children and Young Peoples Services,Education,Transport,230007,Contract Hire,08-Mar-2017,3253949-24231,"2,102.40",DURHAM CITY COACHES.
Children and Young Peoples Services,Education,Transport,230003,Contract Hire,08-Mar-2017,3253949-24232,"1,890.00",DURHAM CITY COACHES.
Children and Young Peoples Services,Education,Transport,230007,Contract Hire,08-Mar-2017,3253976-19038,"1,755.00",GARNETTS LTD (COACHES).
Children and Young Peoples Services,Education,Transport,230007,Contract Hire,08-Mar-2017,3253976-19040,"11,205.45",GARNETTS LTD (COACHES).
Children and Young Peoples Services,Education,Transport,230007,Contract Hire,08-Mar-2017,3253976-19042,"1,770.00",GARNETTS LTD (COACHES).
Children and Young Peoples Services,Education,Transport,230003,Contract Hire,08-Mar-2017,3253976-19047,"6,405.00",GARNETTS LTD (COACHES).
Children and Young Peoples Services,Education,Transport,235005,Public Transport,08-Mar-2017,3253983-60949,"2,880.00",GO GATESHEAD LTD.
Children and Young Peoples Services,Education,Transport,230003,Contract Hire,08-Mar-2017,3254022-19348,"1,494.35",JIM HUGHES COACHES LTD.
Children and Young Peoples Services,Education,Transport,230003,Contract Hire,08-Mar-2017,3254022-19349,"3,250.00",JIM HUGHES COACHES LTD.
Children and Young Peoples Services,Education,Transport,230003,Contract Hire,08-Mar-2017,3254022-19350,"3,900.00",JIM HUGHES COACHES LTD.
Children and Young Peoples Services,Education,Transport,230007,Contract Hire,08-Mar-2017,3254070-TN039,542.70,MR THOMAS G GRIFFITHS T/A TNL TAXIS.
Children and Young Peoples Services,Education,Transport,230008,Contract Hire,08-Mar-2017,3254130-72445,"2,400.00",SHOTTON PRIVATE HIRE.
Children and Young Peoples Services,Education,Transport,230007,Contract Hire,08-Mar-2017,3253863-1006,723.00,ACE TAXIS..
Children and Young Peoples Services,Education,Transport,230006,Contract Hire,08-Mar-2017,3253887-F689,990.00,BIG MAMA`S TAXI.
Children and Young Peoples Services,Education,Transport,230006,Contract Hire,08-Mar-2017,3253892-1426,"2,499.90",BOBBY DOVE.
Children and Young Peoples Services,Education,Transport,230006,Contract Hire,08-Mar-2017,3253927-1130,"1,410.00",CONNORS MINI BUSES.*
Children and Young Peoples Services,Education,Transport,230008,Contract Hire,08-Mar-2017,3253927-1133,"1,290.00",CONNORS MINI BUSES.*
Children and Young Peoples Services,Education,Transport,230008,Contract Hire,08-Mar-2017,3253927-1134,"1,290.00",CONNORS MINI BUSES.*
Children and Young Peoples Services,Education,Transport,230008,Contract Hire,08-Mar-2017,3253932-6975,824.88,CROFT BUSINESS SERVICES (UK) LTD T/A CROFT TAXIS.
Children and Young Peoples Services,Education,Transport,230008,Contract Hire,08-Mar-2017,3253937-1504,"1,035.00",DA TAXIS.
Children and Young Peoples Services,Education,Transport,230007,Contract Hire,08-Mar-2017,3253937-1505,600.00,DA TAXIS.
Children and Young Peoples Services,Education,Transport,230008,Contract Hire,08-Mar-2017,3253937-1506,"1,186.00",DA TAXIS.
Children and Young Peoples Services,Education,Transport,230008,Contract Hire,08-Mar-2017,3253941-3057,"1,281.45",DAVES MINIBUSES.
Children and Young Peoples Services,Education,Transport,230008,Contract Hire,08-Mar-2017,3253941-3058,"1,145.85",DAVES MINIBUSES.
Children and Young Peoples Services,Education,Transport,230008,Contract Hire,08-Mar-2017,3253941-3059,"1,695.00",DAVES MINIBUSES.
Children and Young Peoples Services,Education,Transport,230008,Contract Hire,08-Mar-2017,3253941-3060,"1,400.00",DAVES MINIBUSES.
Children and Young Peoples Services,Education,Transport,230007,Contract Hire,08-Mar-2017,3253965-0711,688.45,EN ROUTE TRAVEL.
Children and Young Peoples Services,Education,Transport,230008,Contract Hire,08-Mar-2017,3253965-0712,"1,265.70",EN ROUTE TRAVEL.
Children and Young Peoples Services,Education,Transport,230007,Contract Hire,08-Mar-2017,3254016-1894,540.00,J YOUNG T/A VIP TAXIS.
Children and Young Peoples Services,Education,Transport,230008,Contract Hire,08-Mar-2017,3254016-1896,795.00,J YOUNG T/A VIP TAXIS.
Children and Young Peoples Services,Education,Transport,230008,Contract Hire,08-Mar-2017,3254016-1898,855.00,J YOUNG T/A VIP TAXIS.
Children and Young Peoples Services,Education,Transport,230008,Contract Hire,08-Mar-2017,3254021-1068,"1,106.40",JDS PRIVATE HIRE DURHAM.
Children and Young Peoples Services,Education,Transport,230008,Contract Hire,08-Mar-2017,3254021-1069,"1,325.85",JDS PRIVATE HIRE DURHAM.
Children and Young Peoples Services,Education,Transport,230008,Contract Hire,08-Mar-2017,3254021-1070,"1,039.95",JDS PRIVATE HIRE DURHAM.
Children and Young Peoples Services,Education,Transport,230008,Contract Hire,08-Mar-2017,3254021-1071,"1,296.15",JDS PRIVATE HIRE DURHAM.
Children and Young Peoples Services,Education,Transport,230008,Contract Hire,08-Mar-2017,3254021-1072,870.00,JDS PRIVATE HIRE DURHAM.
Children and Young Peoples Services,Education,Transport,230007,Contract Hire,08-Mar-2017,3254021-1081,780.00,JDS PRIVATE HIRE DURHAM.
Children and Young Peoples Services,Education,Transport,230012,Contract Hire,08-Mar-2017,3254066-1581,838.70,MR PETER YOUNG.
Children and Young Peoples Services,Education,Transport,230008,Contract Hire,08-Mar-2017,3254068-2946,"1,356.90",MR S BOWERS T/A DH7 TAXIS.
Children and Young Peoples Services,Education,Transport,230008,Contract Hire,08-Mar-2017,3254068-2947,"1,220.85",MR S BOWERS T/A DH7 TAXIS.
Children and Young Peoples Services,Education,Transport,230008,Contract Hire,08-Mar-2017,3254068-2948,600.00,MR S BOWERS T/A DH7 TAXIS.
Children and Young Peoples Services,Education,Supplies and Services,338027,Services,08-Mar-2017,3254072-2/2T,600.00,REDACTED - PAYMENT TO INDIVIDUAL
Children and Young Peoples Services,Education,Transport,230008,Contract Hire,08-Mar-2017,3254116-1695,828.00,RON`S TAXIS (FISHBURN).
Children and Young Peoples Services,Education,Transport,230008,Contract Hire,08-Mar-2017,3254134-333A,693.00,SJ MACKENZIE T/A SCOTTS TAXIS.
Children and Young Peoples Services,Education,Transport,230008,Contract Hire,08-Mar-2017,3254134-335A,"1,036.00",SJ MACKENZIE T/A SCOTTS TAXIS.
Children and Young Peoples Services,Education,Transport,230008,Contract Hire,08-Mar-2017,3254134-339A,945.00,SJ MACKENZIE T/A SCOTTS TAXIS.
Children and Young Peoples Services,Education,Transport,230008,Contract Hire,08-Mar-2017,3254134-342A,825.00,SJ MACKENZIE T/A SCOTTS TAXIS.
Children and Young Peoples Services,Education,Transport,230008,Contract Hire,08-Mar-2017,3254134-343A,"1,742.50",SJ MACKENZIE T/A SCOTTS TAXIS.
Children and Young Peoples Services,Education,Transport,230008,Contract Hire,08-Mar-2017,3254134-344A,"1,125.00",SJ MACKENZIE T/A SCOTTS TAXIS.
Children and Young Peoples Services,Education,Transport,230008,Contract Hire,08-Mar-2017,3254134-348A,"1,200.00",SJ MACKENZIE T/A SCOTTS TAXIS.
Children and Young Peoples Services,Education,Transport,230007,Contract Hire,08-Mar-2017,3254188-5818,"1,185.00",WEARDALE PRIVATE HIRE.
Children and Young Peoples Services,Education,Transport,230007,Contract Hire,08-Mar-2017,3254188-5820,"1,012.50",WEARDALE PRIVATE HIRE.
Children and Young Peoples Services,Education,Transport,230007,Contract Hire,08-Mar-2017,3254188-5822,"2,698.50",WEARDALE PRIVATE HIRE.
Children and Young Peoples Services,Education,Transport,230006,Contract Hire,08-Mar-2017,3254188-5824,904.50,WEARDALE PRIVATE HIRE.
Children and Young Peoples Services,Education,Transport,230007,Contract Hire,08-Mar-2017,306399-6020,"1,050.00",CCC SAMUEL KINGS SCHOOL.
Children and Young Peoples Services,Education,Transport,230007,Contract Hire,08-Mar-2017,3253877-568,742.50,AT TAXIS LTD.
Children and Young Peoples Services,Education,Transport,230008,Contract Hire,08-Mar-2017,3253877-570,"1,095.00",AT TAXIS LTD.
Children and Young Peoples Services,Education,Transport,230007,Contract Hire,08-Mar-2017,3253919-949,750.00,CLIVE HUBERY.
Children and Young Peoples Services,Education,Transport,230007,Contract Hire,08-Mar-2017,3253936-189,690.00,D MCDONNELL.
Children and Young Peoples Services,Education,Transport,230008,Contract Hire,08-Mar-2017,3253938-215,"1,414.00",DA TRAVEL.
Children and Young Peoples Services,Education,Transport,230008,Contract Hire,08-Mar-2017,3253982-006,"1,592.50",GMC TAXIS NORTH EAST.
Children and Young Peoples Services,Education,Transport,230008,Contract Hire,08-Mar-2017,3253982-049,"1,113.50",GMC TAXIS NORTH EAST.
Children and Young Peoples Services,Education,Transport,230007,Contract Hire,08-Mar-2017,3254060-002,938.00,MR BRIAN JOHNSON T/A BRYS TAXIS.
Children and Young Peoples Services,Education,Transport,230007,Contract Hire,08-Mar-2017,3253893-56,600.00,BOBS TAXIS.
Children and Young Peoples Services,Education,Transport,230013,Contract Hire,08-Mar-2017,3253934-98,720.00,D CROOK T/A CK TAXIS.
Children and Young Peoples Services,Education,Transport,230008,Contract Hire,08-Mar-2017,3253967-50,"1,140.00",EXTREME TAXI`S.
Children and Young Peoples Services,Education,Transport,230008,Contract Hire,08-Mar-2017,3253967-51,743.00,EXTREME TAXI`S.
Children and Young Peoples Services,Education,Transport,230008,Contract Hire,08-Mar-2017,3254151-11,"1,320.00",STEVEN HENDERSON T/A HENDYS TAXIS.
Children and Young Peoples Services,Education,Transport,230007,Contract Hire,08-Mar-2017,306400-34,784.00,DAVID WILKINSON...
Children and Young Peoples Services,Education,Transport,230008,Contract Hire,08-Mar-2017,3254148-6,"1,050.00",STEELYS TAXIS.
Resources,Financial Services,Supplies and Services,384199,Miscellaneous Expenses,08-Mar-2017,3254088-94533573,"10,740.00",NORTHGATE ARINSO UK LTD.
Resources,I.C.T. Services,Supplies and Services,344033,Telephones,08-Mar-2017,3254014-3253284,"3,555.00",INSIGHT DIRECT (UK) LTD.
Resources,Legal & Democratic Services,Supplies and Services,338025,Services,08-Mar-2017,3253922-S44995-01307,"1,740.00",CO-OPERATIVE FUNERAL CARE.
Transformation and Partnerships,Partnerships & Community Engagement Div.,Transfer Payments,525030,Other,08-Mar-2017,3253950-VOUCHER16AB-DVLY006,"8,071.00",DURHAM COMMUNITY ACTION LTD.
Regeneration and Local Services,Planning & Assets,Premises,125009,Rents,08-Mar-2017,306412-57647,580.50,KINGSTON PROPERTY SERVICES.
Regeneration and Local Services,Planning & Assets,Supplies and Services,384199,Miscellaneous Expenses,08-Mar-2017,3253959-INV-00506,"2,000.00",ECO ENTERPRISES LTD.
Regeneration and Local Services,Planning & Assets,Payments In Advance,932001,Payments in advance,08-Mar-2017,3254009-106974,"18,830.68",IDOX SOFTWARE LTD.
Adult and Health Services,Planning & Service Strategy,Supplies and Services,338089,Services,08-Mar-2017,3254044-329,825.00,LIVING MINDFULLY CIC.
Adult and Health Services,Planning & Service Strategy,Supplies and Services,384540,Miscellaneous Expenses,08-Mar-2017,3254080-18854949,"1,125.12",NEWSQUEST (YORKSHIRE & NORTH EAST) LTD.
Regeneration and Local Services,Projects and Business services,Supplies and Services,340001,Postages,08-Mar-2017,3254117-9053868103,"1,725.47",ROYAL MAIL GROUP PLC.
Adult and Health Services,Public Health,Third Party Payments,460802,Contract Payments,08-Mar-2017,306406-A83008Q3IUCD16/17,"1,059.49",INTRAHEALTH LTD.*
Adult and Health Services,Public Health,Third Party Payments,460802,Contract Payments,08-Mar-2017,3254081-7010500457,"20,665.02",NHS NORTH DURHAM CCG.
Regeneration and Local Services,Technical Services,Third Party Payments,430127,Rendered by Private Contractors,08-Mar-2017,306407-5970,"15,687.00",JR TIPLADY.
Regeneration and Local Services,Technical Services,Supplies and Services,304221,Equipment and Materials,08-Mar-2017,3253869-24413951,"1,525.41",AGGREGATE INDUSTRIES UK LTD.
Regeneration and Local Services,Technical Services,Supplies and Services,304221,Equipment and Materials,08-Mar-2017,3253869-24413952,634.81,AGGREGATE INDUSTRIES UK LTD.
Regeneration and Local Services,Technical Services,Supplies and Services,304221,Equipment and Materials,08-Mar-2017,3253869-24413953,"1,271.56",AGGREGATE INDUSTRIES UK LTD.
Regeneration and Local Services,Technical Services,Supplies and Services,304221,Equipment and Materials,08-Mar-2017,3253869-24413954,"1,231.43",AGGREGATE INDUSTRIES UK LTD.
Regeneration and Local Services,Technical Services,Supplies and Services,304221,Equipment and Materials,08-Mar-2017,3253869-24413956,534.95,AGGREGATE INDUSTRIES UK LTD.
Regeneration and Local Services,Technical Services,Supplies and Services,304221,Equipment and Materials,08-Mar-2017,3253869-24413957,620.75,AGGREGATE INDUSTRIES UK LTD.
Regeneration and Local Services,Technical Services,Supplies and Services,304221,Equipment and Materials,08-Mar-2017,3253900-INV205257,706.00,BROXAP LTD.
Regeneration and Local Services,Technical Services,Third Party Payments,430127,Rendered by Private Contractors,08-Mar-2017,3253933-33-2017,"2,846.50",D & L HOPPS.
Regeneration and Local Services,Technical Services,Third Party Payments,430127,Rendered by Private Contractors,08-Mar-2017,3254015-1193,"3,245.00",J & JG GILL & SONS LTD.
Regeneration and Local Services,Technical Services,Construction Work,908105,Construction work,08-Mar-2017,3254017-20184,895.89,JACK COUPE & SONS LTD T/A COUPE LINE.
Regeneration and Local Services,Technical Services,Construction Work,908105,Construction work,08-Mar-2017,3254017-20193,"1,577.55",JACK COUPE & SONS LTD T/A COUPE LINE.
Regeneration and Local Services,Technical Services,Employees,040149,Recruitment Instruction and Training,08-Mar-2017,3254018-1000048,600.00,JACKSONS HEALTH & SAFETY LTD.
Regeneration and Local Services,Technical Services,Third Party Payments,430100,Rendered by Private Contractors,08-Mar-2017,3254029-SI09150,"2,208.82",JSM CONSTRUCTION LTD.
Regeneration and Local Services,Technical Services,Supplies and Services,304221,Equipment and Materials,08-Mar-2017,3254030-BII215312,952.00,JT DOVE LTD.
Regeneration and Local Services,Technical Services,Stock,926900,Stock in hand-Inventory system,08-Mar-2017,3254030-STI452359,"1,014.00",JT DOVE LTD.
Regeneration and Local Services,Technical Services,Stock,926900,Stock in hand-Inventory system,08-Mar-2017,3254030-STI452367,"1,426.88",JT DOVE LTD.
Regeneration and Local Services,Technical Services,Employees,040149,Recruitment Instruction and Training,08-Mar-2017,3254076-50067449,"2,400.00",NEW COLLEGE DURHAM.
Regeneration and Local Services,Technical Services,Stock,926900,Stock in hand-Inventory system,08-Mar-2017,3254096-XL192324,"1,254.00",PARK ELECTRICAL DISTRIBUTORS LTD.
Regeneration and Local Services,Technical Services,Third Party Payments,430100,Rendered by Private Contractors,08-Mar-2017,3254108-96825,550.00,PROTECTOR SECURITY GROUP LTD.
Regeneration and Local Services,Technical Services,Third Party Payments,430100,Rendered by Private Contractors,08-Mar-2017,3254108-96826,550.00,PROTECTOR SECURITY GROUP LTD.
Regeneration and Local Services,Technical Services,Third Party Payments,430100,Rendered by Private Contractors,08-Mar-2017,3254108-96828,550.00,PROTECTOR SECURITY GROUP LTD.
Regeneration and Local Services,Technical Services,Third Party Payments,430100,Rendered by Private Contractors,08-Mar-2017,3254108-96829,550.00,PROTECTOR SECURITY GROUP LTD.
Regeneration and Local Services,Technical Services,Third Party Payments,430100,Rendered by Private Contractors,08-Mar-2017,3254108-96830,550.00,PROTECTOR SECURITY GROUP LTD.
Regeneration and Local Services,Technical Services,Third Party Payments,430100,Rendered by Private Contractors,08-Mar-2017,3254108-96866,942.86,PROTECTOR SECURITY GROUP LTD.
Regeneration and Local Services,Technical Services,Stock,926900,Stock in hand-Inventory system,08-Mar-2017,3254135-189976,"2,109.60",SNAPFAST.
Regeneration and Local Services,Technical Services,Supplies and Services,304221,Equipment and Materials,08-Mar-2017,3254159-9035602268,513.63,TARMAC TRADING LTD.
Regeneration and Local Services,Technical Services,Stock,926900,Stock in hand-Inventory system,08-Mar-2017,3254159-9035743568,693.00,TARMAC TRADING LTD.
Regeneration and Local Services,Technical Services,Stock,926900,Stock in hand-Inventory system,08-Mar-2017,3254170-N/IN191137,"1,048.32",THOMAS OWEN & SONS (NEWCASTLE) LTD.
Regeneration and Local Services,Technical Services,Stock,926900,Stock in hand-Inventory system,08-Mar-2017,3254170-N/IN191138,542.00,THOMAS OWEN & SONS (NEWCASTLE) LTD.
Regeneration and Local Services,Technical Services,Stock,926900,Stock in hand-Inventory system,08-Mar-2017,3254170-N/IN191140,724.20,THOMAS OWEN & SONS (NEWCASTLE) LTD.
Regeneration and Local Services,Transport and Contracted Services,Third Party Payments,430106,Rendered by Private Contractors,08-Mar-2017,3253983-61093,"66,825.24",GO GATESHEAD LTD.
Regeneration and Local Services,Transport and Contracted Services,Third Party Payments,430106,Rendered by Private Contractors,08-Mar-2017,3254000-11018,"4,662.71",HODGSONS COACH OPERATORS LTD.
Regeneration and Local Services,Transport and Contracted Services,Third Party Payments,430106,Rendered by Private Contractors,08-Mar-2017,3254026-DCC2/17,"2,002.68",JOHN JAMES BRUNSKILL.
Regeneration and Local Services,Transport and Contracted Services,Third Party Payments,430106,Rendered by Private Contractors,08-Mar-2017,3254158-29702,"2,747.70",T MOORE & SON.
Adult and Health Services,Adult Care,Third Party Payments,470101,Purchase of Care,09-Mar-2017,3254220-342/1,960.00,BUTTERWICK HOSPICE RETAIL LTD.
Adult and Health Services,Adult Care,Transport,230005,Contract Hire,09-Mar-2017,3254271-IR1702004,"1,000.00",I & R EXECUTIVE TRAVEL.
Adult and Health Services,Adult Care,Transport,230005,Contract Hire,09-Mar-2017,3254274-1067,"1,229.00",JDS PRIVATE HIRE DURHAM.
Adult and Health Services,Adult Care,Transport,230005,Contract Hire,09-Mar-2017,3254274-1075,720.00,JDS PRIVATE HIRE DURHAM.
Adult and Health Services,Adult Care,Transport,230005,Contract Hire,09-Mar-2017,3254274-1080,"1,342.50",JDS PRIVATE HIRE DURHAM.
Adult and Health Services,Adult Care,Transport,230005,Contract Hire,09-Mar-2017,3254278-DM1476,696.00,JOVIAL PRIVATE HIRE.
Adult and Health Services,Adult Care,Transport,230005,Contract Hire,09-Mar-2017,3254278-DM14917,"1,080.00",JOVIAL PRIVATE HIRE.
Adult and Health Services,Adult Care,Transport,230005,Contract Hire,09-Mar-2017,3254294-JK422,"1,400.00",MR JOHN KNIGHTON T/A JK TAXIS.
Adult and Health Services,Adult Care,Transport,230005,Contract Hire,09-Mar-2017,3254340-527,"1,260.00",TONYS TAXIS (A BIRCH).
Adult and Health Services,Central/Other,Employees,080025,Agency Staff,09-Mar-2017,3254245-1000025,"144,427.49",DE POEL MANAGED SERVICES LTD.
Children and Young Peoples Services,Childrens Services,Third Party Payments,440036,Other Third Party Payments,09-Mar-2017,3254299-CAS-03-2017-038,769.65,REDACTED - PAYMENT TO INDIVIDUAL
Children and Young Peoples Services,Childrens Services,Transport,230005,Contract Hire,09-Mar-2017,3254231-CLUB1703Q,660.00,CLUBMAN CABS.
Children and Young Peoples Services,Childrens Services,Transport,230005,Contract Hire,09-Mar-2017,3254231-CLUB1704G,540.00,CLUBMAN CABS.
Children and Young Peoples Services,Childrens Services,Transport,230005,Contract Hire,09-Mar-2017,3254231-CLUB1705I,570.00,CLUBMAN CABS.
Children and Young Peoples Services,Childrens Services,Transport,230005,Contract Hire,09-Mar-2017,3254231-CLUB1705S,660.00,CLUBMAN CABS.
Children and Young Peoples Services,Childrens Services,Transport,230005,Contract Hire,09-Mar-2017,3254204-B39/ZA,"2,760.00",AABAT TAXIS.
Children and Young Peoples Services,Childrens Services,Transport,230005,Contract Hire,09-Mar-2017,3254204-B40/ZB,855.00,AABAT TAXIS.
Children and Young Peoples Services,Childrens Services,Transport,230005,Contract Hire,09-Mar-2017,3254204-B41/ZC,900.00,AABAT TAXIS.
Children and Young Peoples Services,Childrens Services,Transport,230005,Contract Hire,09-Mar-2017,3254204-B43/ZK,"1,350.00",AABAT TAXIS.
Children and Young Peoples Services,Childrens Services,Transport,230005,Contract Hire,09-Mar-2017,3254204-B44/ZG,600.00,AABAT TAXIS.
Children and Young Peoples Services,Childrens Services,Transport,235073,Public Transport,09-Mar-2017,3254209-111939,590.00,ARRIVA NORTH EAST LTD.
Children and Young Peoples Services,Childrens Services,Third Party Payments,425020,Rendered by Voluntary Organisations,09-Mar-2017,3254220-338/17,720.00,BUTTERWICK HOSPICE RETAIL LTD.
Children and Young Peoples Services,Childrens Services,Third Party Payments,425020,Rendered by Voluntary Organisations,09-Mar-2017,3254220-340/17,"1,200.00",BUTTERWICK HOSPICE RETAIL LTD.
Children and Young Peoples Services,Childrens Services,Transport,230005,Contract Hire,09-Mar-2017,3254323-72418,552.00,SHOTTON PRIVATE HIRE.
Children and Young Peoples Services,Childrens Services,Transport,230005,Contract Hire,09-Mar-2017,3254237-6848,758.86,CROFT BUSINESS SERVICES (UK) LTD T/A CROFT TAXIS.
Children and Young Peoples Services,Childrens Services,Transport,230005,Contract Hire,09-Mar-2017,3254237-6854,556.36,CROFT BUSINESS SERVICES (UK) LTD T/A CROFT TAXIS.
Children and Young Peoples Services,Childrens Services,Transport,230005,Contract Hire,09-Mar-2017,3254237-6866,758.86,CROFT BUSINESS SERVICES (UK) LTD T/A CROFT TAXIS.
Children and Young Peoples Services,Childrens Services,Transport,230005,Contract Hire,09-Mar-2017,3254237-6869,556.36,CROFT BUSINESS SERVICES (UK) LTD T/A CROFT TAXIS.
Children and Young Peoples Services,Childrens Services,Transport,230005,Contract Hire,09-Mar-2017,3254237-6903,743.20,CROFT BUSINESS SERVICES (UK) LTD T/A CROFT TAXIS.
Children and Young Peoples Services,Childrens Services,Transport,230005,Contract Hire,09-Mar-2017,3254237-6924,743.20,CROFT BUSINESS SERVICES (UK) LTD T/A CROFT TAXIS.
Children and Young Peoples Services,Childrens Services,Transport,230005,Contract Hire,09-Mar-2017,3254237-6955,743.20,CROFT BUSINESS SERVICES (UK) LTD T/A CROFT TAXIS.
Children and Young Peoples Services,Childrens Services,Supplies and Services,384199,Miscellaneous Expenses,09-Mar-2017,3254257-0122,"1,400.00",FEEL GOOD FACTORY CIC.
Children and Young Peoples Services,Childrens Services,Transport,230005,Contract Hire,09-Mar-2017,3254284-3083,700.00,LOCAL TRANSPORT LTD.
Children and Young Peoples Services,Childrens Services,Transport,230005,Contract Hire,09-Mar-2017,3254284-3085,"1,950.00",LOCAL TRANSPORT LTD.
Children and Young Peoples Services,Childrens Services,Supplies and Services,364352,Grants to Voluntary Organisations,09-Mar-2017,3254259-267,"11,440.00",FOREVER CARE.
Adult and Health Services,Commissioning,Third Party Payments,478101,Purchase of Care,09-Mar-2017,3254255-9876,"2,635.11",ESSENTIAL CARE & SUPPORT LTD.
Regeneration and Local Services,Culture & Sport,Supplies and Services,384199,Miscellaneous Expenses,09-Mar-2017,3254235-INV-00067,"1,269.05",CRAIG WALTON.
Regeneration and Local Services,Culture & Sport,Supplies and Services,384199,Miscellaneous Expenses,09-Mar-2017,3254275-GALA2017FEB,527.50,JOHN MURDOCH.
Regeneration and Local Services,Culture & Sport,Supplies and Services,338047,Services,09-Mar-2017,3254312-INV06465,833.33,PICTUREHOUSE CINEMAS LTD.
Regeneration and Local Services,Direct Services,Supplies and Services,304259,Equipment and Materials,09-Mar-2017,3254314-10906,"1,216.00",PIXL ID LTD.
Regeneration and Local Services,Economic Development and Housing,Supplies and Services,336005,Advertising,09-Mar-2017,3254212-2858,630.00,BDAILY LTD.
Regeneration and Local Services,Economic Development and Housing,Supplies and Services,384700,Miscellaneous Expenses,09-Mar-2017,3254238-RED-03-2017-083,"3,000.00",CUSTOM DESIGN BA LTD.
Regeneration and Local Services,Economic Development and Housing,Construction Work,908105,Construction work,09-Mar-2017,3254267-NEI-EXP-03-2017-005,"1,591.59",GTC T/A ENERGY HOUSE.
Regeneration and Local Services,Economic Development and Housing,Supplies and Services,384700,Miscellaneous Expenses,09-Mar-2017,3254343-RED-03-2017-082,"1,500.00",TQK LTD T/A DRAGONVILLE INTERIORS.
Regeneration and Local Services,Economic Development and Housing,Cap Exp on Grants & Other Financial Assistance (REFCUS),918401,Capital grants,09-Mar-2017,3254346-RED-03-2017-087,"2,240.00",TWILIGHT HAIR STUDIO.
Children and Young Peoples Services,Education,Transport,230010,Contract Hire,09-Mar-2017,3254270-INV147A,600.00,HORNDALE TAXIS LTD.
Children and Young Peoples Services,Education,Transport,230008,Contract Hire,09-Mar-2017,3254333-DCC/2016/138,"1,185.00",TAYLOR`S TAXIS.
Children and Young Peoples Services,Education,Transport,230006,Contract Hire,09-Mar-2017,3254340-526-28/2/17,900.00,TONYS TAXIS (A BIRCH).
Children and Young Peoples Services,Education,Transport,230007,Contract Hire,09-Mar-2017,3254293-FCOMP02-17,786.00,MR CT WALKER T/A CW TAXIS.
Children and Young Peoples Services,Education,Transport,230008,Contract Hire,09-Mar-2017,3254271-IR1702001,"1,982.40",I & R EXECUTIVE TRAVEL.
Children and Young Peoples Services,Education,Transport,230008,Contract Hire,09-Mar-2017,3254271-IR1702002,"1,626.15",I & R EXECUTIVE TRAVEL.
Children and Young Peoples Services,Education,Transport,230008,Contract Hire,09-Mar-2017,3254258-E046-028,"1,905.00",FERRYHILL VILLAGE TRAVEL.
Children and Young Peoples Services,Education,Transport,230008,Contract Hire,09-Mar-2017,3254258-N060-006,874.50,FERRYHILL VILLAGE TRAVEL.
Children and Young Peoples Services,Education,Transport,230008,Contract Hire,09-Mar-2017,3254258-N071-006,"1,485.00",FERRYHILL VILLAGE TRAVEL.
Children and Young Peoples Services,Education,Transport,230008,Contract Hire,09-Mar-2017,3254258-S033-006,"1,275.00",FERRYHILL VILLAGE TRAVEL.
Children and Young Peoples Services,Education,Transport,230008,Contract Hire,09-Mar-2017,3254258-W053-006,"1,128.75",FERRYHILL VILLAGE TRAVEL.
Children and Young Peoples Services,Education,Transport,230008,Contract Hire,09-Mar-2017,3254225-41/2016,"1,750.00",CHRIS`S TAXI.
Children and Young Peoples Services,Education,Transport,230008,Contract Hire,09-Mar-2017,3254319-W085/17,"1,425.00",S & S TRAVEL LTD.
Children and Young Peoples Services,Education,Transport,230008,Contract Hire,09-Mar-2017,3254204-K11/SH,"1,350.00",AABAT TAXIS.
Children and Young Peoples Services,Education,Transport,230009,Contract Hire,09-Mar-2017,3254278-723106,"1,200.00",JOVIAL PRIVATE HIRE.
Children and Young Peoples Services,Education,Transport,230008,Contract Hire,09-Mar-2017,3254286-000009,"1,350.00",MARK HUSBAND T/A TEAK`S TAXIS.
Children and Young Peoples Services,Education,Transport,230008,Contract Hire,09-Mar-2017,3254204-K6/SB,"1,134.00",AABAT TAXIS.
Children and Young Peoples Services,Education,Transport,230003,Contract Hire,09-Mar-2017,3254230-45738,"5,208.00",CJ GRIERSON T/A GRIERSONS COACHES.
Children and Young Peoples Services,Education,Transport,230003,Contract Hire,09-Mar-2017,3254230-45739,"1,960.00",CJ GRIERSON T/A GRIERSONS COACHES.
Children and Young Peoples Services,Education,Transport,230003,Contract Hire,09-Mar-2017,3254230-45740,"1,750.00",CJ GRIERSON T/A GRIERSONS COACHES.
Children and Young Peoples Services,Education,Transport,230003,Contract Hire,09-Mar-2017,3254230-45741,"1,820.00",CJ GRIERSON T/A GRIERSONS COACHES.
Children and Young Peoples Services,Education,Transport,230003,Contract Hire,09-Mar-2017,3254230-45742,"2,235.00",CJ GRIERSON T/A GRIERSONS COACHES.
Children and Young Peoples Services,Education,Transport,230007,Contract Hire,09-Mar-2017,3254230-45743,"1,155.00",CJ GRIERSON T/A GRIERSONS COACHES.
Children and Young Peoples Services,Education,Transport,230006,Contract Hire,09-Mar-2017,3254269-HT260,"1,200.00",HARRY`S TAXI`S.
Children and Young Peoples Services,Education,Transport,230008,Contract Hire,09-Mar-2017,3254269-HT261,"1,950.00",HARRY`S TAXI`S.
Children and Young Peoples Services,Education,Transport,230008,Contract Hire,09-Mar-2017,3254269-HT262,"1,260.00",HARRY`S TAXI`S.
Children and Young Peoples Services,Education,Transport,230008,Contract Hire,09-Mar-2017,3254269-HT263,"1,310.00",HARRY`S TAXI`S.
Children and Young Peoples Services,Education,Transport,230008,Contract Hire,09-Mar-2017,3254273-A088F,750.00,JAFFAS TAXIS.
Children and Young Peoples Services,Education,Transport,230008,Contract Hire,09-Mar-2017,3254273-A116F,900.00,JAFFAS TAXIS.
Children and Young Peoples Services,Education,Transport,230008,Contract Hire,09-Mar-2017,3254294-JK117,740.00,MR JOHN KNIGHTON T/A JK TAXIS.
Children and Young Peoples Services,Education,Transport,230008,Contract Hire,09-Mar-2017,3254261-1702,"1,350.00",FRANK ATKINSON T/A FJ MINIBUS TRAVEL.
Children and Young Peoples Services,Education,Transport,230007,Contract Hire,09-Mar-2017,3254263-3680,855.00,GEM TRAVEL.
Children and Young Peoples Services,Education,Transport,230003,Contract Hire,09-Mar-2017,3254263-3681,"1,050.00",GEM TRAVEL.
Children and Young Peoples Services,Education,Transport,230003,Contract Hire,09-Mar-2017,3254263-3682,"1,474.05",GEM TRAVEL.
Children and Young Peoples Services,Education,Transport,230008,Contract Hire,09-Mar-2017,3254272-1888,600.00,J YOUNG T/A VIP TAXIS.
Children and Young Peoples Services,Education,Transport,230008,Contract Hire,09-Mar-2017,3254274-1073,"1,022.00",JDS PRIVATE HIRE DURHAM.
Children and Young Peoples Services,Education,Transport,230007,Contract Hire,09-Mar-2017,3254274-1074,690.00,JDS PRIVATE HIRE DURHAM.
Children and Young Peoples Services,Education,Transport,230008,Contract Hire,09-Mar-2017,3254274-1076,"1,800.00",JDS PRIVATE HIRE DURHAM.
Children and Young Peoples Services,Education,Transport,230006,Contract Hire,09-Mar-2017,3254274-1077,"1,590.00",JDS PRIVATE HIRE DURHAM.
Children and Young Peoples Services,Education,Transport,230006,Contract Hire,09-Mar-2017,3254274-1078,"1,950.00",JDS PRIVATE HIRE DURHAM.
Children and Young Peoples Services,Education,Transport,230008,Contract Hire,09-Mar-2017,3254274-1079,"1,950.00",JDS PRIVATE HIRE DURHAM.
Children and Young Peoples Services,Education,Transport,230008,Contract Hire,09-Mar-2017,3254274-1082,"1,440.00",JDS PRIVATE HIRE DURHAM.
Children and Young Peoples Services,Education,Transport,230008,Contract Hire,09-Mar-2017,3254274-1083,"1,050.00",JDS PRIVATE HIRE DURHAM.
Children and Young Peoples Services,Education,Transport,230008,Contract Hire,09-Mar-2017,3254214-162,818.40,BG TAXIS.
Children and Young Peoples Services,Education,Transport,230007,Contract Hire,09-Mar-2017,3254292-896,"1,155.00",MR AD HOWARD T/A TOFT HILL TAXIS.
Children and Young Peoples Services,Education,Transport,230008,Contract Hire,09-Mar-2017,3254340-521,"1,820.00",TONYS TAXIS (A BIRCH).
Children and Young Peoples Services,Education,Transport,230012,Contract Hire,09-Mar-2017,3254340-522,840.00,TONYS TAXIS (A BIRCH).
Children and Young Peoples Services,Education,Transport,230006,Contract Hire,09-Mar-2017,3254340-523,528.00,TONYS TAXIS (A BIRCH).
Children and Young Peoples Services,Education,Transport,230008,Contract Hire,09-Mar-2017,3254340-528,640.00,TONYS TAXIS (A BIRCH).
Children and Young Peoples Services,Education,Transport,230008,Contract Hire,09-Mar-2017,3254345-19,630.00,TRIDENT TAXIS.
Adult and Health Services,EnvironmentHealth & Consumer Protection,Supplies and Services,338045,Services,09-Mar-2017,3254205-16/11/5312,"5,100.25",ADVENTURE ACTIVITIES LICENSING SERVICE.
Resources,I.C.T. Services,Supplies and Services,344111,Telephones,09-Mar-2017,3254219-VP90592270M14001,"3,347.23",BRITISH TELECOMMUNICATIONS PLC.
Resources,I.C.T. Services,Supplies and Services,342051,Computers and Communications,09-Mar-2017,3254307-94533725,"213,352.88",NORTHGATE ARINSO UK LTD.
Resources,I.C.T. Services,Supplies and Services,342051,Computers and Communications,09-Mar-2017,3254307-94533726,"6,181.20",NORTHGATE ARINSO UK LTD.
Resources,I.C.T. Services,Supplies and Services,342051,Computers and Communications,09-Mar-2017,3254307-94533727.,679.21,NORTHGATE ARINSO UK LTD.
Resources,I.C.T. Services,Supplies and Services,342051,Computers and Communications,09-Mar-2017,3254307-94533728.,509.40,NORTHGATE ARINSO UK LTD.
Resources,I.C.T. Services,Supplies and Services,342051,Computers and Communications,09-Mar-2017,3254308-91386382,"2,227.50",NORTHGATE PUBLIC SERVICES (UK) LTD.
Resources,Legal & Democratic Services,Supplies and Services,338042,Services,09-Mar-2017,3254246-325875/INVSU228,900.00,DERE STREET BARRISTERS.
Resources,Legal & Democratic Services,Supplies and Services,338042,Services,09-Mar-2017,3254246-327841/INVHMU100,550.00,DERE STREET BARRISTERS.
Resources,Legal & Democratic Services,Supplies and Services,338045,Services,09-Mar-2017,3254297-324775/INVEMC103,540.00,MRS ELIZABETH CALLAGHAN.
Resources,Legal & Democratic Services,Creditors,952238,Chairmans Charity,09-Mar-2017,3254347-RES-3-2017-018,"5,000.00",VETERANS AT EASE.
Transformation and Partnerships,Partnerships & Community Engagement Div.,Transfer Payments,525030,Other,09-Mar-2017,3254216-VOUCHER16AB,"19,287.50",BISHOP AUCKLAND COLLEGE.
Transformation and Partnerships,Partnerships & Community Engagement Div.,Cap Exp on Grants & Other Financial Assistance (REFCUS),918004,Contributions to other bodies,09-Mar-2017,3254217-VOUCHER16NB-MDUR032,"7,878.00",BRANDON COMMUNITY ASSOCIATON.
Transformation and Partnerships,Partnerships & Community Engagement Div.,Supplies and Services,384086,Miscellaneous Expenses,09-Mar-2017,3254222-VOUCHER16NB-BASH047,"2,400.00",CARWOOD METHODIST CHURCH WITTON PARK.
Transformation and Partnerships,Partnerships & Community Engagement Div.,Cap Exp on Grants & Other Financial Assistance (REFCUS),918004,Contributions to other bodies,09-Mar-2017,3254223-VOUCHER16NB-STAN035,"2,000.00",CATCHGATE COMMUNITY FOOTBALL CLUB.
Transformation and Partnerships,Partnerships & Community Engagement Div.,Transfer Payments,525030,Other,09-Mar-2017,3254227-VOUCHER16WR-WEAR001,"10,000.00",CITIZENS ADVICE COUNTY DURHAM.
Transformation and Partnerships,Partnerships & Community Engagement Div.,Supplies and Services,384086,Miscellaneous Expenses,09-Mar-2017,3254248-VOUCHER16NB-EDRC039,"2,020.00",DURHAM & DARLINGTON FIRE & RESCUE.
Transformation and Partnerships,Partnerships & Community Engagement Div.,Transfer Payments,525030,Other,09-Mar-2017,3254249-VOUCHER16AB,"5,260.00",DURHAM CHRISTIAN PARTNERSHIP.
Transformation and Partnerships,Partnerships & Community Engagement Div.,Cap Exp on Grants & Other Financial Assistance (REFCUS),918004,Contributions to other bodies,09-Mar-2017,3254302-VOUCHER16NB-MDUR033,"2,000.00",NEW BRANCEPETH VILLAGE HALL ASSOCIATION.
Transformation and Partnerships,Partnerships & Community Engagement Div.,Transfer Payments,525030,Other,09-Mar-2017,3254313-15044/17,"21,485.25",PIONEERING CARE PARTNERSHIP.
Transformation and Partnerships,Partnerships & Community Engagement Div.,Transfer Payments,525030,Other,09-Mar-2017,3254313-15045/17,"13,500.00",PIONEERING CARE PARTNERSHIP.
Transformation and Partnerships,Partnerships & Community Engagement Div.,Cap Exp on Grants & Other Financial Assistance (REFCUS),918004,Contributions to other bodies,09-Mar-2017,3254320-VOUCHER16NB-EDUR099,"9,540.82",SEAHAM YOUTH CENTRE.
Transformation and Partnerships,Partnerships & Community Engagement Div.,Transfer Payments,525030,Other,09-Mar-2017,3254338-VOUCHER16AB-TEES012,"5,440.00",THE WITHAM.
Transformation and Partnerships,Partnerships & Community Engagement Div.,Cap Exp on Grants & Other Financial Assistance (REFCUS),918004,Contributions to other bodies,09-Mar-2017,3254339-VOUCHER16NB-EDUR097,"1,016.00",THORNLEY PARISH COUNCIL.
Transformation and Partnerships,Partnerships & Community Engagement Div.,Supplies and Services,384086,Miscellaneous Expenses,09-Mar-2017,3254348-VOUCHER16NB-BASH035,"2,000.00",WEAR RIVERS TRUST.
Regeneration and Local Services,Planning & Assets,Supplies and Services,384199,Miscellaneous Expenses,09-Mar-2017,3254250-106272,927.00,E3 ECOLOGY LTD.
Regeneration and Local Services,Planning & Assets,Supplies and Services,338066,Services,09-Mar-2017,3254325-PENNINEWAY,585.75,REDACTED - PAYMENT TO INDIVIDUAL
Regeneration and Local Services,Planning & Assets,Supplies and Services,384999,Miscellaneous Expenses,09-Mar-2017,3254337-RED-03-2017-085,"6,168.00",THE OLD VILLAGE SHOP.
Adult and Health Services,Planning & Service Strategy,Supplies and Services,338089,Services,09-Mar-2017,3254277-1702,"1,400.00",JOHN WHEELER SOLUTIONS LTD.
Adult and Health Services,Planning & Service Strategy,Supplies and Services,338094,Services,09-Mar-2017,3254336-4338,722.00,THE DURHAM CENTRE LTD.
Transformation and Partnerships,Policy & Communications Division,Supplies and Services,384999,Miscellaneous Expenses,09-Mar-2017,3254265-17097,"1,000.00",GOSS INTERACTIVE LTD.
Transformation and Partnerships,Policy & Communications Division,Supplies and Services,384999,Miscellaneous Expenses,09-Mar-2017,3254265-17100,"4,500.00",GOSS INTERACTIVE LTD.
Regeneration and Local Services,Technical Services,Supplies and Services,304221,Equipment and Materials,09-Mar-2017,3254287-ZBB1166984,"3,942.42",MARSHALLS MONO LTD.
Regeneration and Local Services,Technical Services,Supplies and Services,304221,Equipment and Materials,09-Mar-2017,3254287-ZBB1173297,"3,960.15",MARSHALLS MONO LTD.
Regeneration and Local Services,Technical Services,Supplies and Services,304221,Equipment and Materials,09-Mar-2017,3254287-ZDB0028297,"13,298.11",MARSHALLS MONO LTD.
Regeneration and Local Services,Technical Services,Supplies and Services,304221,Equipment and Materials,09-Mar-2017,3254287-ZDB0028298,"13,298.11",MARSHALLS MONO LTD.
Regeneration and Local Services,Technical Services,Supplies and Services,304221,Equipment and Materials,09-Mar-2017,3254287-ZDB0028299,"13,298.11",MARSHALLS MONO LTD.
Regeneration and Local Services,Technical Services,Supplies and Services,304221,Equipment and Materials,09-Mar-2017,3254287-ZDB0028317,"6,250.71",MARSHALLS MONO LTD.
Regeneration and Local Services,Transport and Contracted Services,Third Party Payments,440999,Other Third Party Payments,09-Mar-2017,3254211-47034,"6,501.15",BAYDALE CONTROL SYSTEMS LTD.
Regeneration and Local Services,Transport and Contracted Services,Income,720115,Fees and Charges,09-Mar-2017,3254291-RED-03-2017-089,664.30,REDACTED - PAYMENT TO INDIVIDUAL
Adult and Health Services,Adult Care,Transport,230005,Contract Hire,10-Mar-2017,3254360-K26/FC,990.00,AABAT TAXIS.
Adult and Health Services,Adult Care,Transfer Payments,515209,Social Services Clients,10-Mar-2017,3254363-CAS-03-2017-045,"8,121.00",ACCOUNTABILITY CLIENT ACCOUNT NO 2.
Adult and Health Services,Adult Care,Transport,230005,Contract Hire,10-Mar-2017,3254371-0018A,990.00,AIRPORT TAXIS 4U.
Adult and Health Services,Adult Care,Supplies and Services,338366,Services,10-Mar-2017,3254431-38621,"1,454.95",CARE ABILITY.
Adult and Health Services,Central/Other,Supplies and Services,338066,Services,10-Mar-2017,3254725-4213,"54,914.61",NEPRO LTD.
Children and Young Peoples Services,Childrens Services,Supplies and Services,304259,Equipment and Materials,10-Mar-2017,3254947-DE4633718,"1,027.53",TTS GROUP LTD.
Children and Young Peoples Services,Childrens Services,Employees,080025,Agency Staff,10-Mar-2017,3254430-03922588,897.50,CAPITA RESOURCING LTD T/A CAPITA EDUCATION RESOURCING.
Children and Young Peoples Services,Childrens Services,Employees,080025,Agency Staff,10-Mar-2017,3254430-03922589,547.50,CAPITA RESOURCING LTD T/A CAPITA EDUCATION RESOURCING.
Children and Young Peoples Services,Childrens Services,Premises,120009,Energy Costs,10-Mar-2017,3254747-NNO7XNNR,548.41,NPOWER.
Children and Young Peoples Services,Childrens Services,Supplies and Services,384491,Miscellaneous Expenses,10-Mar-2017,3254978-201726,690.00,WHEATLEY HILL COMMUNITY NURSERY LTD.
Children and Young Peoples Services,Childrens Services,Supplies and Services,384491,Miscellaneous Expenses,10-Mar-2017,3254978-201737,723.00,WHEATLEY HILL COMMUNITY NURSERY LTD.
Children and Young Peoples Services,Childrens Services,Employees,080025,Agency Staff,10-Mar-2017,3254796-30745,825.00,PK EDUCATION.
Regeneration and Local Services,Culture & Sport,Premises,145023,Cleaning and Domestic Supplies,10-Mar-2017,3254417-22SI2219924,"1,194.10",BRENNTAG UK LTD.
Regeneration and Local Services,Culture & Sport,Supplies and Services,324001,Provisions,10-Mar-2017,3254433-843535089,"1,448.12",CARLSBERG UK LTD.
Regeneration and Local Services,Culture & Sport,Supplies and Services,304259,Equipment and Materials,10-Mar-2017,3254437-475439,"1,086.38",CARRS BILLINGTON AGRICULTURE.
Regeneration and Local Services,Culture & Sport,Supplies and Services,338047,Services,10-Mar-2017,3254461-8596/M,"2,380.93",COMEDY STORE MANAGEMENT T/A THE COMEDY STORE LTD.
Regeneration and Local Services,Culture & Sport,Supplies and Services,338047,Services,10-Mar-2017,3254541-050317,"7,552.01",EVENTFUL MUSIC PRODUCTIONS LTD.
Regeneration and Local Services,Culture & Sport,Supplies and Services,312009,Newspapers Books and Periodicals,10-Mar-2017,3254691-4100567880,650.00,MICHELLE WALL FREELANCE ARTIST.
Regeneration and Local Services,Culture & Sport,Supplies and Services,384199,Miscellaneous Expenses,10-Mar-2017,3254711-4100569128,"1,080.00",MRS AM LISTER.
Regeneration and Local Services,Culture & Sport,Premises,120009,Energy Costs,10-Mar-2017,3254747-NNO7XNH8,"1,536.40",NPOWER.
Regeneration and Local Services,Culture & Sport,Premises,120009,Energy Costs,10-Mar-2017,3254747-NNO7XNJB,"1,897.41",NPOWER.
Regeneration and Local Services,Culture & Sport,Supplies and Services,328041,Clothing Uniforms and Laundry,10-Mar-2017,3254775-44620,"1,398.00",PBL PRINT.
Regeneration and Local Services,Culture & Sport,Supplies and Services,304259,Equipment and Materials,10-Mar-2017,3254852-10003983,626.98,SAVAGE STRENGTH T/A SERIOUS STRENGTH EQUIPMENT LTD.
Regeneration and Local Services,Culture & Sport,Supplies and Services,384999,Miscellaneous Expenses,10-Mar-2017,3254876-GDB000107,771.40,SOCIETY OF LONDON THEATRE.
Regeneration and Local Services,Culture & Sport,Supplies and Services,304259,Equipment and Materials,10-Mar-2017,3254889-5128,"2,475.00",SPORT & PLAY LTD.
Regeneration and Local Services,Direct Services,Transport,210057,Repair and Maintenance of Vehicles,10-Mar-2017,3254401-35131278,902.11,BELL TRUCK SALES LTD.
Regeneration and Local Services,Direct Services,Premises,120037,Energy Costs,10-Mar-2017,3254410-0000031977,840.26,BILLINGTON BIOENERGY LTD.
Regeneration and Local Services,Direct Services,Transport,210057,Repair and Maintenance of Vehicles,10-Mar-2017,3254436-475431,"1,212.42",CARRS BILLINGTON AGRICULTURE.
Regeneration and Local Services,Direct Services,Third Party Payments,430100,Rendered by Private Contractors,10-Mar-2017,3254442-229,"2,078.96",CEILINGS DIRECT LTD.
Regeneration and Local Services,Direct Services,Transport,230005,Contract Hire,10-Mar-2017,3254537-8134870,559.18,ENTERPRISE FLEX-E-RENT T/A BURNT TREE GROUP LTD.
Regeneration and Local Services,Direct Services,Transport,230005,Contract Hire,10-Mar-2017,3254537-8134885,512.37,ENTERPRISE FLEX-E-RENT T/A BURNT TREE GROUP LTD.
Regeneration and Local Services,Direct Services,Transport,230005,Contract Hire,10-Mar-2017,3254537-8134889,794.85,ENTERPRISE FLEX-E-RENT T/A BURNT TREE GROUP LTD.
Regeneration and Local Services,Direct Services,Supplies and Services,304358,Equipment and Materials,10-Mar-2017,3254634-26336,"1,309.00",JOHN R BUTTERFIELD LTD.
Regeneration and Local Services,Direct Services,Transport,230005,Contract Hire,10-Mar-2017,3254722-111105,750.00,ND BROWN LTD.
Regeneration and Local Services,Direct Services,Transport,230005,Contract Hire,10-Mar-2017,3254722-111106,750.00,ND BROWN LTD.
Regeneration and Local Services,Direct Services,Transport,210057,Repair and Maintenance of Vehicles,10-Mar-2017,3254736-21766581,615.00,NORTH EAST TRUCK & VAN LTD.
Regeneration and Local Services,Direct Services,Transport,215005,Running Costs of Vehicles,10-Mar-2017,3254754-229373,"9,536.91",OIL NRG LTD.
Regeneration and Local Services,Direct Services,Supplies and Services,304221,Equipment and Materials,10-Mar-2017,3254770-BR562683,527.10,PARK ELECTRICAL DISTRIBUTORS LTD.
Regeneration and Local Services,Direct Services,Supplies and Services,304221,Equipment and Materials,10-Mar-2017,3254786-2653851,566.10,PEW ELECTRICAL DISTRIBUTORS LTD.
Regeneration and Local Services,Direct Services,Transport,230005,Contract Hire,10-Mar-2017,3254826-IV255106,"1,705.00",RIVERSIDE TRUCK RENTAL LTD (RTR).
Regeneration and Local Services,Direct Services,Transport,230005,Contract Hire,10-Mar-2017,3254826-IV255114,"4,600.00",RIVERSIDE TRUCK RENTAL LTD (RTR).
Regeneration and Local Services,Direct Services,Transport,230005,Contract Hire,10-Mar-2017,3254826-IV255116,"4,600.00",RIVERSIDE TRUCK RENTAL LTD (RTR).
Regeneration and Local Services,Direct Services,Transport,230005,Contract Hire,10-Mar-2017,3254826-IV262122,"1,395.00",RIVERSIDE TRUCK RENTAL LTD (RTR).
Regeneration and Local Services,Direct Services,Supplies and Services,328041,Clothing Uniforms and Laundry,10-Mar-2017,3254935-N/IN191313,"3,188.55",THOMAS OWEN & SONS (NEWCASTLE) LTD.
Regeneration and Local Services,Direct Services,Supplies and Services,304259,Equipment and Materials,10-Mar-2017,3254948-182797,"1,095.72",TUDOR (UK) LTD T/A TUDOR ENVIRONMENTAL.
Regeneration and Local Services,Direct Services,Third Party Payments,430100,Rendered by Private Contractors,10-Mar-2017,3254955-INV-0169,"1,003.00",UK VENTILATION LTD.
Regeneration and Local Services,Direct Services,Third Party Payments,430100,Rendered by Private Contractors,10-Mar-2017,3254955-INV-0170,873.00,UK VENTILATION LTD.
Regeneration and Local Services,Direct Services,Third Party Payments,430100,Rendered by Private Contractors,10-Mar-2017,3254955-INV-0171,"2,140.00",UK VENTILATION LTD.
Regeneration and Local Services,Direct Services,Third Party Payments,430100,Rendered by Private Contractors,10-Mar-2017,3254955-INV-0172,"1,271.00",UK VENTILATION LTD.
Regeneration and Local Services,Direct Services,Transport,230005,Contract Hire,10-Mar-2017,3254973-72366,550.00,WARREN ACCESS LTD.
Regeneration and Local Services,Direct Services,Transport,230005,Contract Hire,10-Mar-2017,3254973-72374,610.00,WARREN ACCESS LTD.
Regeneration and Local Services,Direct Services,Transport,230005,Contract Hire,10-Mar-2017,3254973-72431,550.00,WARREN ACCESS LTD.
Regeneration and Local Services,Direct Services,Transport,210057,Repair and Maintenance of Vehicles,10-Mar-2017,3254982-901403573,803.88,WIRTGEN LTD.
Regeneration and Local Services,Direct Services,Supplies and Services,304221,Equipment and Materials,10-Mar-2017,3254984-40434719,"4,461.20",WOLSELEY UK LTD.
Regeneration and Local Services,Economic Development and Housing,Supplies and Services,384700,Miscellaneous Expenses,10-Mar-2017,3254502-RED-03-2017-114,"2,000.00",DH9 CAFE.
Regeneration and Local Services,Economic Development and Housing,Cap Exp on Grants & Other Financial Assistance (REFCUS),918401,Capital grants,10-Mar-2017,3254561-RED-03-2017-097,600.00,G CUMMINGS.
Regeneration and Local Services,Economic Development and Housing,Cap Exp on Grants & Other Financial Assistance (REFCUS),918401,Capital grants,10-Mar-2017,3254561-RED-03-2017-100,600.00,G CUMMINGS.
Regeneration and Local Services,Economic Development and Housing,Cap Exp on Grants & Other Financial Assistance (REFCUS),918401,Capital grants,10-Mar-2017,3254586-RED-03-2017-101,"3,249.00",HES GROUP UK LTD.
Regeneration and Local Services,Economic Development and Housing,Cap Exp on Grants & Other Financial Assistance (REFCUS),918401,Capital grants,10-Mar-2017,3254641-RED-03-2017-099,"14,003.28",K HARRISON (BUILDER) NE LTD.
Regeneration and Local Services,Economic Development and Housing,Supplies and Services,384700,Miscellaneous Expenses,10-Mar-2017,3254649-RED-03-2017-113,"1,500.00",KITCHENS BY ALLAN MCGUIGAN.
Regeneration and Local Services,Economic Development and Housing,Cap Exp on Grants & Other Financial Assistance (REFCUS),918401,Capital grants,10-Mar-2017,3254729-RED-03-2017-090,"4,250.00",REDACTED - PAYMENT TO INDIVIDUAL
Regeneration and Local Services,Economic Development and Housing,Premises,120009,Energy Costs,10-Mar-2017,3254747-NN07XJNJ,"1,941.93",NPOWER.
Regeneration and Local Services,Economic Development and Housing,Premises,120009,Energy Costs,10-Mar-2017,3254748-NNO7XSPT,"1,345.86",NPOWER.
Regeneration and Local Services,Economic Development and Housing,Premises,120009,Energy Costs,10-Mar-2017,3254748-NNO7XSPX,"1,682.55",NPOWER.
Regeneration and Local Services,Economic Development and Housing,Cap Exp on Grants & Other Financial Assistance (REFCUS),918401,Capital grants,10-Mar-2017,3254778-RED-03-2017-102,"1,759.00",PEART ACCESS RAMPS.
Regeneration and Local Services,Economic Development and Housing,Cap Exp on Grants & Other Financial Assistance (REFCUS),918401,Capital grants,10-Mar-2017,3254778-RED-03-2017-103,"1,672.00",PEART ACCESS RAMPS.
Regeneration and Local Services,Economic Development and Housing,Cap Exp on Grants & Other Financial Assistance (REFCUS),918401,Capital grants,10-Mar-2017,3254864-RED-03-2017-096,"10,000.00",SHARELOGIC LTD T/A GRP MAINTENANCE SERVICES.
Regeneration and Local Services,Economic Development and Housing,Cap Exp on Grants & Other Financial Assistance (REFCUS),918401,Capital grants,10-Mar-2017,3254903-RED-03-2017-107,"3,046.28",SUNTER LTD.
Regeneration and Local Services,Economic Development and Housing,Cap Exp on Grants & Other Financial Assistance (REFCUS),918401,Capital grants,10-Mar-2017,3254903-RED-03-2017-108,"2,595.19",SUNTER LTD.
Regeneration and Local Services,Economic Development and Housing,Cap Exp on Grants & Other Financial Assistance (REFCUS),918401,Capital grants,10-Mar-2017,3254903-RED-03-2017-109,"2,999.71",SUNTER LTD.
Regeneration and Local Services,Economic Development and Housing,Cap Exp on Grants & Other Financial Assistance (REFCUS),918401,Capital grants,10-Mar-2017,3254903-RED-03-2017-110,"2,589.99",SUNTER LTD.
Regeneration and Local Services,Economic Development and Housing,Cap Exp on Grants & Other Financial Assistance (REFCUS),918401,Capital grants,10-Mar-2017,3254903-RED-03-2017-111,"2,664.35",SUNTER LTD.
Regeneration and Local Services,Economic Development and Housing,Cap Exp on Grants & Other Financial Assistance (REFCUS),918401,Capital grants,10-Mar-2017,3254936-RED-03-2017-104,"1,014.48",THYSSENKRUPP ENCASA A DIVISION OF THYSSENKRUPP ACCESS LTD.
Regeneration and Local Services,Economic Development and Housing,Cap Exp on Grants & Other Financial Assistance (REFCUS),918401,Capital grants,10-Mar-2017,3254936-RED-03-2017-105,"1,512.00",THYSSENKRUPP ENCASA A DIVISION OF THYSSENKRUPP ACCESS LTD.
Regeneration and Local Services,Economic Development and Housing,Cap Exp on Grants & Other Financial Assistance (REFCUS),918401,Capital grants,10-Mar-2017,3254936-RED-03-2017-106,"1,627.00",THYSSENKRUPP ENCASA A DIVISION OF THYSSENKRUPP ACCESS LTD.
Regeneration and Local Services,Economic Development and Housing,Supplies and Services,384999,Miscellaneous Expenses,10-Mar-2017,3254953-7711,"1,378.50",TYNESIDE CINEMA.
Children and Young Peoples Services,Education,Third Party Payments,410037,Rendered by Other Local Authorities,10-Mar-2017,3254882-12128288,"10,081.00",SOUTH TYNESIDE COUNCIL.
Children and Young Peoples Services,Education,Transport,230007,Contract Hire,10-Mar-2017,3254564-005,840.00,GAVIN ELLIOTT T/A LOCATION TAXIS.
Children and Young Peoples Services,Education,Transport,230008,Contract Hire,10-Mar-2017,3254914-DCC/2016/137,"1,140.00",TAYLOR`S TAXIS.
Children and Young Peoples Services,Education,Supplies and Services,384540,Miscellaneous Expenses,10-Mar-2017,3254457-0102637332,600.00,CLEAR CHANNEL UK LTD.
Children and Young Peoples Services,Education,Supplies and Services,372009,Subscriptions,10-Mar-2017,3254526-EDU15382,"4,999.00",EDUFOCUS LTD.
Children and Young Peoples Services,Education,Supplies and Services,352001,Conference Expenses,10-Mar-2017,3254959-91455818,"2,322.22",UNIVERSITY OF NORTHUMBRIA.*
Children and Young Peoples Services,Education,Supplies and Services,384540,Miscellaneous Expenses,10-Mar-2017,3254829-2017-6,"2,450.00",ROBERT CARR T/A RGR FILM PRODUCTIONS.
Children and Young Peoples Services,Education,Transport,230008,Contract Hire,10-Mar-2017,3254560-10085,"1,275.00",G & P JOHNSON LTD T/A NIGHTINGALE COACHES.
Children and Young Peoples Services,Education,Transport,230008,Contract Hire,10-Mar-2017,3254560-10086,"1,110.00",G & P JOHNSON LTD T/A NIGHTINGALE COACHES.
Children and Young Peoples Services,Education,Transport,230008,Contract Hire,10-Mar-2017,3254560-10087,975.00,G & P JOHNSON LTD T/A NIGHTINGALE COACHES.
Children and Young Peoples Services,Education,Transport,230008,Contract Hire,10-Mar-2017,3254560-10088,"1,300.00",G & P JOHNSON LTD T/A NIGHTINGALE COACHES.
Children and Young Peoples Services,Education,Supplies and Services,384199,Miscellaneous Expenses,10-Mar-2017,3254657-3195,"1,557.00",LEE`S COACHES LTD.
Children and Young Peoples Services,Education,Supplies and Services,384199,Miscellaneous Expenses,10-Mar-2017,3254657-3196,"2,364.00",LEE`S COACHES LTD.
Children and Young Peoples Services,Education,Supplies and Services,384199,Miscellaneous Expenses,10-Mar-2017,3254657-3197,828.00,LEE`S COACHES LTD.
Children and Young Peoples Services,Education,Supplies and Services,352001,Conference Expenses,10-Mar-2017,3254812-0106,500.00,PUPIL PROGRESS LTD.
Children and Young Peoples Services,Education,Transport,230007,Contract Hire,10-Mar-2017,3254898-5187,"1,020.00",STEPHEN MAUDE LTD T/A MAUDES COACHES.
Children and Young Peoples Services,Education,Transport,230007,Contract Hire,10-Mar-2017,3254898-5188,"1,020.00",STEPHEN MAUDE LTD T/A MAUDES COACHES.
Children and Young Peoples Services,Education,Transfer Payments,510026,School Children,10-Mar-2017,3254473-093,864.00,CRAGHEAD DEVELOPMENT TRUST.
Children and Young Peoples Services,Education,Transfer Payments,510026,School Children,10-Mar-2017,3254473-094,"1,152.00",CRAGHEAD DEVELOPMENT TRUST.
Adult and Health Services,EnvironmentHealth & Consumer Protection,Supplies and Services,372009,Subscriptions,10-Mar-2017,3254453-M/CM041945,"16,441.65",CIVICA UK LTD.
Resources,Financial Services,Supplies and Services,332029,Printing Stationery and Gen Off Exps,10-Mar-2017,3254444-CS62205301,"2,947.50",CFH TOTAL DOCUMENT MANAGEMENT LTD.
Resources,Financial Services,Supplies and Services,332029,Printing Stationery and Gen Off Exps,10-Mar-2017,3254444-CS62205401,"2,947.50",CFH TOTAL DOCUMENT MANAGEMENT LTD.
Resources,Financial Services,Supplies and Services,384180,Miscellaneous Expenses,10-Mar-2017,3254669-0941252,"4,679.84",LOOMIS UK LTD.
Resources,I.C.T. Services,Cap Exp on Grants & Other Financial Assistance (REFCUS),918501,Exp assets not owned by authority,10-Mar-2017,3254422-MPC,"411,298.00",BRITISH TELECOMMUNICATIONS PLC.
Resources,I.C.T. Services,Stock,926900,Stock in hand-Inventory system,10-Mar-2017,3254495-7402344519,"6,344.50",DELL COMPUTER CORPORATION LTD.
Resources,I.C.T. Services,Stock,926900,Stock in hand-Inventory system,10-Mar-2017,3254607-3255402,"1,132.44",INSIGHT DIRECT (UK) LTD.
Resources,I.C.T. Services,Stock,926900,Stock in hand-Inventory system,10-Mar-2017,3254607-3259361,600.00,INSIGHT DIRECT (UK) LTD.
Resources,I.C.T. Services,Debtors,930167,Debtor-Telephone Holding Account,10-Mar-2017,3254677-100028,"25,877.64",MAINTEL EUROPE LTD.
Resources,I.C.T. Services,Supplies and Services,344137,Telephones,10-Mar-2017,3254677-674350,"57,788.50",MAINTEL EUROPE LTD.
Resources,I.C.T. Services,Supplies and Services,342051,Computers and Communications,10-Mar-2017,3254758-1584084,"5,192.64",ORACLE CORPORATION UK LTD.
Resources,I.C.T. Services,Supplies and Services,342051,Computers and Communications,10-Mar-2017,3254758-1584085,763.85,ORACLE CORPORATION UK LTD.
Resources,I.C.T. Services,Supplies and Services,332029,Printing Stationery and Gen Off Exps,10-Mar-2017,3254798-37125,"1,024.10",PLASTIC DATA CARD LTD.
Resources,I.C.T. Services,Supplies and Services,332029,Printing Stationery and Gen Off Exps,10-Mar-2017,3254818-14568,575.00,RADECAL SIGNS GRAPHICS & ADVERTISING.
Resources,I.C.T. Services,Supplies and Services,332029,Printing Stationery and Gen Off Exps,10-Mar-2017,3254818-14569,795.00,RADECAL SIGNS GRAPHICS & ADVERTISING.
Resources,I.C.T. Services,Supplies and Services,340001,Postages,10-Mar-2017,3254836-9053906333,"11,314.32",ROYAL MAIL GROUP PLC.
Resources,I.C.T. Services,Supplies and Services,304245,Equipment and Materials,10-Mar-2017,3254907-940352,553.00,SWEMKO LTD.
Resources,I.C.T. Services,Employees,040149,Recruitment Instruction and Training,10-Mar-2017,3254959-91455729,"1,800.00",UNIVERSITY OF NORTHUMBRIA.*
Resources,Legal & Democratic Services,Supplies and Services,338042,Services,10-Mar-2017,3254496-323689/INVMT1100,"1,800.00",DERE STREET BARRISTERS.
Resources,Legal & Democratic Services,Supplies and Services,338042,Services,10-Mar-2017,3254694-327626/INVMM204,540.00,MISS AMANDA MILLER.
Transformation and Partnerships,Partnerships & Community Engagement Div.,Cap Exp on Grants & Other Financial Assistance (REFCUS),918004,Contributions to other bodies,10-Mar-2017,3254477-VOUCHERCCL4,"32,600.46",CROOK COMMUNITY LEISURE LTD.
Transformation and Partnerships,Partnerships & Community Engagement Div.,Supplies and Services,332047,Printing Stationery and Gen Off Exps,10-Mar-2017,3254481-1039,"2,250.00",CURIOUS 12 LTD.
Transformation and Partnerships,Partnerships & Community Engagement Div.,Supplies and Services,338066,Services,10-Mar-2017,3254511-304400,"5,000.00",DURHAM UNIVERSITY.
Transformation and Partnerships,Partnerships & Community Engagement Div.,Cap Exp on Grants & Other Financial Assistance (REFCUS),918004,Contributions to other bodies,10-Mar-2017,3254577-VOUCHER16NB-EDUR102,"5,000.00",HALL STREET ALLOTMENT ASSOCIATION.
Transformation and Partnerships,Partnerships & Community Engagement Div.,Transfer Payments,525030,Other,10-Mar-2017,3254652-VOUCHERMDUR009-AB10,"2,312.00",LANCHESTER PARTNERSHIP.
Transformation and Partnerships,Partnerships & Community Engagement Div.,Cap Exp on Grants & Other Financial Assistance (REFCUS),918004,Contributions to other bodies,10-Mar-2017,3254862-VOUCHER16NB-EDUR101,"5,000.00",SEAHAM SEA CADETS.
Transformation and Partnerships,Partnerships & Community Engagement Div.,Cap Exp on Grants & Other Financial Assistance (REFCUS),918004,Contributions to other bodies,10-Mar-2017,3254881-VOUCHER16NB-EDUR066,"2,000.00",SOUTH HETTON & DISTRICT COMMUNITY ASSOCIATION.
Transformation and Partnerships,Partnerships & Community Engagement Div.,Transfer Payments,525030,Other,10-Mar-2017,3254888-VOUCHER16AB,"5,000.00",SPENNYMOOR SETTLEMENT COMMUNITY ASSOC.
Transformation and Partnerships,Partnerships & Community Engagement Div.,Supplies and Services,384199,Miscellaneous Expenses,10-Mar-2017,3254893-13958,"5,000.00",ST CHAD`S COLLEGE.
Regeneration and Local Services,Planning & Assets,Supplies and Services,338027,Services,10-Mar-2017,3254706-145942-15FEB17,"2,648.50",MR GRAEME KEEN.
Regeneration and Local Services,Planning & Assets,Supplies and Services,384199,Miscellaneous Expenses,10-Mar-2017,3254781-4100564647,550.00,PETER GRAHAM CARVING.
Adult and Health Services,Planning & Service Strategy,Supplies and Services,308011,Furniture,10-Mar-2017,3254374-158117,729.00,ALBANY CONTRACT FURNITURE.
Adult and Health Services,Planning & Service Strategy,Supplies and Services,338089,Services,10-Mar-2017,3254637-2154,"1,024.70",JOY OSBORN T/A FUTURE CHILDCARE TRAINING LTD.
Transformation and Partnerships,Policy & Communications Division,Employees,040149,Recruitment Instruction and Training,10-Mar-2017,3254878-855,569.65,SOLACE GROUP LTD.
